{"text_format":"1","workbook":"xlsx","n_sheets":6,"sheets":["Notes","Summary","Region (Local Office)","Trusts","Sites","BS"],"not_rendered":{"charts":0,"images":0,"macros":1,"external_links":1,"defined_names":5,"comments":0,"pivot_tables":0},"unopened":[],"bounds":{"document_bytes":16777216,"sheet_cells":100000,"rows_first":2000,"rows_last":500,"rows_between":2000,"halvings":0,"cell_chars":16384,"cell_head_chars":4096},"cells_cut":0,"cells_raw":0,"read":"whole","date_system":"1900"}

{"sheet":"Notes","index":0,"n_rows":2,"n_cols":8,"rows_kept":2,"cut":false,"hidden":false,"merged":[[1,1,1,4]]}
[]
[null,"A&E Friends and Family Test (FFT) data - June 2017",null,null,null,null,null,"  Show data for:"]

{"sheet":"Summary","index":1,"n_rows":7,"n_cols":12,"rows_kept":7,"cut":false,"hidden":false,"merged":[[2,1,3,1],[2,4,2,5],[2,6,2,7],[2,8,2,9],[2,10,2,11]]}
[]
[]
[null,"FFT","Number of organisations submitting","Total responses to date","Responses",null,"Response Rate",null,"Score (% recommend)",null,"Score (% not recommend)"]
[null,null,"2017-06-01","2017-06-01","2017-06-01","2017-05-27","2017-06-01","2017-05-27","2017-06-01","2017-05-27","2017-06-01","2017-05-27"]
[null,"A&E Total",140,6383866,137985,136434,0.12999866218719205,0.12455938057193566,0.87609522774214588,0.86796546315434564,6.7891437475087871E-2,7.2973012592169109E-2]
[null,"Acute Type 1&2","NA",6143320,128796,128716,0.13262993348731789,0.1276373368661442,0.87409546880337896,0.8647487491842506,6.9202459703717509E-2,7.5126635383324522E-2]
[null,"WiCs & MIUs",27,240546,9189,7718,0.1017146146268029,8.883312999240349E-2,0.90412449668081407,0.92161181653278046,4.9515725323756664E-2,3.7056232184503754E-2]

{"sheet":"Region (Local Office)","index":2,"n_rows":20,"n_cols":13,"rows_kept":20,"cut":false,"hidden":false,"merged":[[2,6,3,6],[2,7,2,12],[2,0,3,0],[2,1,3,1],[2,2,3,2],[2,3,3,3],[2,4,3,4],[2,5,3,5]]}
[]
[]
["Region (LO) Code","Region (Local Office)","Total Responses","Total Eligible","Response Rate","Percentage Recommended","Percentage Not  Recommended","Breakdown of Responses"]
[null,null,null,null,null,null,null,"Extremely Likely","Likely","Neither","Unlikely","Extremely Unlikely","Don't Know"]
[null,"England",137985,1061434,0.12999866218719205,0.87609522774214588,6.7891437475087871E-2,93042,27846,5687,3766,5602,2042]
[null,"Selection (excluding suppressed data)",{"$f":"SUBTOTAL(9,C7:C32)","v":137985},{"$f":"SUBTOTAL(9,D7:D32)","v":1061434},{"$f":"IFERROR(C6/D6,\"NA\")","v":0.12999866218719205},{"$f":"IFERROR((H6+I6)/C6, \"-\")","v":0.87609522774214588},{"$f":"IFERROR((K6+L6)/C6, \"-\")","v":6.7891437475087871E-2},{"$f":"SUBTOTAL(9,H7:H32)","v":93042},27846,5687,3766,5602,2042]
["Q72","NHS England Yorkshire & Humber",10763,107548,0.10007624502547699,0.88562668401003442,6.4851807116974816E-2,7531,2001,371,263,435,162]
["Q74","NHS England Cumbria & North East",10540,91676,0.11497011213403727,0.93178368121442123,2.8368121442125239E-2,7275,2546,302,122,177,118]
["Q75","NHS England Cheshire & Merseyside",5021,48742,0.10301177629149399,0.86456881099382588,8.5839474208325037E-2,3526,815,196,145,286,53]
["Q83","NHS England Greater Manchester",12432,75992,0.16359616801768606,0.8731499356499357,7.0463320463320461E-2,8334,2521,537,339,537,164]
["Q84","NHS England Lancashire",2522,18082,0.13947572171219999,0.84932593180015858,8.2077716098334655E-2,1683,459,125,76,131,48]
["Q76","NHS England North Midlands",7182,53760,0.13359375000000001,0.88137009189640769,6.57198551935394E-2,5130,1200,280,184,288,100]
["Q77","NHS England West Midlands",11267,96249,0.11706095647746989,0.83349605041270969,0.10126919321913552,7379,2012,505,392,749,230]
["Q78","NHS England Central Midlands",7008,75519,9.2797838954435302E-2,0.87942351598173518,6.7208904109589046E-2,4881,1282,301,179,292,73]
["Q79","NHS England East",10206,67144,0.15200166805671392,0.8786988046247306,6.9468939839310212E-2,6949,2019,358,314,395,171]
["Q80","NHS England South West",5874,45896,0.1279850095868921,0.90194075587334011,5.0051072522982638E-2,4229,1069,204,122,172,78]
["Q81","NHS England South East",13894,90188,0.15405597196966336,0.88405066935367782,6.3984453721030662E-2,9739,2544,524,340,549,198]
["Q82","NHS England South Central",3611,34388,0.10500756077701524,0.86873442259761835,8.1694821379119362E-2,2574,563,149,109,186,30]
["Q70","NHS England Wessex",4650,41848,0.1111164213343529,0.90860215053763438,4.7526881720430104E-2,3509,716,140,84,137,64]
["Q71","NHS England London",33015,214402,0.15398643669368756,0.8602756322883538,7.1634105709525969E-2,20303,8099,1695,1097,1268,553]

{"sheet":"Trusts","index":3,"n_rows":146,"n_cols":21,"rows_kept":146,"cut":false,"hidden":false,"merged":[[2,6,3,6],[2,7,3,7],[2,8,2,13],[2,14,2,20],[2,0,3,0],[2,1,3,1],[2,2,3,2],[2,3,3,3],[2,4,3,4],[2,5,3,5]]}
[]
[]
["Region (LO) Code","Trust Code","Trust Name","Total Responses","Total Eligible","Response Rate","Percentage Recommended","Percentage Not  Recommended","Breakdown of Responses",null,null,null,null,null,"Mode of Collection"]
[null,null,null,null,null,null,null,null,"Extremely Likely","Likely","Neither","Unlikely","Extremely Unlikely","Don't Know","SMS/Text / Smartphone App","Electronic tablet/kiosk at point of discharge","Paper / postcard at point of discharge","Paper survey sent to the patients home","Telephone survey once patient is home","Online survey once patient is home","Other"]
[null,null,"England",137985,1061434,0.12999866218719205,0.87609522774214588,6.7891437475087871E-2,93042,27846,5687,3766,5602,2042,47559,6387,59813,1614,20721,721,1170]
[null,null,"Selection (excluding suppressed data)",{"$f":"SUBTOTAL(9,D7:D999)","v":137985},{"$f":"SUBTOTAL(9,E7:E999)","v":1061434},{"$f":"IFERROR(D6/E6,\"NA\")","v":0.12999866218719205},{"$f":"IFERROR((I6+J6)/D6, \"-\")","v":0.87576185817298979},{"$f":"IFERROR((L6+M6)/D6, \"-\")","v":6.7891437475087871E-2},{"$f":"SUBTOTAL(9,I7:I999)","v":93011},{"$f":"SUBTOTAL(9,J7:J999)","v":27831},5686,3766,5602,2041,47559,6387,59765,1614,20721,721,1170]
["Q70","RBD","DORSET COUNTY HOSPITAL NHS FOUNDATION TRUST",613,2462,0.24898456539398864,0.90048939641109293,4.4045676998368678E-2,442,110,23,17,10,11,611,0,0,0,2,0,0]
["Q70","RN5","HAMPSHIRE HOSPITALS NHS FOUNDATION TRUST",1649,8481,0.19443461855913219,0.88477865372953302,6.1855670103092786E-2,1174,285,70,35,67,18,855,0,157,0,637,0,0]
["Q70","R1F","ISLE OF WIGHT NHS TRUST",145,2961,4.8969942586963862E-2,0.87586206896551722,6.2068965517241378E-2,112,15,5,1,8,4,0,1,137,0,0,7,0]
["Q70","RD3","POOLE HOSPITAL NHS FOUNDATION TRUST",838,3177,0.26377085300598047,0.89737470167064437,6.3245823389021474E-2,618,134,22,19,34,11,710,0,128,0,0,0,0]
["Q70","RHU","PORTSMOUTH HOSPITALS NHS TRUST",973,10635,9.1490362012223783E-2,0.94552929085303183,2.1582733812949641E-2,785,135,15,10,11,17,0,0,970,0,0,3,0]
["Q70","RDZ","THE ROYAL BOURNEMOUTH AND CHRISTCHURCH HOSPITALS NHS FOUNDATION TRUST",340,6391,5.3199812235956816E-2,0.95882352941176474,2.0588235294117647E-2,295,31,4,2,5,3,0,23,317,0,0,0,0]
["Q70","RHM","UNIVERSITY HOSPITAL SOUTHAMPTON NHS FOUNDATION TRUST",92,7741,1.1884769409636998E-2,0.96739130434782605,2.1739130434782608E-2,83,6,1,0,2,0,0,0,92,0,0,0,0]
["Q71","RF4","BARKING, HAVERING AND REDBRIDGE UNIVERSITY HOSPITALS NHS TRUST",4889,13766,0.35515037047798925,0.87727551646553492,4.5817140519533645E-2,3018,1271,213,73,151,163,0,0,4881,0,0,8,0]
["Q71","R1H","BARTS HEALTH NHS TRUST",488,21886,2.2297359042310151E-2,0.89959016393442626,4.0983606557377046E-2,379,60,10,7,13,19,0,3,480,0,0,5,0]
["Q71","RQM","CHELSEA AND WESTMINSTER HOSPITAL NHS FOUNDATION TRUST",2588,14481,0.17871693943788414,0.83539412673879443,7.4961360123647611E-2,1689,473,206,81,113,26,1832,211,4,0,539,2,0]
["Q71","RJ6","CROYDON HEALTH SERVICES NHS TRUST",1294,8403,0.15399262168273237,0.90340030911901081,3.5548686244204021E-2,817,352,49,27,19,30,0,3,1291,0,0,0,0]
["Q71","RVR","EPSOM AND ST HELIER UNIVERSITY HOSPITALS NHS TRUST",1021,9825,0.10391857506361322,0.84035259549461316,9.6963761018609207E-2,730,128,58,44,55,6,933,0,25,0,61,2,0]
["Q71","RJ1","GUY'S AND ST THOMAS' NHS FOUNDATION TRUST",2690,10261,0.26215768443621479,0.84498141263940518,6.431226765799257E-2,1576,697,162,84,89,82,1342,0,1227,0,119,2,0]
["Q71","RQX","HOMERTON UNIVERSITY HOSPITAL NHS FOUNDATION TRUST",395,8721,4.5292970989565418E-2,0.91645569620253164,4.0506329113924051E-2,278,84,11,6,10,6,0,2,393,0,0,0,0]
["Q71","RYJ","IMPERIAL COLLEGE HEALTHCARE NHS TRUST",1907,16001,0.11918005124679708,0.99160985841636073,4.195070791819612E-3,1424,467,7,3,5,1,1,614,1290,0,0,2,0]
["Q71","RJZ","KING'S COLLEGE HOSPITAL NHS FOUNDATION TRUST",626,9853,6.3533949051050448E-2,0.88498402555910538,6.2300319488817889E-2,417,137,26,12,27,7,262,0,329,0,0,35,0]
["Q71","RAX","KINGSTON HOSPITAL NHS FOUNDATION TRUST",468,8372,5.5900621118012424E-2,0.9358974358974359,1.9230769230769232E-2,305,133,17,4,5,4,0,468,0,0,0,0,0]
["Q71","RJ2","LEWISHAM AND GREENWICH NHS TRUST",1499,12275,0.12211812627291242,0.95663775850567045,1.6677785190126752E-2,1109,325,34,12,13,6,0,0,1499,0,0,0,0]
["Q71","R1K","LONDON NORTH WEST HEALTHCARE NHS TRUST",2927,20986,0.13947393500428856,0.93747864707892037,2.7673385719166381E-2,1755,989,72,50,31,30,0,131,2793,0,0,3,0]
["Q71","RP6","MOORFIELDS EYE HOSPITAL NHS FOUNDATION TRUST",1466,8619,0.17008933751015198,0.95293315143246926,1.5006821282401092E-2,1123,274,28,11,11,19,0,0,1466,0,0,0,0]
["Q71","RAP","NORTH MIDDLESEX UNIVERSITY HOSPITAL NHS TRUST",1801,10766,0.16728590005573102,0.48139922265408108,0.31649083842309828,497,370,239,308,262,125,377,73,1347,0,0,4,0]
["Q71","RAL","ROYAL FREE LONDON NHS FOUNDATION TRUST",4801,10704,0.44852391629297461,0.82711935013538851,9.1439283482607783E-2,2369,1602,391,227,212,0,0,0,0,0,4801,0,0]
["Q71","RJ7","ST GEORGE'S UNIVERSITY HOSPITALS NHS FOUNDATION TRUST",1690,7124,0.23722627737226276,0.85147928994082844,9.4082840236686394E-2,1173,266,85,64,95,7,1616,74,0,0,0,0,0]
["Q71","RAS","THE HILLINGDON HOSPITALS NHS FOUNDATION TRUST",215,5779,3.7203668454749955E-2,0.93488372093023253,1.3953488372093023E-2,163,38,10,1,2,1,0,0,215,0,0,0,0]
["Q71","RKE","THE WHITTINGTON HOSPITAL NHS TRUST",933,6756,0.1380994671403197,0.84030010718113612,0.12004287245444802,596,188,33,34,78,4,923,0,10,0,0,0,0]
["Q71","RRV","UNIVERSITY COLLEGE LONDON HOSPITALS NHS FOUNDATION TRUST",1317,9824,0.13405944625407165,0.85801063022019741,9.5671981776765377E-2,885,245,44,49,77,17,1140,0,0,0,175,2,0]
["Q72","RCF","AIREDALE NHS FOUNDATION TRUST",198,3671,5.3936257150640154E-2,0.94444444444444442,2.5252525252525252E-2,139,48,3,2,3,3,7,0,187,0,0,4,0]
["Q72","RFF","BARNSLEY HOSPITAL NHS FOUNDATION TRUST",660,4921,0.13411908148750254,0.83939393939393936,0.10151515151515152,459,95,27,26,41,12,492,0,35,0,133,0,0]
["Q72","RAE","BRADFORD TEACHING HOSPITALS NHS FOUNDATION TRUST",159,8922,1.7821116341627436E-2,0.77358490566037741,3.7735849056603772E-2,83,40,10,6,0,20,152,0,7,0,0,0,0]
["Q72","RWY","CALDERDALE AND HUDDERSFIELD NHS FOUNDATION TRUST",1020,9486,0.10752688172043011,0.85196078431372546,0.10588235294117647,721,148,32,28,80,11,823,0,197,0,0,0,0]
["Q72","RP5","DONCASTER AND BASSETLAW TEACHING HOSPITALS NHS FOUNDATION TRUST",248,12242,2.0258127756902469E-2,0.90322580645161288,4.8387096774193547E-2,173,51,7,7,5,5,33,0,215,0,0,0,0]
["Q72","RCD","HARROGATE AND DISTRICT NHS FOUNDATION TRUST",220,3226,6.8195908245505268E-2,0.90909090909090906,2.2727272727272728E-2,160,40,11,4,1,4,0,0,10,0,210,0,0]
["Q72","RWA","HULL AND EAST YORKSHIRE HOSPITALS NHS TRUST",35,9102,3.8453087233575036E-3,0.74285714285714288,0.17142857142857143,24,2,2,1,5,1,0,0,35,0,0,0,0]
["Q72","RR8","LEEDS TEACHING HOSPITALS NHS TRUST",2670,11164,0.23916159082766034,0.86704119850187267,8.0149812734082393E-2,1738,577,91,79,135,50,1091,0,1142,0,437,0,0]
["Q72","RXF","MID YORKSHIRE HOSPITALS NHS TRUST",2893,14850,0.1948148148148148,0.95540960940200481,2.4196335983408226E-2,2256,508,44,23,47,15,0,0,2891,0,0,2,0]
["Q72","RJL","NORTHERN LINCOLNSHIRE AND GOOLE NHS FOUNDATION TRUST",653,9272,7.0427092320966347E-2,0.77335375191424194,0.10719754977029096,357,148,61,33,37,17,0,0,0,65,586,2,0]
["Q72","RCU","SHEFFIELD CHILDREN'S NHS FOUNDATION TRUST",94,4734,1.9856358259400086E-2,0.94680851063829785,3.1914893617021274E-2,82,7,2,0,3,0,0,0,0,0,0,94,0]
["Q72","RHQ","SHEFFIELD TEACHING HOSPITALS NHS FOUNDATION TRUST",1338,6656,0.20102163461538461,0.88415545590433486,6.5769805680119586E-2,978,205,48,35,53,19,842,0,261,0,233,2,0]
["Q72","RFR","THE ROTHERHAM NHS FOUNDATION TRUST",66,3684,1.7915309446254073E-2,0.95454545454545459,3.0303030303030304E-2,51,12,0,1,1,1,0,0,66,0,0,0,0]
["Q72","RCB","YORK TEACHING HOSPITAL NHS FOUNDATION TRUST",509,5618,9.0601637593449622E-2,0.84479371316306484,8.2514734774066803E-2,310,120,33,18,24,4,475,0,34,0,0,0,0]
["Q74","RLN","CITY HOSPITALS SUNDERLAND NHS FOUNDATION TRUST",353,10225,3.4523227383863084E-2,0.95184135977337114,2.2662889518413599E-2,292,44,5,5,3,4,0,0,353,0,0,0,0]
["Q74","RXP","COUNTY DURHAM AND DARLINGTON NHS FOUNDATION TRUST",3164,13248,0.23882850241545894,0.9361567635903919,1.8647281921618204E-2,2023,939,101,31,28,42,0,0,3164,0,0,0,0]
["Q74","RR7","GATESHEAD HEALTH NHS FOUNDATION TRUST",2478,7420,0.33396226415094338,0.95964487489911221,1.0895883777239709E-2,1545,833,60,12,15,13,0,4,2474,0,0,0,0]
["Q74","RNL","NORTH CUMBRIA UNIVERSITY HOSPITALS NHS TRUST",207,5196,3.9838337182448037E-2,0.92753623188405798,3.3816425120772944E-2,146,46,7,3,4,1,0,0,207,0,0,0,0]
["Q74","RVW","NORTH TEES AND HARTLEPOOL NHS FOUNDATION TRUST",188,12409,1.5150294141349021E-2,0.96276595744680848,1.5957446808510637E-2,164,17,0,0,3,4,0,0,188,0,0,0,0]
["Q74","RTF","NORTHUMBRIA HEALTHCARE NHS FOUNDATION TRUST",864,11777,7.3363335314596254E-2,0.89351851851851849,3.4722222222222224E-2,627,145,29,11,19,33,229,0,551,84,0,0,0]
["Q74","RTR","SOUTH TEES HOSPITALS NHS FOUNDATION TRUST",703,10351,6.7916143367790546E-2,0.90611664295874828,5.9743954480796585E-2,561,76,24,16,26,0,703,0,0,0,0,0,0]
["Q74","RE9","SOUTH TYNESIDE NHS FOUNDATION TRUST",137,2887,4.7454104606858331E-2,0.9051094890510949,8.0291970802919707E-2,111,13,0,2,9,2,0,0,137,0,0,0,0]
["Q74","RTD","THE NEWCASTLE UPON TYNE HOSPITALS NHS FOUNDATION TRUST",1501,13809,0.10869722644652038,0.92138574283810792,3.8640906062624915E-2,1084,299,49,26,32,11,215,0,1286,0,0,0,0]
["Q74","RTX","UNIVERSITY HOSPITALS OF MORECAMBE BAY NHS FOUNDATION TRUST",945,4354,0.21704180064308681,0.90582010582010586,5.7142857142857141E-2,722,134,27,16,38,8,643,0,14,0,288,0,0]
["Q75","REM","AINTREE UNIVERSITY HOSPITAL NHS FOUNDATION TRUST",659,4011,0.16429818000498628,0.83611532625189677,9.8634294385432475E-2,435,116,36,19,46,7,502,0,0,0,157,0,0]
["Q75","RBS","ALDER HEY CHILDREN'S NHS FOUNDATION TRUST",46,4738,9.7087378640776691E-3,0.95652173913043481,0,"*","*","*","*","*","*","*","*","*","*","*","*","*"]
["Q75","RJR","COUNTESS OF CHESTER HOSPITAL NHS FOUNDATION TRUST",625,3569,0.17511908097506304,0.8448,0.1008,431,97,27,22,41,7,517,0,4,0,104,0,0]
["Q75","RJN","EAST CHESHIRE NHS TRUST",601,2848,0.2110252808988764,0.88019966722129783,7.8202995008319467E-2,429,100,19,21,26,6,480,0,0,0,121,0,0]
["Q75","REP","LIVERPOOL WOMEN'S NHS FOUNDATION TRUST",2,890,2.2471910112359553E-3,"*","*","*","*","*","*","*","*","*","*","*","*","*","*","*"]
["Q75","RBT","MID CHESHIRE HOSPITALS NHS FOUNDATION TRUST",302,6191,4.878048780487805E-2,0.94039735099337751,2.3178807947019868E-2,244,40,11,2,5,0,0,44,258,0,0,0,0]
["Q75","RQ6","ROYAL LIVERPOOL AND BROADGREEN UNIVERSITY HOSPITALS NHS TRUST",1126,5489,0.20513754782291857,0.82770870337477798,0.1127886323268206,737,195,49,38,89,18,845,0,0,0,281,0,0]
["Q75","RVY","SOUTHPORT AND ORMSKIRK HOSPITAL NHS TRUST",213,5121,4.1593438781487989E-2,0.85915492957746475,9.8591549295774641E-2,136,47,7,9,12,2,0,63,150,0,0,0,0]
["Q75","RBN","ST HELENS AND KNOWSLEY HOSPITAL SERVICES NHS TRUST",637,3877,0.16430229558937323,0.89638932496075352,6.4364207221350084E-2,492,79,19,16,25,6,413,0,0,0,224,0,0]
["Q75","RWW","WARRINGTON AND HALTON HOSPITALS NHS FOUNDATION TRUST",86,6419,1.3397725502414706E-2,0.96511627906976749,0,69,14,1,0,0,2,1,0,84,0,1,0,0]
["Q75","RBL","WIRRAL UNIVERSITY TEACHING HOSPITAL NHS FOUNDATION TRUST",724,5589,0.12954016818751118,0.87569060773480667,8.2872928176795577E-2,522,112,26,18,42,4,210,0,0,140,374,0,0]
["Q76","RJF","BURTON HOSPITALS NHS FOUNDATION TRUST",503,9233,5.4478501028918012E-2,0.90258449304174948,6.3618290258449298E-2,347,107,15,18,14,2,457,0,45,0,0,1,0]
["Q76","RFS","CHESTERFIELD ROYAL HOSPITAL NHS FOUNDATION TRUST",208,4506,4.61606746560142E-2,0.81730769230769229,8.6538461538461536E-2,124,46,18,6,12,2,174,0,34,0,0,0,0]
["Q76","RTG","DERBY TEACHING HOSPITALS NHS FOUNDATION TRUST",843,8111,0.10393293058809025,0.81138790035587194,0.1103202846975089,537,147,43,39,54,23,545,111,38,0,149,0,0]
["Q76","RX1","NOTTINGHAM UNIVERSITY HOSPITALS NHS TRUST",1873,9145,0.20481137233460908,0.94287239722370531,2.2423918846769888E-2,1502,264,43,17,25,22,0,0,1871,0,0,2,0]
["Q76","RK5","SHERWOOD FOREST HOSPITALS NHS FOUNDATION TRUST",883,7718,0.11440787768852034,0.94790486976217436,2.7180067950169876E-2,654,183,19,6,18,3,256,0,625,0,0,2,0]
["Q76","RXW","SHREWSBURY AND TELFORD HOSPITAL NHS TRUST",1431,6543,0.218707015130674,0.96575821104122994,4.1928721174004195E-3,1102,280,41,2,4,2,0,0,1431,0,0,0,0]
["Q76","RJE","UNIVERSITY HOSPITALS OF NORTH MIDLANDS NHS TRUST",1441,8504,0.16944967074317968,0.71963913948646774,0.17834836918806385,864,173,101,96,161,46,0,0,239,0,1202,0,0]
["Q77","RQ3","BIRMINGHAM WOMEN'S AND CHILDREN'S NHS FOUNDATION TRUST",142,4727,3.0040194626613073E-2,0.95774647887323938,2.1126760563380281E-2,124,12,3,0,3,0,0,0,142,0,0,0,0]
["Q77","RLT","GEORGE ELIOT HOSPITAL NHS TRUST",1224,5074,0.24122979897516753,0.86274509803921573,8.9052287581699349E-2,811,245,36,41,68,23,1213,0,11,0,0,0,0]
["Q77","RR1","HEART OF ENGLAND NHS FOUNDATION TRUST",2773,16981,0.16330015900123668,0.82906599350883514,0.1006130544536603,1717,582,146,99,180,49,1516,0,174,0,1083,0,0]
["Q77","RXK","SANDWELL AND WEST BIRMINGHAM HOSPITALS NHS TRUST",330,14041,2.3502599529948008E-2,0.73333333333333328,0.20606060606060606,191,51,17,25,43,3,330,0,0,0,0,0,0]
["Q77","RJC","SOUTH WARWICKSHIRE NHS FOUNDATION TRUST",106,3998,2.6513256628314157E-2,0.95283018867924529,9.433962264150943E-3,92,9,2,0,1,2,0,0,105,0,0,1,0]
["Q77","RNA","THE DUDLEY GROUP NHS FOUNDATION TRUST",731,4256,0.17175751879699247,0.78796169630642954,0.11217510259917921,452,124,37,28,54,36,604,0,127,0,0,0,0]
["Q77","RL4","THE ROYAL WOLVERHAMPTON NHS TRUST",1751,12858,0.13617981023487324,0.82295830953740723,0.10793832095945174,1151,290,81,66,123,40,992,0,0,0,759,0,0]
["Q77","RRK","UNIVERSITY HOSPITALS BIRMINGHAM NHS FOUNDATION TRUST",1057,6822,0.15493990032248608,0.8486281929990539,9.7445600756859041E-2,732,165,43,32,71,14,989,0,68,0,0,0,0]
["Q77","RKB","UNIVERSITY HOSPITALS COVENTRY AND WARWICKSHIRE NHS TRUST",1761,11769,0.14963038490950803,0.81658148779102779,0.11413969335604771,1140,298,88,63,138,34,1692,0,4,0,0,65,0]
["Q77","RBK","WALSALL HEALTHCARE NHS TRUST",554,3569,0.15522555337629587,0.76895306859205781,0.14801444043321299,294,132,31,32,50,15,242,0,0,0,312,0,0]
["Q77","RWP","WORCESTERSHIRE ACUTE HOSPITALS NHS TRUST",303,9433,3.2121276370189758E-2,0.91419141914191415,3.3003300330033E-2,216,61,13,1,9,3,0,0,303,0,0,0,0]
["Q77","RLQ","WYE VALLEY NHS TRUST",535,2721,0.19661889011392869,0.93831775700934583,2.6168224299065422E-2,459,43,8,5,9,11,0,133,402,0,0,0,0]
["Q78","RC1","BEDFORD HOSPITAL NHS TRUST",663,3499,0.1894827093455273,0.87481146304675717,7.2398190045248875E-2,456,124,32,18,30,3,475,0,0,0,188,0,0]
["Q78","RWH","EAST AND NORTH HERTFORDSHIRE NHS TRUST",481,12552,3.8320586360739324E-2,0.93970893970893976,1.8711018711018712E-2,314,138,20,4,5,0,0,13,468,0,0,0,0]
["Q78","RNQ","KETTERING GENERAL HOSPITAL NHS FOUNDATION TRUST",114,3766,3.0270844397238449E-2,0.92105263157894735,5.2631578947368418E-2,93,12,3,3,3,0,0,0,114,0,0,0,0]
["Q78","RC9","LUTON AND DUNSTABLE UNIVERSITY HOSPITAL NHS FOUNDATION TRUST",237,6772,3.4997046662728883E-2,0.95780590717299574,2.5316455696202531E-2,208,19,2,2,4,2,0,222,15,0,0,0,0]
["Q78","RD8","MILTON KEYNES UNIVERSITY HOSPITAL NHS FOUNDATION TRUST",516,7352,7.0184983677910776E-2,0.83720930232558144,9.4961240310077522E-2,309,123,31,16,33,4,270,0,178,0,0,68,0]
["Q78","RNS","NORTHAMPTON GENERAL HOSPITAL NHS TRUST",1261,7478,0.16862797539449051,0.88739095955590797,7.0578905630452021E-2,901,218,43,32,57,10,833,0,27,0,394,7,0]
["Q78","RWD","UNITED LINCOLNSHIRE HOSPITALS NHS TRUST",1983,10813,0.18339036345140108,0.80332829046898635,0.11396873424104892,1198,395,123,87,139,41,998,0,0,0,864,121,0]
["Q78","RWE","UNIVERSITY HOSPITALS OF LEICESTER NHS TRUST",1325,14096,9.3998297389330313E-2,0.95773584905660381,1.509433962264151E-2,1121,148,25,6,14,11,0,399,922,0,0,4,0]
["Q78","RWG","WEST HERTFORDSHIRE HOSPITALS NHS TRUST",428,9191,4.6567294092046567E-2,0.90186915887850472,4.2056074766355138E-2,281,105,22,11,7,2,0,0,422,0,0,6,0]
["Q79","RDD","BASILDON AND THURROCK UNIVERSITY HOSPITALS NHS FOUNDATION TRUST",1398,7399,0.18894445195296661,0.77968526466380539,0.11945636623748211,767,323,101,72,95,40,0,0,1398,0,0,0,0]
["Q79","RGT","CAMBRIDGE UNIVERSITY HOSPITALS NHS FOUNDATION TRUST",1325,6198,0.2137786382704098,0.93433962264150938,3.6226415094339624E-2,1000,238,33,23,25,6,0,0,20,1250,0,55,0]
["Q79","RDE","COLCHESTER HOSPITAL UNIVERSITY NHS FOUNDATION TRUST",912,4718,0.19330224671470964,0.875,8.3333333333333329E-2,660,138,31,26,50,7,558,0,0,75,279,0,0]
["Q79","RGQ","IPSWICH HOSPITAL NHS TRUST",1055,5264,0.20041793313069908,0.76113744075829382,0.15355450236966825,628,175,40,57,105,50,0,799,255,0,0,1,0]
["Q79","RGP","JAMES PAGET UNIVERSITY HOSPITALS NHS FOUNDATION TRUST",580,5656,0.10254596888260255,0.92586206896551726,2.4137931034482758E-2,423,114,20,5,9,9,0,0,580,0,0,0,0]
["Q79","RQ8","MID ESSEX HOSPITAL SERVICES NHS TRUST",584,5807,0.10056827966247632,0.86472602739726023,8.3904109589041098E-2,378,127,18,24,25,12,490,0,3,0,91,0,0]
["Q79","RM1","NORFOLK AND NORWICH UNIVERSITY HOSPITALS NHS FOUNDATION TRUST",279,7603,3.6696041036432987E-2,0.93906810035842292,2.8673835125448029E-2,229,33,8,4,4,1,0,201,50,0,28,0,0]
["Q79","RGN","NORTH WEST ANGLIA NHS FOUNDATION TRUST",448,9598,4.6676390914773914E-2,0.9665178571428571,1.1160714285714286E-2,341,92,5,0,5,5,0,79,368,0,0,1,0]
["Q79","RAJ","SOUTHEND UNIVERSITY HOSPITAL NHS FOUNDATION TRUST",916,5047,0.18149395680602337,0.87227074235807855,7.4235807860262015E-2,658,141,36,29,39,13,577,0,106,0,232,1,0]
["Q79","RQW","THE PRINCESS ALEXANDRA HOSPITAL NHS TRUST",1170,3950,0.29620253164556964,0.89230769230769236,7.0940170940170938E-2,806,238,33,62,21,10,0,0,0,0,0,0,1170]
["Q79","RCX","THE QUEEN ELIZABETH HOSPITAL, KING'S LYNN, NHS FOUNDATION TRUST",647,3131,0.20664324496965825,0.9412673879443586,2.472952086553323E-2,430,179,12,6,10,10,0,0,647,0,0,0,0]
["Q79","RGR","WEST SUFFOLK NHS FOUNDATION TRUST",892,2773,0.32167327803822576,0.952914798206278,1.4573991031390135E-2,629,221,21,6,7,8,0,164,728,0,0,0,0]
["Q80","RVJ","NORTH BRISTOL NHS TRUST",998,5191,0.19225582739356578,0.85771543086172342,9.1182364729458912E-2,721,135,43,36,55,8,714,0,0,0,284,0,0]
["Q80","RBZ","NORTHERN DEVON HEALTHCARE NHS TRUST",80,2516,3.1796502384737677E-2,0.71250000000000002,0.22500000000000001,49,8,4,7,11,1,0,51,29,0,0,0,0]
["Q80","RK9","PLYMOUTH HOSPITALS NHS TRUST",1649,6646,0.24811916942521817,0.9375379017586416,1.0309278350515464E-2,1141,405,67,12,5,19,0,1096,552,0,0,1,0]
["Q80","REF","ROYAL CORNWALL HOSPITALS NHS TRUST",597,4922,0.12129215765948802,0.9715242881072027,6.7001675041876048E-3,500,80,9,1,3,4,0,0,597,0,0,0,0]
["Q80","RH8","ROYAL DEVON AND EXETER NHS FOUNDATION TRUST",100,3771,2.6518164942985947E-2,0.96,0.01,90,6,1,1,0,2,0,0,100,0,0,0,0]
["Q80","RBA","TAUNTON AND SOMERSET NHS FOUNDATION TRUST",143,3839,3.7249283667621778E-2,0.965034965034965,2.097902097902098E-2,128,10,2,2,1,0,0,0,143,0,0,0,0]
["Q80","RA9","TORBAY AND SOUTH DEVON NHS FOUNDATION TRUST",379,4279,8.8572096284178545E-2,0.96569920844327173,1.3192612137203167E-2,309,57,5,2,3,3,0,379,0,0,0,0,0]
["Q80","RA7","UNIVERSITY HOSPITALS BRISTOL NHS FOUNDATION TRUST",1681,8042,0.20902760507336485,0.84414039262343843,8.9232599643069607E-2,1078,341,72,60,90,40,646,548,484,0,0,3,0]
["Q80","RA3","WESTON AREA HEALTH NHS TRUST",165,3872,4.261363636363636E-2,0.9939393939393939,6.0606060606060606E-3,147,17,0,0,1,0,0,0,165,0,0,0,0]
["Q80","RA4","YEOVIL DISTRICT HOSPITAL NHS FOUNDATION TRUST",82,2818,2.9098651525904896E-2,0.92682926829268297,4.878048780487805E-2,66,10,1,1,3,1,0,0,80,0,0,2,0]
["Q81","RTK","ASHFORD AND ST PETER'S HOSPITALS NHS FOUNDATION TRUST",86,6150,1.3983739837398375E-2,0.81395348837209303,0.12790697674418605,58,12,2,3,8,3,0,0,78,0,0,8,0]
["Q81","RXH","BRIGHTON AND SUSSEX UNIVERSITY HOSPITALS NHS TRUST",2315,11823,0.19580478727903239,0.8764578833693305,7.4298056155507552E-2,1675,354,92,79,93,22,1708,0,72,0,535,0,0]
["Q81","RN7","DARTFORD AND GRAVESHAM NHS TRUST",208,4036,5.1536174430128839E-2,0.94711538461538458,2.403846153846154E-2,165,32,6,0,5,0,0,0,208,0,0,0,0]
["Q81","RVV","EAST KENT HOSPITALS UNIVERSITY NHS FOUNDATION TRUST",2071,13148,0.15751445086705201,0.78029937228392077,0.14389183969097055,1268,348,111,101,197,46,1525,0,0,0,546,0,0]
["Q81","RXC","EAST SUSSEX HEALTHCARE NHS TRUST",639,8199,7.7936333699231614E-2,0.85446009389671362,9.0766823161189364E-2,423,123,22,20,38,13,0,0,634,0,0,5,0]
["Q81","RDU","FRIMLEY HEALTH NHS FOUNDATION TRUST",2731,13548,0.20157956894006496,0.93994873672647383,2.2336140607835956E-2,2026,541,83,29,32,20,157,0,2486,0,0,88,0]
["Q81","RWF","MAIDSTONE AND TUNBRIDGE WELLS NHS TRUST",1862,9230,0.20173347778981582,0.92266380236305046,2.1482277121374866E-2,1229,489,62,24,16,42,0,0,1856,0,0,6,0]
["Q81","RPA","MEDWAY NHS FOUNDATION TRUST",914,6254,0.14614646626159258,0.82385120350109409,0.10940919037199125,588,165,47,27,73,14,432,0,0,0,462,20,0]
["Q81","RA2","ROYAL SURREY COUNTY HOSPITAL NHS FOUNDATION TRUST",813,2558,0.31782642689601254,0.90528905289052886,4.9200492004920049E-2,592,144,28,15,25,9,600,0,27,0,143,43,0]
["Q81","RTP","SURREY AND SUSSEX HEALTHCARE NHS TRUST",1468,5653,0.25968512294356977,0.93801089918256131,2.5885558583106268E-2,1184,193,35,16,22,18,258,0,1196,0,12,2,0]
["Q81","RYR","WESTERN SUSSEX HOSPITALS NHS FOUNDATION TRUST",787,9589,8.2073208885180937E-2,0.8564167725540025,8.3862770012706478E-2,531,143,36,26,40,11,595,15,170,0,0,7,0]
["Q82","RXQ","BUCKINGHAMSHIRE HEALTHCARE NHS TRUST",239,4792,4.9874791318864777E-2,0.73221757322175729,0.12552301255230125,112,63,30,8,22,4,0,0,239,0,0,0,0]
["Q82","RTE","GLOUCESTERSHIRE HOSPITALS NHS FOUNDATION TRUST",500,4224,0.11837121212121213,0.75600000000000001,0.184,293,85,21,34,58,9,491,0,6,0,3,0,0]
["Q82","RN3","GREAT WESTERN HOSPITALS NHS FOUNDATION TRUST",384,4721,8.1338699428087274E-2,0.8515625,8.8541666666666671E-2,243,84,22,12,22,1,260,4,119,0,0,1,0]
["Q82","RTH","OXFORD UNIVERSITY HOSPITALS NHS FOUNDATION TRUST",1315,5996,0.21931287525016677,0.84638783269961981,9.6577946768060835E-2,894,219,59,48,79,16,1309,0,3,0,0,3,0]
["Q82","RHW","ROYAL BERKSHIRE NHS FOUNDATION TRUST",245,7305,3.3538672142368241E-2,0.97551020408163269,1.6326530612244899E-2,225,14,2,2,2,0,1,0,241,0,0,3,0]
["Q82","RD1","ROYAL UNITED HOSPITALS BATH NHS FOUNDATION TRUST",855,4478,0.19093345243412238,0.9754385964912281,8.1871345029239772E-3,747,87,14,4,3,0,0,0,855,0,0,0,0]
["Q82","RNZ","SALISBURY NHS FOUNDATION TRUST",73,2872,2.5417827298050141E-2,0.9726027397260274,1.3698630136986301E-2,60,11,1,1,0,0,0,0,73,0,0,0,0]
["Q83","RMC","BOLTON NHS FOUNDATION TRUST",975,7404,0.13168557536466774,0.86974358974358978,8.615384615384615E-2,674,174,36,30,54,7,597,0,128,0,250,0,0]
["Q83","RW3","CENTRAL MANCHESTER UNIVERSITY HOSPITALS NHS FOUNDATION TRUST",2960,18875,0.15682119205298015,0.88783783783783787,6.2162162162162166E-2,1796,832,114,99,85,34,785,325,1837,0,0,13,0]
["Q83","RW6","PENNINE ACUTE HOSPITALS NHS TRUST",3151,22545,0.13976491461521401,0.83687718184703264,9.0447476991431297E-2,2029,608,180,81,204,49,1414,0,99,0,1638,0,0]
["Q83","RM3","SALFORD ROYAL NHS FOUNDATION TRUST",785,4041,0.19425884682009403,0.87006369426751595,6.6242038216560509E-2,576,107,37,22,30,13,566,0,0,0,219,0,0]
["Q83","RWJ","STOCKPORT NHS FOUNDATION TRUST",987,4936,0.19995948136142624,0.90476190476190477,3.9513677811550151E-2,737,156,41,14,25,14,519,0,95,0,373,0,0]
["Q83","RMP","TAMESIDE AND GLOSSOP INTEGRATED CARE NHS FOUNDATION TRUST",790,5825,0.13562231759656651,0.81645569620253167,0.11772151898734177,476,169,33,31,62,19,355,76,357,0,0,2,0]
["Q83","RM2","UNIVERSITY HOSPITAL OF SOUTH MANCHESTER NHS FOUNDATION TRUST",1060,5788,0.18313752591568763,0.88490566037735852,6.2264150943396226E-2,713,225,45,24,42,11,683,54,84,0,239,0,0]
["Q83","RRF","WRIGHTINGTON, WIGAN AND LEIGH NHS FOUNDATION TRUST",1724,6578,0.26208574034660992,0.9182134570765661,4.2343387470997682E-2,1333,250,51,38,35,17,281,0,858,0,585,0,0]
["Q84","RXL","BLACKPOOL TEACHING HOSPITALS NHS FOUNDATION TRUST",748,5416,0.13810930576070901,0.94919786096256686,2.2727272727272728E-2,578,132,13,6,11,8,0,0,748,0,0,0,0]
["Q84","RXR","EAST LANCASHIRE HOSPITALS NHS TRUST",1249,7435,0.1679892400806994,0.78062449959967972,0.12650120096076861,733,242,87,53,105,29,836,4,208,0,201,0,0]
["Q84","RXN","LANCASHIRE TEACHING HOSPITALS NHS FOUNDATION TRUST",525,5231,0.1003632192697381,0.87047619047619051,6.0952380952380952E-2,372,85,25,17,15,11,341,0,17,0,167,0,0]

{"sheet":"Sites","index":4,"n_rows":245,"n_cols":16,"rows_kept":245,"cut":false,"hidden":false,"merged":[[2,6,3,6],[2,7,3,7],[2,8,3,8],[2,9,3,9],[2,10,2,15],[2,0,3,0],[2,1,3,1],[2,2,3,2],[2,3,3,3],[2,4,3,4],[2,5,3,5]]}
[]
[]
["Region (LO) Code","Trust Code","Trust Name","Site Code","Site Name","Total Responses","Total Eligible","Response Rate","Percentage Recommended","Percentage Not  Recommended","Breakdown of Responses"]
[null,null,null,null,null,null,null,null,null,null,"Extremely Likely","Likely","Neither","Unlikely","Extremely Unlikely","Don't Know"]
[null,null,null,null,"England",137985,1061434,0.12999866218719205,0.87609522774214588,6.7891437475087871E-2,93042,27846,5687,3766,5602,2042]
[null,null,null,null,"Selection (excluding suppressed data)",{"$f":"SUBTOTAL(9,F7:F999)","v":137985},{"$f":"SUBTOTAL(9,G7:G999)","v":1061434},{"$f":"IFERROR(F6/G6,\"NA\")","v":0.12999866218719205},{"$f":"IFERROR((K6+L6)/F6, \"-\")","v":0.87516034351559957},{"$f":"IFERROR((N6+O6)/F6, \"-\")","v":6.7891437475087871E-2},{"$f":"SUBTOTAL(9,K7:K999)","v":92942},27817,5685,3766,5602,2039]
["Q70","RBD","DORSET COUNTY HOSPITAL NHS FOUNDATION TRUST","RBD01","Dorset County Hospital - RBD01",613,2462,0.24898456539398864,0.90048939641109293,4.4045676998368678E-2,442,110,23,17,10,11]
["Q70","RN5","HAMPSHIRE HOSPITALS NHS FOUNDATION TRUST","RN542","Andover War Memorial Hospital - RN542",235,1319,0.17816527672479152,0.90638297872340423,6.3829787234042548E-2,174,39,4,4,11,3]
["Q70","RN5","HAMPSHIRE HOSPITALS NHS FOUNDATION TRUST","RN506","Basingstoke and North Hampshire Hospital - RN506",752,3988,0.18856569709127383,0.84707446808510634,7.9787234042553196E-2,500,137,46,22,38,9]
["Q70","RN5","HAMPSHIRE HOSPITALS NHS FOUNDATION TRUST","RN541","Royal Hampshire County Hospital - RN541",662,3174,0.20856962822936359,0.91993957703927487,4.0785498489425982E-2,500,109,20,9,18,6]
["Q70","R1F","ISLE OF WIGHT NHS TRUST","R1F01","St Mary's Hospital - R1F01",145,2961,4.8969942586963862E-2,0.87586206896551722,6.2068965517241378E-2,112,15,5,1,8,4]
["Q70","R1F","ISLE OF WIGHT NHS TRUST","R1FXXX","WiC_MIU - R1FXXX",0,0,"NA","NA","NA",0,0,0,0,0,0]
["Q70","RD3","POOLE HOSPITAL NHS FOUNDATION TRUST","RD304","Poole General Hospital NHS Trust HQ - RD304",838,3177,0.26377085300598047,0.89737470167064437,6.3245823389021474E-2,618,134,22,19,34,11]
["Q70","RHU","PORTSMOUTH HOSPITALS NHS TRUST","RHU03","Queen Alexandra Hospital - RHU03",802,8353,9.6013408356279181E-2,0.93765586034912718,2.4937655860349128E-2,630,122,14,9,11,16]
["Q70","RHU","PORTSMOUTH HOSPITALS NHS TRUST","RHUXXX","WiC_MIU - RHUXXX",171,2282,7.4934268185801928E-2,0.98245614035087714,5.8479532163742687E-3,155,13,1,1,0,1]
["Q70","RDZ","THE ROYAL BOURNEMOUTH AND CHRISTCHURCH HOSPITALS NHS FOUNDATION TRUST","RDZ20","Royal Bournemouth General Hospital - RDZ20",340,6391,5.3199812235956816E-2,0.95882352941176474,2.0588235294117647E-2,295,31,4,2,5,3]
["Q70","RHM","UNIVERSITY HOSPITAL SOUTHAMPTON NHS FOUNDATION TRUST","RHM01","Southampton General Hospital - RHM01",92,7741,1.1884769409636998E-2,0.96739130434782605,2.1739130434782608E-2,83,6,1,0,2,0]
["Q71","RF4","BARKING, HAVERING AND REDBRIDGE UNIVERSITY HOSPITALS NHS TRUST","RF4DG","King George Hospital - RF4DG",3003,4718,0.63649851632047483,0.90675990675990681,2.6307026307026308E-2,1982,741,104,36,43,97]
["Q71","RF4","BARKING, HAVERING AND REDBRIDGE UNIVERSITY HOSPITALS NHS TRUST","RF4QH","Queen's Hospital - RF4QH",1886,9048,0.20844385499557913,0.83032873806998941,7.6882290562036049E-2,1036,530,109,37,108,66]
["Q71","R1H","BARTS HEALTH NHS TRUST","R1HNH","Newham General Hospital - R1HNH",19,4816,3.9451827242524915E-3,0.84210526315789469,5.2631578947368418E-2,10,6,1,0,1,1]
["Q71","R1H","BARTS HEALTH NHS TRUST","R1HM0","St Bartholomew's Hospital - R1HM0",37,549,6.7395264116575593E-2,0.97297297297297303,0,34,2,0,0,0,1]
["Q71","R1H","BARTS HEALTH NHS TRUST","R1H12","The Royal London Hospital - R1H12",225,9527,2.3617088275427731E-2,0.88,3.111111111111111E-2,168,30,6,2,5,14]
["Q71","R1H","BARTS HEALTH NHS TRUST","R1HKH","Whipps Cross University Hospital - R1HKH",207,6994,2.9596797254789819E-2,0.91304347826086951,5.7971014492753624E-2,167,22,3,5,7,3]
["Q71","R1H","BARTS HEALTH NHS TRUST","R1HXXX","WiC_MIU - R1HXXX",0,0,"NA","NA","NA",0,0,0,0,0,0]
["Q71","RQM","CHELSEA AND WESTMINSTER HOSPITAL NHS FOUNDATION TRUST","RQM01","Chelsea and Westminster Hospital - RQM01",606,3236,0.18726823238566132,0.84158415841584155,7.2607260726072612E-2,419,91,49,18,26,3]
["Q71","RQM","CHELSEA AND WESTMINSTER HOSPITAL NHS FOUNDATION TRUST","RQM91","West Middlesex University Hospital - RQM91",428,3073,0.13927757891311421,0.86915887850467288,8.6448598130841117E-2,301,71,15,12,25,4]
["Q71","RQM","CHELSEA AND WESTMINSTER HOSPITAL NHS FOUNDATION TRUST","RQMXXX","WiC_MIU - RQMXXX",1554,8172,0.19016152716593246,0.82368082368082363,7.2715572715572718E-2,969,311,142,51,62,19]
["Q71","RJ6","CROYDON HEALTH SERVICES NHS TRUST","RJ611","Croydon University Hospital - RJ611",1134,4215,0.2690391459074733,0.90652557319223981,2.9100529100529099E-2,708,320,45,23,10,28]
["Q71","RJ6","CROYDON HEALTH SERVICES NHS TRUST","RJ6XXX","WiC_MIU - RJ6XXX",160,4188,3.8204393505253106E-2,0.88124999999999998,8.1250000000000003E-2,109,32,4,4,9,2]
["Q71","RVR","EPSOM AND ST HELIER UNIVERSITY HOSPITALS NHS TRUST","RVR50","Epsom Hospital - RVR50",424,3899,0.10874583226468325,0.83254716981132071,9.1981132075471692E-2,292,61,29,21,18,3]
["Q71","RVR","EPSOM AND ST HELIER UNIVERSITY HOSPITALS NHS TRUST","RVR05","St Helier Hospital - RVR05",597,5926,0.10074249071886601,0.84589614740368513,0.10050251256281408,438,67,29,23,37,3]
["Q71","RJ1","GUY'S AND ST THOMAS' NHS FOUNDATION TRUST","RJ122","St Thomas' Hospital - RJ122",2186,7851,0.27843586804228759,0.83074107959743826,6.7703568161024699E-2,1200,616,152,70,78,70]
["Q71","RJ1","GUY'S AND ST THOMAS' NHS FOUNDATION TRUST","RJ1XXX","WiC_MIU - RJ1XXX",504,2410,0.2091286307053942,0.90674603174603174,4.96031746031746E-2,376,81,10,14,11,12]
["Q71","RQX","HOMERTON UNIVERSITY HOSPITAL NHS FOUNDATION TRUST","RQXM1","Homerton University Hospital - RQXM1",395,8721,4.5292970989565418E-2,0.91645569620253164,4.0506329113924051E-2,278,84,11,6,10,6]
["Q71","RYJ","IMPERIAL COLLEGE HEALTHCARE NHS TRUST","RYJ02","Charing Cross Hospital - RYJ02",259,1854,0.13969795037756202,0.98841698841698844,7.7220077220077222E-3,245,11,1,0,2,0]
["Q71","RYJ","IMPERIAL COLLEGE HEALTHCARE NHS TRUST","RYJ01","St Mary's Hospital (HQ) - RYJ01",223,3940,5.6598984771573602E-2,0.99551569506726456,0,201,21,0,0,0,1]
["Q71","RYJ","IMPERIAL COLLEGE HEALTHCARE NHS TRUST","RYJ07","Western Eye Hospital - RYJ07",688,4223,0.1629173573289131,0.99127906976744184,2.9069767441860465E-3,417,265,4,1,1,0]
["Q71","RYJ","IMPERIAL COLLEGE HEALTHCARE NHS TRUST","RYJXXX","WiC_MIU - RYJXXX",737,5984,0.12316176470588236,0.99185888738127548,5.4274084124830389E-3,561,170,2,2,2,0]
["Q71","RJZ","KING'S COLLEGE HOSPITAL NHS FOUNDATION TRUST","RJZ33","Kings College Dental Hospital - RJZ33",111,1047,0.10601719197707736,0.94594594594594594,3.6036036036036036E-2,81,24,0,2,2,2]
["Q71","RJZ","KING'S COLLEGE HOSPITAL NHS FOUNDATION TRUST","RJZ01","King's College Hospital (Denmark Hill) - RJZ01",245,6267,3.9093665230572845E-2,0.82040816326530608,9.3877551020408165E-2,150,51,18,6,17,3]
["Q71","RJZ","KING'S COLLEGE HOSPITAL NHS FOUNDATION TRUST","RJZ30","Princess Royal University Hospital - RJZ30",270,2539,0.1063410791650256,0.91851851851851851,4.4444444444444446E-2,186,62,8,4,8,2]
["Q71","RAX","KINGSTON HOSPITAL NHS FOUNDATION TRUST","RAX01","Kingston Hospital - RAX01",468,8372,5.5900621118012424E-2,0.9358974358974359,1.9230769230769232E-2,305,133,17,4,5,4]
["Q71","RJ2","LEWISHAM AND GREENWICH NHS TRUST","RJ231","Queen Elizabeth Hospital - RJ231",828,4195,0.19737783075089393,0.94927536231884058,1.6908212560386472E-2,608,178,24,6,8,4]
["Q71","RJ2","LEWISHAM AND GREENWICH NHS TRUST","RJ224","University Hospital Lewisham - RJ224",671,8080,8.3044554455445549E-2,0.96572280178837555,1.6393442622950821E-2,501,147,10,6,5,2]
["Q71","R1K","LONDON NORTH WEST HEALTHCARE NHS TRUST","R1K04","Ealing Hospital - R1K04",366,1643,0.22276323797930614,0.94808743169398912,1.092896174863388E-2,240,107,8,2,2,7]
["Q71","R1K","LONDON NORTH WEST HEALTHCARE NHS TRUST","R1K01","Northwick Park Hospital - R1K01",1691,4939,0.34237699939258959,0.94027202838557067,2.1289178001182733E-2,1056,534,45,22,14,20]
["Q71","R1K","LONDON NORTH WEST HEALTHCARE NHS TRUST","R1KXXX","WiC_MIU - R1KXXX",870,14404,6.0399888919744515E-2,0.92758620689655169,4.7126436781609195E-2,459,348,19,26,15,3]
["Q71","RP6","MOORFIELDS EYE HOSPITAL NHS FOUNDATION TRUST","RP601","Moorfields Eye Hospital (City Road) - RP601",1466,8619,0.17008933751015198,0.95293315143246926,1.5006821282401092E-2,1123,274,28,11,11,19]
["Q71","RAP","NORTH MIDDLESEX UNIVERSITY HOSPITAL NHS TRUST","RAPNM","North Middlesex Hospital - RAPNM",1801,10766,0.16728590005573102,0.48139922265408108,0.31649083842309828,497,370,239,308,262,125]
["Q71","RAL","ROYAL FREE LONDON NHS FOUNDATION TRUST","RAL26","Barnet Hospital - RAL26",2464,5386,0.45748236167842554,0.79545454545454541,0.11282467532467533,1092,868,226,139,139,0]
["Q71","RAL","ROYAL FREE LONDON NHS FOUNDATION TRUST","RAL01","Royal Free Hospital - RAL01",2337,5318,0.4394509213990222,0.86050492083868202,6.889174154899444E-2,1277,734,165,88,73,0]
["Q71","RJ7","ST GEORGE'S UNIVERSITY HOSPITALS NHS FOUNDATION TRUST","RJ701","St George's Hospital (Tooting) - RJ701",1633,5917,0.27598445158019269,0.85058175137783221,9.3692590324556027E-2,1132,257,84,61,92,7]
["Q71","RJ7","ST GEORGE'S UNIVERSITY HOSPITALS NHS FOUNDATION TRUST","RJ7XXX","WiC_MIU - RJ7XXX",57,1207,4.7224523612261808E-2,0.8771929824561403,0.10526315789473684,41,9,1,3,3,0]
["Q71","RAS","THE HILLINGDON HOSPITALS NHS FOUNDATION TRUST","RAS01","Hillingdon Hospital - RAS01",111,3328,3.3353365384615384E-2,0.90090090090090091,2.7027027027027029E-2,75,25,7,1,2,1]
["Q71","RAS","THE HILLINGDON HOSPITALS NHS FOUNDATION TRUST","RAS02","Mount Vernon Hospital Site - RAS02",104,2451,4.2431660546715627E-2,0.97115384615384615,0,88,13,3,0,0,0]
["Q71","RKE","THE WHITTINGTON HOSPITAL NHS TRUST","RKEQ4","The Whittington Hospital - RKEQ4",933,6756,0.1380994671403197,0.84030010718113612,0.12004287245444802,596,188,33,34,78,4]
["Q71","RRV","UNIVERSITY COLLEGE LONDON HOSPITALS NHS FOUNDATION TRUST","RRV03","University College Hospital - RRV03",1317,9824,0.13405944625407165,0.85801063022019741,9.5671981776765377E-2,885,245,44,49,77,17]
["Q72","RCF","AIREDALE NHS FOUNDATION TRUST","RCF22","Airedale General Hospital - RCF22",198,3671,5.3936257150640154E-2,0.94444444444444442,2.5252525252525252E-2,139,48,3,2,3,3]
["Q72","RFF","BARNSLEY HOSPITAL NHS FOUNDATION TRUST","RFFAA","Barnsley Hospital NHS Foundation Trust HQ - RFFAA",660,4921,0.13411908148750254,0.83939393939393936,0.10151515151515152,459,95,27,26,41,12]
["Q72","RAE","BRADFORD TEACHING HOSPITALS NHS FOUNDATION TRUST","RAE01","Bradford Royal Infirmary - RAE01",159,8922,1.7821116341627436E-2,0.77358490566037741,3.7735849056603772E-2,83,40,10,6,0,20]
["Q72","RWY","CALDERDALE AND HUDDERSFIELD NHS FOUNDATION TRUST","RWY02","Calderdale Royal Hospital - RWY02",547,4859,0.11257460382794814,0.8756855575868373,8.4095063985374766E-2,384,95,16,13,33,6]
["Q72","RWY","CALDERDALE AND HUDDERSFIELD NHS FOUNDATION TRUST","RWY01","Huddersfield Royal Infirmary - RWY01",473,4627,0.1022260644045818,0.82452431289640593,0.13107822410147993,337,53,16,15,47,5]
["Q72","RP5","DONCASTER AND BASSETLAW TEACHING HOSPITALS NHS FOUNDATION TRUST","RP5BA","Bassetlaw Hospital - RP5BA",124,3450,3.5942028985507246E-2,0.85483870967741937,6.4516129032258063E-2,69,37,7,4,4,3]
["Q72","RP5","DONCASTER AND BASSETLAW TEACHING HOSPITALS NHS FOUNDATION TRUST","RP5DR","Doncaster Royal Infirmary - RP5DR",100,6916,1.4459224985540775E-2,0.95,0.03,83,12,0,3,0,2]
["Q72","RP5","DONCASTER AND BASSETLAW TEACHING HOSPITALS NHS FOUNDATION TRUST","RP5XXX","WiC_MIU - RP5XXX",24,1876,1.279317697228145E-2,0.95833333333333337,4.1666666666666664E-2,21,2,0,0,1,0]
["Q72","RCD","HARROGATE AND DISTRICT NHS FOUNDATION TRUST","RCD01","Harrogate District Hospital - RCD01",210,2546,8.2482325216025137E-2,0.90476190476190477,2.3809523809523808E-2,151,39,11,4,1,4]
["Q72","RCD","HARROGATE AND DISTRICT NHS FOUNDATION TRUST","RCDXXX","WiC_MIU - RCDXXX",10,680,1.4705882352941176E-2,1,0,9,1,0,0,0,0]
["Q72","RWA","HULL AND EAST YORKSHIRE HOSPITALS NHS TRUST","RWA01","Hull Royal Infirmary - RWA01",35,9102,3.8453087233575036E-3,0.74285714285714288,0.17142857142857143,24,2,2,1,5,1]
["Q72","RR8","LEEDS TEACHING HOSPITALS NHS TRUST","RR801","Leeds General Infirmary - RR801",1555,7089,0.21935392862180844,0.87588424437299039,7.3954983922829579E-2,1063,299,53,46,69,25]
["Q72","RR8","LEEDS TEACHING HOSPITALS NHS TRUST","RR813","St James's University Hospital - RR813",1115,4075,0.27361963190184047,0.85470852017937216,8.8789237668161436E-2,675,278,38,33,66,25]
["Q72","RXF","MID YORKSHIRE HOSPITALS NHS TRUST","RXF10","Dewsbury and District Hospital - RXF10",1581,5850,0.27025641025641023,0.95888678051865905,2.0872865275142316E-2,1231,285,21,12,21,11]
["Q72","RXF","MID YORKSHIRE HOSPITALS NHS TRUST","RXF05","Pinderfields General Hospital - RXF05",784,5673,0.13819848404724133,0.94387755102040816,3.0612244897959183E-2,618,122,17,8,16,3]
["Q72","RXF","MID YORKSHIRE HOSPITALS NHS TRUST","RXF03","Pontefract General Infirmary - RXF03",528,3327,0.1587015329125338,0.96212121212121215,2.462121212121212E-2,407,101,6,3,10,1]
["Q72","RJL","NORTHERN LINCOLNSHIRE AND GOOLE NHS FOUNDATION TRUST","RJL30","Diana, Princess Of Wales Hospital - RJL30",268,4095,6.5445665445665449E-2,0.7574626865671642,0.10820895522388059,134,69,27,14,15,9]
["Q72","RJL","NORTHERN LINCOLNSHIRE AND GOOLE NHS FOUNDATION TRUST","RJL32","Scunthorpe General Hospital - RJL32",299,3786,7.8975171685155832E-2,0.76588628762541811,0.11036789297658862,165,64,30,14,19,7]
["Q72","RJL","NORTHERN LINCOLNSHIRE AND GOOLE NHS FOUNDATION TRUST","RJLXXX","WiC_MIU - RJLXXX",86,1391,6.1826024442846871E-2,0.84883720930232553,9.3023255813953487E-2,58,15,4,5,3,1]
["Q72","RCU","SHEFFIELD CHILDREN'S NHS FOUNDATION TRUST","RCUEF","Sheffield Children's Hospital - RCUEF",94,4734,1.9856358259400086E-2,0.94680851063829785,3.1914893617021274E-2,82,7,2,0,3,0]
["Q72","RHQ","SHEFFIELD TEACHING HOSPITALS NHS FOUNDATION TRUST","RHQNG","Northern General Hospital - RHQNG",790,4723,0.16726656785941138,0.83291139240506329,0.10253164556962026,521,137,37,32,49,14]
["Q72","RHQ","SHEFFIELD TEACHING HOSPITALS NHS FOUNDATION TRUST","RHQHH","Royal Hallamshire Hospital - RHQHH",237,816,0.29044117647058826,0.97046413502109707,1.2658227848101266E-2,198,32,1,2,1,3]
["Q72","RHQ","SHEFFIELD TEACHING HOSPITALS NHS FOUNDATION TRUST","RHQXXX","WiC_MIU - RHQXXX",311,1117,0.27842435094001788,0.94855305466237938,1.2861736334405145E-2,259,36,10,1,3,2]
["Q72","RFR","THE ROTHERHAM NHS FOUNDATION TRUST","RFRPA","Rotherham District General Hospital - RFRPA",66,3684,1.7915309446254073E-2,0.95454545454545459,3.0303030303030304E-2,51,12,0,1,1,1]
["Q72","RCB","YORK TEACHING HOSPITAL NHS FOUNDATION TRUST","RCBCA","Scarborough General Hospital - RCBCA",97,1353,7.1692535107169247E-2,0.83505154639175261,0.12371134020618557,60,21,2,4,8,2]
["Q72","RCB","YORK TEACHING HOSPITAL NHS FOUNDATION TRUST","RCB55","York Hospital - RCB55",412,4265,9.6600234466588511E-2,0.84708737864077666,7.281553398058252E-2,250,99,31,14,16,2]
["Q74","RLN","CITY HOSPITALS SUNDERLAND NHS FOUNDATION TRUST","RLNGM","Sunderland Eye Infirmary - RLNGM",331,2409,0.13740141137401413,0.95166163141993954,2.4169184290030211E-2,271,44,5,5,3,3]
["Q74","RLN","CITY HOSPITALS SUNDERLAND NHS FOUNDATION TRUST","RLNGL","Sunderland Royal Hospital - RLNGL",22,5207,4.2250816208949495E-3,0.95454545454545459,0,21,0,0,0,0,1]
["Q74","RLN","CITY HOSPITALS SUNDERLAND NHS FOUNDATION TRUST","RLNXXX","WiC_MIU - RLNXXX",0,2609,0,"NA","NA",0,0,0,0,0,0]
["Q74","RXP","COUNTY DURHAM AND DARLINGTON NHS FOUNDATION TRUST","RXPDA","Darlington Memorial Hospital - RXPDA",748,3020,0.24768211920529801,0.92647058823529416,9.3582887700534752E-3,476,217,31,4,3,17]
["Q74","RXP","COUNTY DURHAM AND DARLINGTON NHS FOUNDATION TRUST","RXPCP","University Hospital Of North Durham - RXPCP",840,3258,0.25782688766114181,0.90595238095238095,3.3333333333333333E-2,459,302,42,14,14,9]
["Q74","RXP","COUNTY DURHAM AND DARLINGTON NHS FOUNDATION TRUST","RXPXXX","WiC_MIU - RXPXXX",1576,6970,0.2261119081779053,0.95685279187817263,1.5228426395939087E-2,1088,420,28,13,11,16]
["Q74","RR7","GATESHEAD HEALTH NHS FOUNDATION TRUST","RR7EN","Queen Elizabeth Hospital - RR7EN",2180,5244,0.41571319603356216,0.95779816513761473,9.1743119266055051E-3,1282,806,59,10,10,13]
["Q74","RR7","GATESHEAD HEALTH NHS FOUNDATION TRUST","RR7XXX","WiC_MIU - RR7XXX",298,2176,0.13694852941176472,0.97315436241610742,2.3489932885906041E-2,263,27,1,2,5,0]
["Q74","RNL","NORTH CUMBRIA UNIVERSITY HOSPITALS NHS TRUST","RNLAY","Cumberland Infirmary - RNLAY",180,2987,6.0261131570137259E-2,0.92222222222222228,3.888888888888889E-2,125,41,6,3,4,1]
["Q74","RNL","NORTH CUMBRIA UNIVERSITY HOSPITALS NHS TRUST","RNLBX","West Cumberland Hospital - RNLBX",27,2209,1.2222725215029425E-2,0.96296296296296291,0,21,5,1,0,0,0]
["Q74","RVW","NORTH TEES AND HARTLEPOOL NHS FOUNDATION TRUST","RVWAA","University Hospital Of Hartlepool - RVWAA",85,3900,2.1794871794871794E-2,0.95294117647058818,1.1764705882352941E-2,73,8,0,0,1,3]
["Q74","RVW","NORTH TEES AND HARTLEPOOL NHS FOUNDATION TRUST","RVWAE","University Hospital Of North Tees - RVWAE",103,8509,1.2104830179809614E-2,0.970873786407767,1.9417475728155338E-2,91,9,0,0,2,1]
["Q74","RTF","NORTHUMBRIA HEALTHCARE NHS FOUNDATION TRUST","RTF86","The Northumbria - RTF86",278,3476,7.9976985040276186E-2,0.78776978417266186,6.83453237410072E-2,187,32,9,7,12,31]
["Q74","RTF","NORTHUMBRIA HEALTHCARE NHS FOUNDATION TRUST","RTFXXX","WiC_MIU - RTFXXX",586,8301,7.0593904348873623E-2,0.94368600682593862,1.877133105802048E-2,440,113,20,4,7,2]
["Q74","RTR","SOUTH TEES HOSPITALS NHS FOUNDATION TRUST","RTR45","Friarage Hospital Site - RTR45",34,1236,2.7508090614886731E-2,0.91176470588235292,2.9411764705882353E-2,27,4,2,0,1,0]
["Q74","RTR","SOUTH TEES HOSPITALS NHS FOUNDATION TRUST","RTRAT","The James Cook University Hospital - RTRAT",438,6883,6.3635042859218366E-2,0.90410958904109584,6.3926940639269403E-2,354,42,14,12,16,0]
["Q74","RTR","SOUTH TEES HOSPITALS NHS FOUNDATION TRUST","RTRXXX","WiC_MIU - RTRXXX",231,2232,0.10349462365591398,0.90909090909090906,5.627705627705628E-2,180,30,8,4,9,0]
["Q74","RE9","SOUTH TYNESIDE NHS FOUNDATION TRUST","RE9GA","South Tyneside District Hospital - RE9GA",137,2887,4.7454104606858331E-2,0.9051094890510949,8.0291970802919707E-2,111,13,0,2,9,2]
["Q74","RTD","THE NEWCASTLE UPON TYNE HOSPITALS NHS FOUNDATION TRUST","RTD02","The Royal Victoria Infirmary - RTD02",1501,13809,0.10869722644652038,0.92138574283810792,3.8640906062624915E-2,1084,299,49,26,32,11]
["Q74","RTX","UNIVERSITY HOSPITALS OF MORECAMBE BAY NHS FOUNDATION TRUST","RTXBU","Furness General Hospital - RTXBU",374,1744,0.21444954128440366,0.88235294117647056,6.684491978609626E-2,278,52,15,11,14,4]
["Q74","RTX","UNIVERSITY HOSPITALS OF MORECAMBE BAY NHS FOUNDATION TRUST","RTX02","Royal Lancaster Infirmary - RTX02",571,2610,0.21877394636015327,0.92119089316987746,5.0788091068301226E-2,444,82,12,5,24,4]
["Q75","REM","AINTREE UNIVERSITY HOSPITAL NHS FOUNDATION TRUST","REM21","University Hospital Aintree - REM21",659,4011,0.16429818000498628,0.83611532625189677,9.8634294385432475E-2,435,116,36,19,46,7]
["Q75","RBS","ALDER HEY CHILDREN'S NHS FOUNDATION TRUST","RBS25","Alder Hey Children's NHS - RBS25",46,4738,9.7087378640776691E-3,0.95652173913043481,0,"*","*","*","*","*","*"]
["Q75","RJR","COUNTESS OF CHESTER HOSPITAL NHS FOUNDATION TRUST","RJR05","Countess Of Chester Hospital - RJR05",625,3569,0.17511908097506304,0.8448,0.1008,431,97,27,22,41,7]
["Q75","RJN","EAST CHESHIRE NHS TRUST","RJN63","Congleton War Memorial Hospital - RJN63",33,110,0.3,0.96969696969696972,3.0303030303030304E-2,27,5,0,1,0,0]
["Q75","RJN","EAST CHESHIRE NHS TRUST","RJN71","Macclesfield District General Hospital - RJN71",568,2738,0.20745069393718044,0.875,8.098591549295775E-2,402,95,19,20,26,6]
["Q75","REP","LIVERPOOL WOMEN'S NHS FOUNDATION TRUST","REPXXX","WiC_MIU - REPXXX",2,890,2.2471910112359553E-3,"*","*","*","*","*","*","*","*"]
["Q75","RBT","MID CHESHIRE HOSPITALS NHS FOUNDATION TRUST","RBT20","Leighton Hospital - RBT20",200,4396,4.5495905368516831E-2,0.93,3.5000000000000003E-2,156,30,7,2,5,0]
["Q75","RBT","MID CHESHIRE HOSPITALS NHS FOUNDATION TRUST","RBTXXX","WiC_MIU - RBTXXX",102,1795,5.682451253481894E-2,0.96078431372549022,0,88,10,4,0,0,0]
["Q75","RQ6","ROYAL LIVERPOOL AND BROADGREEN UNIVERSITY HOSPITALS NHS TRUST","RQ617","The Royal Liverpool University Hospital - RQ617",1126,5489,0.20513754782291857,0.82770870337477798,0.1127886323268206,737,195,49,38,89,18]
["Q75","RVY","SOUTHPORT AND ORMSKIRK HOSPITAL NHS TRUST","RVY02","Ormskirk and District General Hospital - RVY02",165,2069,7.9748670855485745E-2,0.91515151515151516,5.4545454545454543E-2,112,39,4,5,4,1]
["Q75","RVY","SOUTHPORT AND ORMSKIRK HOSPITAL NHS TRUST","RVY01","Southport and Formby District General Hospital - RVY01",48,3052,1.5727391874180863E-2,0.66666666666666663,0.25,24,8,3,4,8,1]
["Q75","RBN","ST HELENS AND KNOWSLEY HOSPITAL SERVICES NHS TRUST","RBN01","Whiston Hospital - RBN01",637,3877,0.16430229558937323,0.89638932496075352,6.4364207221350084E-2,492,79,19,16,25,6]
["Q75","RWW","WARRINGTON AND HALTON HOSPITALS NHS FOUNDATION TRUST","RWWHG","Halton Hospital - RWWHG",83,2578,3.2195500387897598E-2,0.96385542168674698,0,"*","*","*","*","*","*"]
["Q75","RWW","WARRINGTON AND HALTON HOSPITALS NHS FOUNDATION TRUST","RWWWH","Warrington Hospital - RWWWH",3,3841,7.8104660244727932E-4,"*","*","*","*","*","*","*","*"]
["Q75","RBL","WIRRAL UNIVERSITY TEACHING HOSPITAL NHS FOUNDATION TRUST","RBL14","Arrowe Park Hospital - RBL14",724,5589,0.12954016818751118,0.87569060773480667,8.2872928176795577E-2,522,112,26,18,42,4]
["Q76","RJF","BURTON HOSPITALS NHS FOUNDATION TRUST","RJF02","Queen's Hospital, Burton Upon Trent - RJF02",233,3524,6.6118047673098757E-2,0.82403433476394849,0.11158798283261803,128,64,13,14,12,2]
["Q76","RJF","BURTON HOSPITALS NHS FOUNDATION TRUST","RJFXXX","WiC_MIU - RJFXXX",270,5709,4.7293746715712036E-2,0.97037037037037033,2.2222222222222223E-2,219,43,2,4,2,0]
["Q76","RFS","CHESTERFIELD ROYAL HOSPITAL NHS FOUNDATION TRUST","RFSDA","Chesterfield Royal Hospital - RFSDA",208,4506,4.61606746560142E-2,0.81730769230769229,8.6538461538461536E-2,124,46,18,6,12,2]
["Q76","RTG","DERBY TEACHING HOSPITALS NHS FOUNDATION TRUST","RTGFG","Royal Derby Hospital - RTGFG",843,8111,0.10393293058809025,0.81138790035587194,0.1103202846975089,537,147,43,39,54,23]
["Q76","RX1","NOTTINGHAM UNIVERSITY HOSPITALS NHS TRUST","RX1RA","Nottingham University Hospitals NHS Trust - Queen's Medical Centre Campus - RX1RA",1873,9145,0.20481137233460908,0.94287239722370531,2.2423918846769888E-2,1502,264,43,17,25,22]
["Q76","RK5","SHERWOOD FOREST HOSPITALS NHS FOUNDATION TRUST","RK5BC","King's Mill Hospital - RK5BC",689,5773,0.11934869218777065,0.94194484760522501,3.1930333817126268E-2,497,152,15,6,16,3]
["Q76","RK5","SHERWOOD FOREST HOSPITALS NHS FOUNDATION TRUST","RK5XXX","WiC_MIU - RK5XXX",194,1945,9.9742930591259646E-2,0.96907216494845361,1.0309278350515464E-2,157,31,4,0,2,0]
["Q76","RXW","SHREWSBURY AND TELFORD HOSPITAL NHS TRUST","RXWAS","Royal Shrewsbury Hospital - RXWAS",628,3202,0.19612742036227357,0.98248407643312097,3.1847133757961785E-3,550,67,9,2,0,0]
["Q76","RXW","SHREWSBURY AND TELFORD HOSPITAL NHS TRUST","RXWAT","The Princess Royal Hospital - RXWAT",803,3341,0.24034720143669561,0.95267745952677463,4.9813200498132005E-3,552,213,32,0,4,2]
["Q76","RJE","UNIVERSITY HOSPITALS OF NORTH MIDLANDS NHS TRUST","RJE09","County Hospital - RJE09",387,2794,0.13851109520400859,0.73643410852713176,0.16279069767441862,240,45,23,22,41,16]
["Q76","RJE","UNIVERSITY HOSPITALS OF NORTH MIDLANDS NHS TRUST","RJE01","Royal Stoke University Hospital - RJE01",1054,5710,0.18458844133099825,0.71347248576850097,0.18406072106261859,624,128,78,74,120,30]
["Q77","RQ3","BIRMINGHAM WOMEN'S AND CHILDREN'S NHS FOUNDATION TRUST","RQ301","Birmingham Children's Hospital - RQ301",142,4727,3.0040194626613073E-2,0.95774647887323938,2.1126760563380281E-2,124,12,3,0,3,0]
["Q77","RLT","GEORGE ELIOT HOSPITAL NHS TRUST","RLT01","George Eliot Hospital - Acute Services - RLT01",1224,5074,0.24122979897516753,0.86274509803921573,8.9052287581699349E-2,811,245,36,41,68,23]
["Q77","RR1","HEART OF ENGLAND NHS FOUNDATION TRUST","RR105","Good Hope Hospital - RR105",986,5499,0.17930532824149845,0.82657200811359022,0.10851926977687627,598,217,46,32,75,18]
["Q77","RR1","HEART OF ENGLAND NHS FOUNDATION TRUST","RR101","Heartlands Hospital - RR101",1123,8081,0.13896794951119912,0.78272484416740873,0.12555654496883348,633,246,82,55,86,21]
["Q77","RR1","HEART OF ENGLAND NHS FOUNDATION TRUST","RR109","Solihull Hospital - RR109",664,3401,0.1952366950896795,0.91114457831325302,4.6686746987951805E-2,486,119,18,12,19,10]
["Q77","RXK","SANDWELL AND WEST BIRMINGHAM HOSPITALS NHS TRUST","RXK03","Birmingham Midland Eye Centre (Bmec) - RXK03",80,1317,6.0744115413819286E-2,0.73750000000000004,0.22500000000000001,43,16,3,9,9,0]
["Q77","RXK","SANDWELL AND WEST BIRMINGHAM HOSPITALS NHS TRUST","RXK02","City Hospital - RXK02",79,5365,1.472506989748369E-2,0.73417721518987344,0.21518987341772153,46,12,3,5,12,1]
["Q77","RXK","SANDWELL AND WEST BIRMINGHAM HOSPITALS NHS TRUST","RXK01","Sandwell General Hospital - RXK01",171,4943,3.4594375885090026E-2,0.73099415204678364,0.19298245614035087,102,23,11,11,22,2]
["Q77","RXK","SANDWELL AND WEST BIRMINGHAM HOSPITALS NHS TRUST","RXKXXX","WiC_MIU - RXKXXX",0,2416,0,"NA","NA",0,0,0,0,0,0]
["Q77","RJC","SOUTH WARWICKSHIRE NHS FOUNDATION TRUST","RJC02","Warwick Hospital - RJC02",39,3277,1.190112908147696E-2,0.94871794871794868,2.564102564102564E-2,36,1,1,0,1,0]
["Q77","RJC","SOUTH WARWICKSHIRE NHS FOUNDATION TRUST","RJCXXX","WiC_MIU - RJCXXX",67,721,9.2926490984743412E-2,0.95522388059701491,0,56,8,1,0,0,2]
["Q77","RNA","THE DUDLEY GROUP NHS FOUNDATION TRUST","RNA01","Russells Hall Hospital - RNA01",731,4256,0.17175751879699247,0.78796169630642954,0.11217510259917921,452,124,37,28,54,36]
["Q77","RL4","THE ROYAL WOLVERHAMPTON NHS TRUST","RL403","New Cross Hospital - RL403",1496,9190,0.16278563656147987,0.81216577540106949,0.11296791443850267,982,233,76,61,108,36]
["Q77","RL4","THE ROYAL WOLVERHAMPTON NHS TRUST","RL402","The Phoenix Health Centre - RL402",255,2960,8.6148648648648643E-2,0.88627450980392153,7.8431372549019607E-2,169,57,5,5,15,4]
["Q77","RL4","THE ROYAL WOLVERHAMPTON NHS TRUST","RL4XXX","WiC_MIU - RL4XXX",0,708,0,"NA","NA",0,0,0,0,0,0]
["Q77","RRK","UNIVERSITY HOSPITALS BIRMINGHAM NHS FOUNDATION TRUST","RRK02","Queen Elizabeth Hospital - RRK02",1057,6822,0.15493990032248608,0.8486281929990539,9.7445600756859041E-2,732,165,43,32,71,14]
["Q77","RKB","UNIVERSITY HOSPITALS COVENTRY AND WARWICKSHIRE NHS TRUST","RKB01","University Hospital (Coventry) - RKB01",430,2413,0.17820140903439702,0.9,5.8139534883720929E-2,325,62,13,7,18,5]
["Q77","RKB","UNIVERSITY HOSPITALS COVENTRY AND WARWICKSHIRE NHS TRUST","RKBXXX","WiC_MIU - RKBXXX",1331,9356,0.14226165027789653,0.78963185574755823,0.13223140495867769,815,236,75,56,120,29]
["Q77","RBK","WALSALL HEALTHCARE NHS TRUST","RBK02","Manor Hospital - RBK02",554,3569,0.15522555337629587,0.76895306859205781,0.14801444043321299,294,132,31,32,50,15]
["Q77","RWP","WORCESTERSHIRE ACUTE HOSPITALS NHS TRUST","RWP01","Alexandra Hospital - RWP01",13,3134,4.1480536056158262E-3,1,0,13,0,0,0,0,0]
["Q77","RWP","WORCESTERSHIRE ACUTE HOSPITALS NHS TRUST","RWP31","Kidderminster Hospital - RWP31",36,1793,2.0078081427774678E-2,0.97222222222222221,0,30,5,1,0,0,0]
["Q77","RWP","WORCESTERSHIRE ACUTE HOSPITALS NHS TRUST","RWP50","Worcestershire Royal Hospital - RWP50",254,4506,5.6369285397248114E-2,0.90157480314960625,3.937007874015748E-2,173,56,12,1,9,3]
["Q77","RLQ","WYE VALLEY NHS TRUST","RLQ01","Hereford County Hospital - RLQ01",535,2721,0.19661889011392869,0.93831775700934583,2.6168224299065422E-2,459,43,8,5,9,11]
["Q78","RC1","BEDFORD HOSPITAL NHS TRUST","RC110","Bedford Hospital South Wing - RC110",663,3499,0.1894827093455273,0.87481146304675717,7.2398190045248875E-2,456,124,32,18,30,3]
["Q78","RWH","EAST AND NORTH HERTFORDSHIRE NHS TRUST","RWH01","Lister Hospital - RWH01",316,8545,3.6980690462258631E-2,0.92405063291139244,2.2151898734177215E-2,188,104,17,4,3,0]
["Q78","RWH","EAST AND NORTH HERTFORDSHIRE NHS TRUST","RWH20","Queen Elizabeth I I Hospital - RWH20",165,4007,4.1177938607436987E-2,0.96969696969696972,1.2121212121212121E-2,126,34,3,0,2,0]
["Q78","RNQ","KETTERING GENERAL HOSPITAL NHS FOUNDATION TRUST","RNQ51","Kettering General Hospital - RNQ51",114,3766,3.0270844397238449E-2,0.92105263157894735,5.2631578947368418E-2,93,12,3,3,3,0]
["Q78","RC9","LUTON AND DUNSTABLE UNIVERSITY HOSPITAL NHS FOUNDATION TRUST","RC971","Luton and Dunstable Hospital - RC971",237,6772,3.4997046662728883E-2,0.95780590717299574,2.5316455696202531E-2,208,19,2,2,4,2]
["Q78","RD8","MILTON KEYNES UNIVERSITY HOSPITAL NHS FOUNDATION TRUST","RD816","Milton Keynes Hospital - RD816",516,7352,7.0184983677910776E-2,0.83720930232558144,9.4961240310077522E-2,309,123,31,16,33,4]
["Q78","RNS","NORTHAMPTON GENERAL HOSPITAL NHS TRUST","RNS01","Northampton General Hospital (Acute) - RNS01",1261,7478,0.16862797539449051,0.88739095955590797,7.0578905630452021E-2,901,218,43,32,57,10]
["Q78","RWD","UNITED LINCOLNSHIRE HOSPITALS NHS TRUST","RWDLP","Grantham and District Hospital - RWDLP",395,1950,0.20256410256410257,0.90632911392405058,4.810126582278481E-2,299,59,12,7,12,6]
["Q78","RWD","UNITED LINCOLNSHIRE HOSPITALS NHS TRUST","RWDDA","Lincoln County Hospital - RWDDA",905,4886,0.18522308636921817,0.7502762430939226,0.14917127071823205,491,188,68,45,90,23]
["Q78","RWD","UNITED LINCOLNSHIRE HOSPITALS NHS TRUST","RWDLA","Pilgrim Hospital - RWDLA",683,3977,0.171737490570782,0.81405563689604687,0.10541727672035139,408,148,43,35,37,12]
["Q78","RWE","UNIVERSITY HOSPITALS OF LEICESTER NHS TRUST","RWEAA","Leicester Royal Infirmary - RWEAA",1325,14096,9.3998297389330313E-2,0.95773584905660381,1.509433962264151E-2,1121,148,25,6,14,11]
["Q78","RWG","WEST HERTFORDSHIRE HOSPITALS NHS TRUST","RWG08","Hemel Hempstead Hospital - RWG08",322,2725,0.11816513761467889,0.91925465838509313,1.8633540372670808E-2,208,88,19,4,2,1]
["Q78","RWG","WEST HERTFORDSHIRE HOSPITALS NHS TRUST","RWG03","St Albans City Hospital - RWG03",17,1454,1.1691884456671253E-2,0.6470588235294118,0.29411764705882354,9,2,1,4,1,0]
["Q78","RWG","WEST HERTFORDSHIRE HOSPITALS NHS TRUST","RWG02","Watford General Hospital - RWG02",89,5012,1.7757382282521949E-2,0.88764044943820219,7.8651685393258425E-2,64,15,2,3,4,1]
["Q79","RDD","BASILDON AND THURROCK UNIVERSITY HOSPITALS NHS FOUNDATION TRUST","RDDH0","Basildon University Hospital - RDDH0",1398,7399,0.18894445195296661,0.77968526466380539,0.11945636623748211,767,323,101,72,95,40]
["Q79","RGT","CAMBRIDGE UNIVERSITY HOSPITALS NHS FOUNDATION TRUST","RGT01","Addenbrooke's Hospital - RGT01",1325,6198,0.2137786382704098,0.93433962264150938,3.6226415094339624E-2,1000,238,33,23,25,6]
["Q79","RDE","COLCHESTER HOSPITAL UNIVERSITY NHS FOUNDATION TRUST","RDEE4","Colchester General Hospital - RDEE4",912,4718,0.19330224671470964,0.875,8.3333333333333329E-2,660,138,31,26,50,7]
["Q79","RGQ","IPSWICH HOSPITAL NHS TRUST","RGQ02","The Ipswich Hospital NHS Trust - RGQ02",1055,5264,0.20041793313069908,0.76113744075829382,0.15355450236966825,628,175,40,57,105,50]
["Q79","RGP","JAMES PAGET UNIVERSITY HOSPITALS NHS FOUNDATION TRUST","RGP75","James Paget University Hospital - RGP75",580,5656,0.10254596888260255,0.92586206896551726,2.4137931034482758E-2,423,114,20,5,9,9]
["Q79","RQ8","MID ESSEX HOSPITAL SERVICES NHS TRUST","RQ8L0","Broomfield Hospital - RQ8L0",584,5807,0.10056827966247632,0.86472602739726023,8.3904109589041098E-2,378,127,18,24,25,12]
["Q79","RM1","NORFOLK AND NORWICH UNIVERSITY HOSPITALS NHS FOUNDATION TRUST","RM102","Norfolk and Norwich University Hospital - RM102",279,7603,3.6696041036432987E-2,0.93906810035842292,2.8673835125448029E-2,229,33,8,4,4,1]
["Q79","RGN","NORTH WEST ANGLIA NHS FOUNDATION TRUST","RGN90","Hinchingbrooke Hospital - RGN90",289,3285,8.7975646879756467E-2,0.97577854671280273,3.4602076124567475E-3,231,51,2,0,1,4]
["Q79","RGN","NORTH WEST ANGLIA NHS FOUNDATION TRUST","RGN80","Peterborough City Hospital - RGN80",111,5511,2.0141535111594992E-2,0.93693693693693691,3.6036036036036036E-2,65,39,2,0,4,1]
["Q79","RGN","NORTH WEST ANGLIA NHS FOUNDATION TRUST","RGNXXX","WiC_MIU - RGNXXX",48,802,5.9850374064837904E-2,0.97916666666666663,0,45,2,1,0,0,0]
["Q79","RAJ","SOUTHEND UNIVERSITY HOSPITAL NHS FOUNDATION TRUST","RAJ01","Southend Hospital - RAJ01",916,5047,0.18149395680602337,0.87227074235807855,7.4235807860262015E-2,658,141,36,29,39,13]
["Q79","RQW","THE PRINCESS ALEXANDRA HOSPITAL NHS TRUST","RQWG0","Princess Alexandra Hospital - RQWG0",1170,3950,0.29620253164556964,0.89230769230769236,7.0940170940170938E-2,806,238,33,62,21,10]
["Q79","RCX","THE QUEEN ELIZABETH HOSPITAL, KING'S LYNN, NHS FOUNDATION TRUST","RCX70","The Queen Elizabeth Hospital - RCX70",647,3131,0.20664324496965825,0.9412673879443586,2.472952086553323E-2,430,179,12,6,10,10]
["Q79","RGR","WEST SUFFOLK NHS FOUNDATION TRUST","RGR50","West Suffolk Hospital - RGR50",892,2773,0.32167327803822576,0.952914798206278,1.4573991031390135E-2,629,221,21,6,7,8]
["Q80","RVJ","NORTH BRISTOL NHS TRUST","RVJ01","Southmead Hospital - RVJ01",998,5191,0.19225582739356578,0.85771543086172342,9.1182364729458912E-2,721,135,43,36,55,8]
["Q80","RBZ","NORTHERN DEVON HEALTHCARE NHS TRUST","RBZ12","North Devon District Hospital - RBZ12",80,2516,3.1796502384737677E-2,0.71250000000000002,0.22500000000000001,49,8,4,7,11,1]
["Q80","RK9","PLYMOUTH HOSPITALS NHS TRUST","RK950","Derriford Hospital - RK950",1649,6646,0.24811916942521817,0.9375379017586416,1.0309278350515464E-2,1141,405,67,12,5,19]
["Q80","REF","ROYAL CORNWALL HOSPITALS NHS TRUST","REF12","Royal Cornwall Hospital (Treliske) - REF12",590,3298,0.17889630078835658,0.97288135593220337,6.7796610169491523E-3,494,80,9,1,3,3]
["Q80","REF","ROYAL CORNWALL HOSPITALS NHS TRUST","REF01","West Cornwall Hospital (Penzance) - REF01",7,1624,4.3103448275862068E-3,0.8571428571428571,0,6,0,0,0,0,1]
["Q80","RH8","ROYAL DEVON AND EXETER NHS FOUNDATION TRUST","RH801","Royal Devon and Exeter Hospital (Wonford) - RH801",100,3771,2.6518164942985947E-2,0.96,0.01,90,6,1,1,0,2]
["Q80","RBA","TAUNTON AND SOMERSET NHS FOUNDATION TRUST","RBA11","Musgrove Park Hospital - RBA11",143,3839,3.7249283667621778E-2,0.965034965034965,2.097902097902098E-2,128,10,2,2,1,0]
["Q80","RA9","TORBAY AND SOUTH DEVON NHS FOUNDATION TRUST","RA901","Torbay Hospital - RA901",379,4279,8.8572096284178545E-2,0.96569920844327173,1.3192612137203167E-2,309,57,5,2,3,3]
["Q80","RA7","UNIVERSITY HOSPITALS BRISTOL NHS FOUNDATION TRUST","RA708","Bristol Eye Hospital - RA708",429,1889,0.22710428798305982,0.93006993006993011,1.8648018648018648E-2,311,88,12,4,4,10]
["Q80","RA7","UNIVERSITY HOSPITALS BRISTOL NHS FOUNDATION TRUST","RA723","Bristol Royal Hospital For Children - RA723",730,2551,0.28616228929831439,0.85616438356164382,7.3972602739726029E-2,494,131,31,32,22,20]
["Q80","RA7","UNIVERSITY HOSPITALS BRISTOL NHS FOUNDATION TRUST","RA701","Bristol Royal Infirmary - RA701",522,3602,0.14491948917268185,0.75670498084291182,0.16858237547892721,273,122,29,24,64,10]
["Q80","RA3","WESTON AREA HEALTH NHS TRUST","RA301","Weston General Hospital - RA301",165,3872,4.261363636363636E-2,0.9939393939393939,6.0606060606060606E-3,147,17,0,0,1,0]
["Q80","RA4","YEOVIL DISTRICT HOSPITAL NHS FOUNDATION TRUST","RA430","Yeovil District Hospital - RA430",82,2818,2.9098651525904896E-2,0.92682926829268297,4.878048780487805E-2,66,10,1,1,3,1]
["Q81","RTK","ASHFORD AND ST PETER'S HOSPITALS NHS FOUNDATION TRUST","RTK01","St Peter's Hospital - RTK01",86,6150,1.3983739837398375E-2,0.81395348837209303,0.12790697674418605,58,12,2,3,8,3]
["Q81","RXH","BRIGHTON AND SUSSEX UNIVERSITY HOSPITALS NHS TRUST","RXH09","Princess Royal Hospital - RXH09",601,3332,0.18037214885954381,0.8985024958402662,4.6589018302828619E-2,449,91,29,14,14,4]
["Q81","RXH","BRIGHTON AND SUSSEX UNIVERSITY HOSPITALS NHS TRUST","RXH01","Royal Sussex County Hospital - RXH01",1054,5165,0.20406582768635043,0.81973434535104361,0.11195445920303605,677,187,56,51,67,16]
["Q81","RXH","BRIGHTON AND SUSSEX UNIVERSITY HOSPITALS NHS TRUST","RXH07","Sussex Eye Hospital - RXH07",365,1084,0.33671586715867158,0.94794520547945205,3.5616438356164383E-2,303,43,5,7,6,1]
["Q81","RXH","BRIGHTON AND SUSSEX UNIVERSITY HOSPITALS NHS TRUST","RXH06","The Royal Alexandra Children's Hospital - RXH06",295,2242,0.13157894736842105,0.94576271186440675,4.4067796610169491E-2,246,33,2,7,6,1]
["Q81","RN7","DARTFORD AND GRAVESHAM NHS TRUST","RN707","Darent Valley Hospital - RN707",208,4036,5.1536174430128839E-2,0.94711538461538458,2.403846153846154E-2,165,32,6,0,5,0]
["Q81","RVV","EAST KENT HOSPITALS UNIVERSITY NHS FOUNDATION TRUST","RVV02","Buckland Hospital - RVV02",211,1488,0.14180107526881722,0.89099526066350709,7.1090047393364927E-2,169,19,3,4,11,5]
["Q81","RVV","EAST KENT HOSPITALS UNIVERSITY NHS FOUNDATION TRUST","RVVKC","Kent and Canterbury Hospital - RVVKC",370,2231,0.16584491259524878,0.89189189189189189,7.8378378378378383E-2,292,38,5,10,19,6]
["Q81","RVV","EAST KENT HOSPITALS UNIVERSITY NHS FOUNDATION TRUST","RVV09","Queen Elizabeth The Queen Mother Hospital - RVV09",733,4883,0.15011263567479008,0.72714870395634379,0.16916780354706684,400,133,51,44,80,25]
["Q81","RVV","EAST KENT HOSPITALS UNIVERSITY NHS FOUNDATION TRUST","RVV01","William Harvey Hospital (Ashford) - RVV01",757,4546,0.16652001759788826,0.74636723910171732,0.17173051519154559,407,158,52,43,87,10]
["Q81","RXC","EAST SUSSEX HEALTHCARE NHS TRUST","RXC01","Conquest Hospital - RXC01",231,3851,5.9984419631264607E-2,0.82683982683982682,0.12121212121212122,152,39,9,11,17,3]
["Q81","RXC","EAST SUSSEX HEALTHCARE NHS TRUST","RXC02","Eastbourne District General Hospital - RXC02",408,4348,9.3836246550137989E-2,0.87009803921568629,7.3529411764705885E-2,271,84,13,9,21,10]
["Q81","RDU","FRIMLEY HEALTH NHS FOUNDATION TRUST","RDU01","Frimley Park Hospital - RDU01",1313,7140,0.1838935574229692,0.92231530845392229,1.4470677837014471E-2,855,356,69,13,6,14]
["Q81","RDU","FRIMLEY HEALTH NHS FOUNDATION TRUST","RDU50","Wexham Park Hospital - RDU50",1418,6408,0.22128589263420725,0.95627644569816639,2.9619181946403384E-2,1171,185,14,16,26,6]
["Q81","RWF","MAIDSTONE AND TUNBRIDGE WELLS NHS TRUST","RWF03","Maidstone District General Hospital - RWF03",710,4571,0.15532706191205425,0.90704225352112677,3.0985915492957747E-2,468,176,28,14,8,16]
["Q81","RWF","MAIDSTONE AND TUNBRIDGE WELLS NHS TRUST","RWFTW","The Tunbridge Wells Hospital - RWFTW",1152,4659,0.24726336123631681,0.93229166666666663,1.5625E-2,761,313,34,10,8,26]
["Q81","RPA","MEDWAY NHS FOUNDATION TRUST","RPA02","Medway Maritime Hospital - RPA02",914,6254,0.14614646626159258,0.82385120350109409,0.10940919037199125,588,165,47,27,73,14]
["Q81","RA2","ROYAL SURREY COUNTY HOSPITAL NHS FOUNDATION TRUST","RA201","Royal Surrey County Hospital - RA201",813,2558,0.31782642689601254,0.90528905289052886,4.9200492004920049E-2,592,144,28,15,25,9]
["Q81","RTP","SURREY AND SUSSEX HEALTHCARE NHS TRUST","RTP04","East Surrey Hospital - RTP04",1468,5653,0.25968512294356977,0.93801089918256131,2.5885558583106268E-2,1184,193,35,16,22,18]
["Q81","RYR","WESTERN SUSSEX HOSPITALS NHS FOUNDATION TRUST","RYR16","St Richard's Hospital - RYR16",332,4121,8.0562970152875515E-2,0.86445783132530118,0.10240963855421686,224,63,10,12,22,1]
["Q81","RYR","WESTERN SUSSEX HOSPITALS NHS FOUNDATION TRUST","RYR18","Worthing Hospital - RYR18",455,5468,8.3211411850768108E-2,0.85054945054945053,7.032967032967033E-2,307,80,26,14,18,10]
["Q82","RXQ","BUCKINGHAMSHIRE HEALTHCARE NHS TRUST","RXQ02","Stoke Mandeville Hospital - RXQ02",239,4792,4.9874791318864777E-2,0.73221757322175729,0.12552301255230125,112,63,30,8,22,4]
["Q82","RTE","GLOUCESTERSHIRE HOSPITALS NHS FOUNDATION TRUST","RTE01","Cheltenham General Hospital - RTE01",211,1645,0.12826747720364742,0.81516587677725116,0.14691943127962084,137,35,6,12,19,2]
["Q82","RTE","GLOUCESTERSHIRE HOSPITALS NHS FOUNDATION TRUST","RTE03","Gloucestershire Royal Hospital - RTE03",289,2579,0.11205893757270259,0.71280276816609001,0.21107266435986158,156,50,15,22,39,7]
["Q82","RN3","GREAT WESTERN HOSPITALS NHS FOUNDATION TRUST","RN325","The Great Western Hospital - RN325",384,4721,8.1338699428087274E-2,0.8515625,8.8541666666666671E-2,243,84,22,12,22,1]
["Q82","RTH","OXFORD UNIVERSITY HOSPITALS NHS FOUNDATION TRUST","RTH05","Horton General Hospital - RTH05",452,2176,0.20772058823529413,0.86946902654867253,9.2920353982300891E-2,333,60,15,15,27,2]
["Q82","RTH","OXFORD UNIVERSITY HOSPITALS NHS FOUNDATION TRUST","RTH08","John Radcliffe Hospital - RTH08",863,3820,0.22591623036649214,0.83429895712630364,9.8493626882966395E-2,561,159,44,33,52,14]
["Q82","RHW","ROYAL BERKSHIRE NHS FOUNDATION TRUST","RHW03","King Edward Vii Hospital - RHW03",146,809,0.18046971569839307,0.97945205479452058,1.3698630136986301E-2,136,7,1,1,1,0]
["Q82","RHW","ROYAL BERKSHIRE NHS FOUNDATION TRUST","RHW01","Royal Berkshire Hospital - RHW01",99,6496,1.5240147783251232E-2,0.96969696969696972,2.0202020202020204E-2,89,7,1,1,1,0]
["Q82","RD1","ROYAL UNITED HOSPITALS BATH NHS FOUNDATION TRUST","RD130","Royal United Hospital - RD130",855,4478,0.19093345243412238,0.9754385964912281,8.1871345029239772E-3,747,87,14,4,3,0]
["Q82","RNZ","SALISBURY NHS FOUNDATION TRUST","RNZ02","Salisbury District Hospital - RNZ02",73,2872,2.5417827298050141E-2,0.9726027397260274,1.3698630136986301E-2,60,11,1,1,0,0]
["Q83","RMC","BOLTON NHS FOUNDATION TRUST","RMC01","Royal Bolton Hospital - RMC01",975,7404,0.13168557536466774,0.86974358974358978,8.615384615384615E-2,674,174,36,30,54,7]
["Q83","RW3","CENTRAL MANCHESTER UNIVERSITY HOSPITALS NHS FOUNDATION TRUST","RW3RE","Manchester Royal Eye Hospital - RW3RE",265,2235,0.11856823266219239,0.96226415094339623,1.8867924528301886E-2,213,42,4,1,4,1]
["Q83","RW3","CENTRAL MANCHESTER UNIVERSITY HOSPITALS NHS FOUNDATION TRUST","RW3MR","Manchester Royal Infirmary - RW3MR",2081,8529,0.24399108922499707,0.85824123017779919,8.2172032676597784E-2,1096,690,95,96,75,29]
["Q83","RW3","CENTRAL MANCHESTER UNIVERSITY HOSPITALS NHS FOUNDATION TRUST","RW3RC","Royal Manchester Children's Hospital - RW3RC",278,3201,8.6847860043736333E-2,0.9532374100719424,1.0791366906474821E-2,204,61,8,1,2,2]
["Q83","RW3","CENTRAL MANCHESTER UNIVERSITY HOSPITALS NHS FOUNDATION TRUST","RW3SM","St Mary's Hospital - RW3SM",64,962,6.6528066528066532E-2,0.875,4.6875E-2,43,13,4,0,3,1]
["Q83","RW3","CENTRAL MANCHESTER UNIVERSITY HOSPITALS NHS FOUNDATION TRUST","RW3TR","Trafford General Hospital - RW3TR",200,3787,5.2812252442566675E-2,0.99,0.01,186,12,0,1,1,0]
["Q83","RW3","CENTRAL MANCHESTER UNIVERSITY HOSPITALS NHS FOUNDATION TRUST","RW3DH","University Dental Hospital - RW3DH",72,161,0.44720496894409939,0.94444444444444442,0,54,14,3,0,0,1]
["Q83","RW6","PENNINE ACUTE HOSPITALS NHS TRUST","RW601","Fairfield General Hospital - RW601",766,4930,0.15537525354969575,0.87206266318537862,6.5274151436031339E-2,532,136,40,12,38,8]
["Q83","RW6","PENNINE ACUTE HOSPITALS NHS TRUST","RW602","North Manchester General Hospital - RW602",902,6746,0.1337088645123036,0.80931263858093128,0.10753880266075388,550,180,52,24,73,23]
["Q83","RW6","PENNINE ACUTE HOSPITALS NHS TRUST","RW604","Rochdale Infirmary - RW604",604,4134,0.14610546686018383,0.81456953642384111,0.10927152317880795,372,120,41,22,44,5]
["Q83","RW6","PENNINE ACUTE HOSPITALS NHS TRUST","RW603","Royal Oldham Hospital - RW603",879,6735,0.13051224944320713,0.84982935153583616,8.191126279863481E-2,575,172,47,23,49,13]
["Q83","RM3","SALFORD ROYAL NHS FOUNDATION TRUST","RM301","Salford Royal - RM301",785,4041,0.19425884682009403,0.87006369426751595,6.6242038216560509E-2,576,107,37,22,30,13]
["Q83","RWJ","STOCKPORT NHS FOUNDATION TRUST","RWJ09","Stepping Hill Hospital - RWJ09",987,4936,0.19995948136142624,0.90476190476190477,3.9513677811550151E-2,737,156,41,14,25,14]
["Q83","RMP","TAMESIDE AND GLOSSOP INTEGRATED CARE NHS FOUNDATION TRUST","RMP01","Tameside General Hospital - RMP01",790,5825,0.13562231759656651,0.81645569620253167,0.11772151898734177,476,169,33,31,62,19]
["Q83","RM2","UNIVERSITY HOSPITAL OF SOUTH MANCHESTER NHS FOUNDATION TRUST","RM202","Wythenshawe Hospital - RM202",1060,5788,0.18313752591568763,0.88490566037735852,6.2264150943396226E-2,713,225,45,24,42,11]
["Q83","RRF","WRIGHTINGTON, WIGAN AND LEIGH NHS FOUNDATION TRUST","RRF02","Royal Albert Edward Infirmary - RRF02",1724,6578,0.26208574034660992,0.9182134570765661,4.2343387470997682E-2,1333,250,51,38,35,17]
["Q84","RXL","BLACKPOOL TEACHING HOSPITALS NHS FOUNDATION TRUST","RXL01","Blackpool Victoria Hospital - RXL01",748,5416,0.13810930576070901,0.94919786096256686,2.2727272727272728E-2,578,132,13,6,11,8]
["Q84","RXR","EAST LANCASHIRE HOSPITALS NHS TRUST","RXR20","Royal Blackburn Hospital - RXR20",1249,7435,0.1679892400806994,0.78062449959967972,0.12650120096076861,733,242,87,53,105,29]
["Q84","RXN","LANCASHIRE TEACHING HOSPITALS NHS FOUNDATION TRUST","RXN01","Chorley and South Ribble Hospital - RXN01",213,1699,0.12536786344908771,0.91549295774647887,3.7558685446009391E-2,158,37,6,6,2,4]
["Q84","RXN","LANCASHIRE TEACHING HOSPITALS NHS FOUNDATION TRUST","RXN02","Royal Preston Hospital - RXN02",312,3532,8.8335220838052092E-2,0.83974358974358976,7.6923076923076927E-2,214,48,19,11,13,7]

{"sheet":"BS","index":5,"n_rows":240,"n_cols":33,"rows_kept":240,"cut":false,"hidden":true,"merged":[]}
[null,"Sort","Region (LO) Code","Region (LO) name","Trust code","Trust name","Site Code","Site Name",null,"Sort Lists:","Sort range…","Sort range…","Sort range…","Reference Region List:","Code…","Name…","Linked Region List:","Code…","Name…","Reference Lists:","Code…","Code…","Name…","Code…","Name…","Trusts Linked Lists:","Code…","Name…","Sites Linked Lists:","Code…","Name…","Code…","Name…"]
["Region (LO)",1,1,1,"-","-","-","-",null,null,"Region (LO) Code","Region (LO) Code","Region (LO) Code",null,"Q72","NHS England Yorkshire & Humber",null,"Q70","NHS England Central Midlands",null,"Q70","RBD","DORSET COUNTY HOSPITAL NHS FOUNDATION TRUST","RBD01","Dorset County Hospital - RBD01",null,"R1F","AINTREE UNIVERSITY HOSPITAL NHS FOUNDATION TRUST",null,"R1F","AINTREE UNIVERSITY HOSPITAL NHS FOUNDATION TRUST","R1F01","Addenbrooke's Hospital - RGT01"]
["Trusts",1,1,1,1,1,"-","-",null,null,"Region (Local Office)","Trust Code","Trust Code",null,"Q74","NHS England Cumbria & North East",null,"Q71","NHS England Cheshire & Merseyside",null,"Q70","RN5","HAMPSHIRE HOSPITALS NHS FOUNDATION TRUST","RN542","Andover War Memorial Hospital - RN542",null,"R1H","AIREDALE NHS FOUNDATION TRUST",null,"R1H","AIREDALE NHS FOUNDATION TRUST","R1FXXX","Airedale General Hospital - RCF22"]
["Site",1,1,1,1,1,1,1,null,null,"Total Responses","Trust Name","Trust Name",null,"Q75","NHS England Cheshire & Merseyside",null,"Q72","NHS England Cumbria & North East",null,"Q70","RN5","HAMPSHIRE HOSPITALS NHS FOUNDATION TRUST","RN506","Basingstoke and North Hampshire Hospital - RN506",null,"R1K","ALDER HEY CHILDREN'S NHS FOUNDATION TRUST",null,"R1K","ALDER HEY CHILDREN'S NHS FOUNDATION TRUST","R1H12","Alder Hey Children's NHS - RBS25"]
[null,null,null,null,null,null,null,null,null,null,"Total Eligible","Total Responses","Site Code",null,"Q83","NHS England Greater Manchester",null,"Q74","NHS England East",null,"Q70","RN5","HAMPSHIRE HOSPITALS NHS FOUNDATION TRUST","RN541","Royal Hampshire County Hospital - RN541",null,"RA2","ASHFORD AND ST PETER'S HOSPITALS NHS FOUNDATION TRUST",null,"RA2","ASHFORD AND ST PETER'S HOSPITALS NHS FOUNDATION TRUST","R1HKH","Alexandra Hospital - RWP01"]
[null,null,null,null,null,null,null,null,null,null,"Response Rate","Total Eligible","Site Name",null,"Q84","NHS England Lancashire",null,"Q75","NHS England Greater Manchester",null,"Q70","R1F","ISLE OF WIGHT NHS TRUST","R1F01","St Mary's Hospital - R1F01",null,"RA3","BARKING, HAVERING AND REDBRIDGE UNIVERSITY HOSPITALS NHS TRUST",null,"RA3","BARKING, HAVERING AND REDBRIDGE UNIVERSITY HOSPITALS NHS TRUST","R1HM0","Andover War Memorial Hospital - RN542"]
[null,null,null,null,null,null,null,null,null,null,"Percentage Recommended","Response Rate","Total Responses",null,"Q76","NHS England North Midlands",null,"Q76","NHS England Lancashire",null,"Q70","R1F","ISLE OF WIGHT NHS TRUST","R1FXXX","WiC_MIU - R1FXXX",null,"RA4","BARNSLEY HOSPITAL NHS FOUNDATION TRUST",null,"RA4","BARNSLEY HOSPITAL NHS FOUNDATION TRUST","R1HNH","Arrowe Park Hospital - RBL14"]
[null,null,null,null,null,null,null,null,null,null,"Percentage Not Recommended","Percentage Recommended","Total Eligible",null,"Q77","NHS England West Midlands",null,"Q77","NHS England London",null,"Q70","RD3","POOLE HOSPITAL NHS FOUNDATION TRUST","RD304","Poole General Hospital NHS Trust HQ - RD304",null,"RA7","BARTS HEALTH NHS TRUST",null,"RA7","BARTS HEALTH NHS TRUST","R1HXXX","Barnet Hospital - RAL26"]
[null,null,null,null,null,null,null,null,null,null,"Extremely Likely","Percentage Not Recommended","Response Rate",null,"Q78","NHS England Central Midlands",null,"Q78","NHS England North Midlands",null,"Q70","RHU","PORTSMOUTH HOSPITALS NHS TRUST","RHU03","Queen Alexandra Hospital - RHU03",null,"RA9","BASILDON AND THURROCK UNIVERSITY HOSPITALS NHS FOUNDATION TRUST",null,"RA9","BASILDON AND THURROCK UNIVERSITY HOSPITALS NHS FOUNDATION TRUST","R1K01","Barnsley Hospital NHS Foundation Trust HQ - RFFAA"]
[null,null,null,null,null,null,null,null,null,null,"Likely","Extremely Likely","Percentage Recommended",null,"Q79","NHS England East",null,"Q79","NHS England South Central",null,"Q70","RHU","PORTSMOUTH HOSPITALS NHS TRUST","RHUXXX","WiC_MIU - RHUXXX",null,"RAE","BEDFORD HOSPITAL NHS TRUST",null,"RAE","BEDFORD HOSPITAL NHS TRUST","R1K04","Basildon University Hospital - RDDH0"]
[null,null,null,null,null,null,null,null,null,null,"Neither","Likely","Percentage Not Recommended",null,"Q80","NHS England South West",null,"Q80","NHS England South East",null,"Q70","RDZ","THE ROYAL BOURNEMOUTH AND CHRISTCHURCH HOSPITALS NHS FOUNDATION TRUST","RDZ20","Royal Bournemouth General Hospital - RDZ20",null,"RAJ","BIRMINGHAM WOMEN'S AND CHILDREN'S NHS FOUNDATION TRUST",null,"RAJ","BIRMINGHAM WOMEN'S AND CHILDREN'S NHS FOUNDATION TRUST","R1KXXX","Basingstoke and North Hampshire Hospital - RN506"]
[null,null,null,null,null,null,null,null,null,null,"Unlikely","Neither","Extremely Likely",null,"Q81","NHS England South East",null,"Q81","NHS England South West",null,"Q70","RHM","UNIVERSITY HOSPITAL SOUTHAMPTON NHS FOUNDATION TRUST","RHM01","Southampton General Hospital - RHM01",null,"RAL","BLACKPOOL TEACHING HOSPITALS NHS FOUNDATION TRUST",null,"RAL","BLACKPOOL TEACHING HOSPITALS NHS FOUNDATION TRUST","RA201","Bassetlaw Hospital - RP5BA"]
[null,null,null,null,null,null,null,null,null,null,"Extremely Unlikely","Unlikely","Likely",null,"Q82","NHS England South Central",null,"Q82","NHS England Wessex",null,"Q71","RF4","BARKING, HAVERING AND REDBRIDGE UNIVERSITY HOSPITALS NHS TRUST","RF4DG","King George Hospital - RF4DG",null,"RAP","BOLTON NHS FOUNDATION TRUST",null,"RAP","BOLTON NHS FOUNDATION TRUST","RA301","Bedford Hospital South Wing - RC110"]
[null,null,null,null,null,null,null,null,null,null,"Don't Know","Extremely Unlikely","Neither",null,"Q70","NHS England Wessex",null,"Q83","NHS England West Midlands",null,"Q71","RF4","BARKING, HAVERING AND REDBRIDGE UNIVERSITY HOSPITALS NHS TRUST","RF4QH","Queen's Hospital - RF4QH",null,"RAS","BRADFORD TEACHING HOSPITALS NHS FOUNDATION TRUST",null,"RAS","BRADFORD TEACHING HOSPITALS NHS FOUNDATION TRUST","RA430","Birmingham Children's Hospital - RQ301"]
[null,null,null,null,null,null,null,null,null,null,null,"Don't Know","Unlikely",null,"Q71","NHS England London",null,"Q84","NHS England Yorkshire & Humber",null,"Q71","R1H","BARTS HEALTH NHS TRUST","R1HNH","Newham General Hospital - R1HNH",null,"RAX","BRIGHTON AND SUSSEX UNIVERSITY HOSPITALS NHS TRUST",null,"RAX","BRIGHTON AND SUSSEX UNIVERSITY HOSPITALS NHS TRUST","RA701","Birmingham Midland Eye Centre (Bmec) - RXK03"]
[null,null,null,null,null,null,null,null,null,null,null,"SMS/Text / Smartphone App","Extremely Unlikely",null,null,null,null,null,null,null,"Q71","R1H","BARTS HEALTH NHS TRUST","R1HM0","St Bartholomew's Hospital - R1HM0",null,"RBA","BUCKINGHAMSHIRE HEALTHCARE NHS TRUST",null,"RBA","BUCKINGHAMSHIRE HEALTHCARE NHS TRUST","RA708","Blackpool Victoria Hospital - RXL01"]
[null,null,null,null,null,null,null,null,null,null,null,"Electronic tablet/kiosk at point of discharge","Don't Know",null,null,null,null,null,null,null,"Q71","R1H","BARTS HEALTH NHS TRUST","R1H12","The Royal London Hospital - R1H12",null,"RBD","BURTON HOSPITALS NHS FOUNDATION TRUST",null,"RBD","BURTON HOSPITALS NHS FOUNDATION TRUST","RA723","Bradford Royal Infirmary - RAE01"]
[null,null,null,null,null,null,null,null,null,null,null,"Paper / postcard at point of discharge",null,null,null,null,null,null,null,null,"Q71","R1H","BARTS HEALTH NHS TRUST","R1HKH","Whipps Cross University Hospital - R1HKH",null,"RBK","CALDERDALE AND HUDDERSFIELD NHS FOUNDATION TRUST",null,"RBK","CALDERDALE AND HUDDERSFIELD NHS FOUNDATION TRUST","RA901","Bristol Eye Hospital - RA708"]
[null,null,null,null,null,null,null,null,null,null,null,"Paper survey sent to the patients home",null,null,null,null,null,null,null,null,"Q71","R1H","BARTS HEALTH NHS TRUST","R1HXXX","WiC_MIU - R1HXXX",null,"RBL","CAMBRIDGE UNIVERSITY HOSPITALS NHS FOUNDATION TRUST",null,"RBL","CAMBRIDGE UNIVERSITY HOSPITALS NHS FOUNDATION TRUST","RAE01","Bristol Royal Hospital For Children - RA723"]
[null,null,null,null,null,null,null,null,null,null,null,"Telephone survey once patient is home",null,null,null,null,null,null,null,null,"Q71","RQM","CHELSEA AND WESTMINSTER HOSPITAL NHS FOUNDATION TRUST","RQM01","Chelsea and Westminster Hospital - RQM01",null,"RBN","CENTRAL MANCHESTER UNIVERSITY HOSPITALS NHS FOUNDATION TRUST",null,"RBN","CENTRAL MANCHESTER UNIVERSITY HOSPITALS NHS FOUNDATION TRUST","RAJ01","Bristol Royal Infirmary - RA701"]
[null,null,null,null,null,null,null,null,null,null,null,"Online survey once patient is home",null,null,null,null,null,null,null,null,"Q71","RQM","CHELSEA AND WESTMINSTER HOSPITAL NHS FOUNDATION TRUST","RQM91","West Middlesex University Hospital - RQM91",null,"RBS","CHELSEA AND WESTMINSTER HOSPITAL NHS FOUNDATION TRUST",null,"RBS","CHELSEA AND WESTMINSTER HOSPITAL NHS FOUNDATION TRUST","RAL01","Broomfield Hospital - RQ8L0"]
[null,null,null,null,null,null,null,null,null,null,null,"Other",null,null,null,null,null,null,null,null,"Q71","RQM","CHELSEA AND WESTMINSTER HOSPITAL NHS FOUNDATION TRUST","RQMXXX","WiC_MIU - RQMXXX",null,"RBT","CHESTERFIELD ROYAL HOSPITAL NHS FOUNDATION TRUST",null,"RBT","CHESTERFIELD ROYAL HOSPITAL NHS FOUNDATION TRUST","RAL26","Buckland Hospital - RVV02"]
[null,null,null,null,null,null,null,null,null,null,null,null,null,null,null,null,null,null,null,null,"Q71","RJ6","CROYDON HEALTH SERVICES NHS TRUST","RJ611","Croydon University Hospital - RJ611",null,"RBZ","CITY HOSPITALS SUNDERLAND NHS FOUNDATION TRUST",null,"RBZ","CITY HOSPITALS SUNDERLAND NHS FOUNDATION TRUST","RAPNM","Calderdale Royal Hospital - RWY02"]
[null,null,null,null,null,null,null,null,null,null,null,null,null,null,null,null,null,null,null,null,"Q71","RJ6","CROYDON HEALTH SERVICES NHS TRUST","RJ6XXX","WiC_MIU - RJ6XXX",null,"RC1","COLCHESTER HOSPITAL UNIVERSITY NHS FOUNDATION TRUST",null,"RC1","COLCHESTER HOSPITAL UNIVERSITY NHS FOUNDATION TRUST","RAS01","Charing Cross Hospital - RYJ02"]
[null,null,null,null,null,null,null,null,null,null,null,null,null,null,null,null,null,null,null,null,"Q71","RVR","EPSOM AND ST HELIER UNIVERSITY HOSPITALS NHS TRUST","RVR50","Epsom Hospital - RVR50",null,"RC9","COUNTESS OF CHESTER HOSPITAL NHS FOUNDATION TRUST",null,"RC9","COUNTESS OF CHESTER HOSPITAL NHS FOUNDATION TRUST","RAS02","Chelsea and Westminster Hospital - RQM01"]
[null,null,null,null,null,null,null,null,null,null,null,null,null,null,null,null,null,null,null,null,"Q71","RVR","EPSOM AND ST HELIER UNIVERSITY HOSPITALS NHS TRUST","RVR05","St Helier Hospital - RVR05",null,"RCB","COUNTY DURHAM AND DARLINGTON NHS FOUNDATION TRUST",null,"RCB","COUNTY DURHAM AND DARLINGTON NHS FOUNDATION TRUST","RAX01","Cheltenham General Hospital - RTE01"]
[null,null,null,null,null,null,null,null,null,null,null,null,null,null,null,null,null,null,null,null,"Q71","RJ1","GUY'S AND ST THOMAS' NHS FOUNDATION TRUST","RJ122","St Thomas' Hospital - RJ122",null,"RCD","CROYDON HEALTH SERVICES NHS TRUST",null,"RCD","CROYDON HEALTH SERVICES NHS TRUST","RBA11","Chesterfield Royal Hospital - RFSDA"]
[null,null,null,null,null,null,null,null,null,null,null,null,null,null,null,null,null,null,null,null,"Q71","RJ1","GUY'S AND ST THOMAS' NHS FOUNDATION TRUST","RJ1XXX","WiC_MIU - RJ1XXX",null,"RCF","DARTFORD AND GRAVESHAM NHS TRUST",null,"RCF","DARTFORD AND GRAVESHAM NHS TRUST","RBD01","Chorley and South Ribble Hospital - RXN01"]
[null,null,null,null,null,null,null,null,null,null,null,null,null,null,null,null,null,null,null,null,"Q71","RQX","HOMERTON UNIVERSITY HOSPITAL NHS FOUNDATION TRUST","RQXM1","Homerton University Hospital - RQXM1",null,"RCU","DERBY TEACHING HOSPITALS NHS FOUNDATION TRUST",null,"RCU","DERBY TEACHING HOSPITALS NHS FOUNDATION TRUST","RBK02","City Hospital - RXK02"]
[null,null,null,null,null,null,null,null,null,null,null,null,null,null,null,null,null,null,null,null,"Q71","RYJ","IMPERIAL COLLEGE HEALTHCARE NHS TRUST","RYJ02","Charing Cross Hospital - RYJ02",null,"RCX","DONCASTER AND BASSETLAW TEACHING HOSPITALS NHS FOUNDATION TRUST",null,"RCX","DONCASTER AND BASSETLAW TEACHING HOSPITALS NHS FOUNDATION TRUST","RBL14","Colchester General Hospital - RDEE4"]
[null,null,null,null,null,null,null,null,null,null,null,null,null,null,null,null,null,null,null,null,"Q71","RYJ","IMPERIAL COLLEGE HEALTHCARE NHS TRUST","RYJ01","St Mary's Hospital (HQ) - RYJ01",null,"RD1","DORSET COUNTY HOSPITAL NHS FOUNDATION TRUST",null,"RD1","DORSET COUNTY HOSPITAL NHS FOUNDATION TRUST","RBN01","Congleton War Memorial Hospital - RJN63"]
[null,null,null,null,null,null,null,null,null,null,null,null,null,null,null,null,null,null,null,null,"Q71","RYJ","IMPERIAL COLLEGE HEALTHCARE NHS TRUST","RYJ07","Western Eye Hospital - RYJ07",null,"RD3","EAST AND NORTH HERTFORDSHIRE NHS TRUST",null,"RD3","EAST AND NORTH HERTFORDSHIRE NHS TRUST","RBS25","Conquest Hospital - RXC01"]
[null,null,null,null,null,null,null,null,null,null,null,null,null,null,null,null,null,null,null,null,"Q71","RYJ","IMPERIAL COLLEGE HEALTHCARE NHS TRUST","RYJXXX","WiC_MIU - RYJXXX",null,"RD8","EAST CHESHIRE NHS TRUST",null,"RD8","EAST CHESHIRE NHS TRUST","RBT20","Countess Of Chester Hospital - RJR05"]
[null,null,null,null,null,null,null,null,null,null,null,null,null,null,null,null,null,null,null,null,"Q71","RJZ","KING'S COLLEGE HOSPITAL NHS FOUNDATION TRUST","RJZ33","Kings College Dental Hospital - RJZ33",null,"RDD","EAST KENT HOSPITALS UNIVERSITY NHS FOUNDATION TRUST",null,"RDD","EAST KENT HOSPITALS UNIVERSITY NHS FOUNDATION TRUST","RBTXXX","County Hospital - RJE09"]
[null,null,null,null,null,null,null,null,null,null,null,null,null,null,null,null,null,null,null,null,"Q71","RJZ","KING'S COLLEGE HOSPITAL NHS FOUNDATION TRUST","RJZ01","King's College Hospital (Denmark Hill) - RJZ01",null,"RDE","EAST LANCASHIRE HOSPITALS NHS TRUST",null,"RDE","EAST LANCASHIRE HOSPITALS NHS TRUST","RBZ12","Croydon University Hospital - RJ611"]
[null,null,null,null,null,null,null,null,null,null,null,null,null,null,null,null,null,null,null,null,"Q71","RJZ","KING'S COLLEGE HOSPITAL NHS FOUNDATION TRUST","RJZ30","Princess Royal University Hospital - RJZ30",null,"RDU","EAST SUSSEX HEALTHCARE NHS TRUST",null,"RDU","EAST SUSSEX HEALTHCARE NHS TRUST","RC110","Cumberland Infirmary - RNLAY"]
[null,null,null,null,null,null,null,null,null,null,null,null,null,null,null,null,null,null,null,null,"Q71","RAX","KINGSTON HOSPITAL NHS FOUNDATION TRUST","RAX01","Kingston Hospital - RAX01",null,"RDZ","EPSOM AND ST HELIER UNIVERSITY HOSPITALS NHS TRUST",null,"RDZ","EPSOM AND ST HELIER UNIVERSITY HOSPITALS NHS TRUST","RC971","Darent Valley Hospital - RN707"]
[null,null,null,null,null,null,null,null,null,null,null,null,null,null,null,null,null,null,null,null,"Q71","RJ2","LEWISHAM AND GREENWICH NHS TRUST","RJ231","Queen Elizabeth Hospital - RJ231",null,"RE9","FRIMLEY HEALTH NHS FOUNDATION TRUST",null,"RE9","FRIMLEY HEALTH NHS FOUNDATION TRUST","RCB55","Darlington Memorial Hospital - RXPDA"]
[null,null,null,null,null,null,null,null,null,null,null,null,null,null,null,null,null,null,null,null,"Q71","RJ2","LEWISHAM AND GREENWICH NHS TRUST","RJ224","University Hospital Lewisham - RJ224",null,"REF","GATESHEAD HEALTH NHS FOUNDATION TRUST",null,"REF","GATESHEAD HEALTH NHS FOUNDATION TRUST","RCBCA","Derriford Hospital - RK950"]
[null,null,null,null,null,null,null,null,null,null,null,null,null,null,null,null,null,null,null,null,"Q71","R1K","LONDON NORTH WEST HEALTHCARE NHS TRUST","R1K04","Ealing Hospital - R1K04",null,"REM","GEORGE ELIOT HOSPITAL NHS TRUST",null,"REM","GEORGE ELIOT HOSPITAL NHS TRUST","RCD01","Dewsbury and District Hospital - RXF10"]
[null,null,null,null,null,null,null,null,null,null,null,null,null,null,null,null,null,null,null,null,"Q71","R1K","LONDON NORTH WEST HEALTHCARE NHS TRUST","R1K01","Northwick Park Hospital - R1K01",null,"REP","GLOUCESTERSHIRE HOSPITALS NHS FOUNDATION TRUST",null,"REP","GLOUCESTERSHIRE HOSPITALS NHS FOUNDATION TRUST","RCDXXX","Diana, Princess Of Wales Hospital - RJL30"]
[null,null,null,null,null,null,null,null,null,null,null,null,null,null,null,null,null,null,null,null,"Q71","R1K","LONDON NORTH WEST HEALTHCARE NHS TRUST","R1KXXX","WiC_MIU - R1KXXX",null,"RF4","GREAT WESTERN HOSPITALS NHS FOUNDATION TRUST",null,"RF4","GREAT WESTERN HOSPITALS NHS FOUNDATION TRUST","RCF22","Doncaster Royal Infirmary - RP5DR"]
[null,null,null,null,null,null,null,null,null,null,null,null,null,null,null,null,null,null,null,null,"Q71","RP6","MOORFIELDS EYE HOSPITAL NHS FOUNDATION TRUST","RP601","Moorfields Eye Hospital (City Road) - RP601",null,"RFF","GUY'S AND ST THOMAS' NHS FOUNDATION TRUST",null,"RFF","GUY'S AND ST THOMAS' NHS FOUNDATION TRUST","RCUEF","Dorset County Hospital - RBD01"]
[null,null,null,null,null,null,null,null,null,null,null,null,null,null,null,null,null,null,null,null,"Q71","RAP","NORTH MIDDLESEX UNIVERSITY HOSPITAL NHS TRUST","RAPNM","North Middlesex Hospital - RAPNM",null,"RFR","HAMPSHIRE HOSPITALS NHS FOUNDATION TRUST",null,"RFR","HAMPSHIRE HOSPITALS NHS FOUNDATION TRUST","RCX70","Ealing Hospital - R1K04"]
[null,null,null,null,null,null,null,null,null,null,null,null,null,null,null,null,null,null,null,null,"Q71","RAL","ROYAL FREE LONDON NHS FOUNDATION TRUST","RAL26","Barnet Hospital - RAL26",null,"RFS","HARROGATE AND DISTRICT NHS FOUNDATION TRUST",null,"RFS","HARROGATE AND DISTRICT NHS FOUNDATION TRUST","RD130","East Surrey Hospital - RTP04"]
[null,null,null,null,null,null,null,null,null,null,null,null,null,null,null,null,null,null,null,null,"Q71","RAL","ROYAL FREE LONDON NHS FOUNDATION TRUST","RAL01","Royal Free Hospital - RAL01",null,"RGN","HEART OF ENGLAND NHS FOUNDATION TRUST",null,"RGN","HEART OF ENGLAND NHS FOUNDATION TRUST","RD304","Eastbourne District General Hospital - RXC02"]
[null,null,null,null,null,null,null,null,null,null,null,null,null,null,null,null,null,null,null,null,"Q71","RJ7","ST GEORGE'S UNIVERSITY HOSPITALS NHS FOUNDATION TRUST","RJ701","St George's Hospital (Tooting) - RJ701",null,"RGP","HOMERTON UNIVERSITY HOSPITAL NHS FOUNDATION TRUST",null,"RGP","HOMERTON UNIVERSITY HOSPITAL NHS FOUNDATION TRUST","RD816","Epsom Hospital - RVR50"]
[null,null,null,null,null,null,null,null,null,null,null,null,null,null,null,null,null,null,null,null,"Q71","RJ7","ST GEORGE'S UNIVERSITY HOSPITALS NHS FOUNDATION TRUST","RJ7XXX","WiC_MIU - RJ7XXX",null,"RGQ","HULL AND EAST YORKSHIRE HOSPITALS NHS TRUST",null,"RGQ","HULL AND EAST YORKSHIRE HOSPITALS NHS TRUST","RDDH0","Fairfield General Hospital - RW601"]
[null,null,null,null,null,null,null,null,null,null,null,null,null,null,null,null,null,null,null,null,"Q71","RAS","THE HILLINGDON HOSPITALS NHS FOUNDATION TRUST","RAS01","Hillingdon Hospital - RAS01",null,"RGR","IMPERIAL COLLEGE HEALTHCARE NHS TRUST",null,"RGR","IMPERIAL COLLEGE HEALTHCARE NHS TRUST","RDEE4","Friarage Hospital Site - RTR45"]
[null,null,null,null,null,null,null,null,null,null,null,null,null,null,null,null,null,null,null,null,"Q71","RAS","THE HILLINGDON HOSPITALS NHS FOUNDATION TRUST","RAS02","Mount Vernon Hospital Site - RAS02",null,"RGT","IPSWICH HOSPITAL NHS TRUST",null,"RGT","IPSWICH HOSPITAL NHS TRUST","RDU01","Frimley Park Hospital - RDU01"]
[null,null,null,null,null,null,null,null,null,null,null,null,null,null,null,null,null,null,null,null,"Q71","RKE","THE WHITTINGTON HOSPITAL NHS TRUST","RKEQ4","The Whittington Hospital - RKEQ4",null,"RH8","ISLE OF WIGHT NHS TRUST",null,"RH8","ISLE OF WIGHT NHS TRUST","RDU50","Furness General Hospital - RTXBU"]
[null,null,null,null,null,null,null,null,null,null,null,null,null,null,null,null,null,null,null,null,"Q71","RRV","UNIVERSITY COLLEGE LONDON HOSPITALS NHS FOUNDATION TRUST","RRV03","University College Hospital - RRV03",null,"RHM","JAMES PAGET UNIVERSITY HOSPITALS NHS FOUNDATION TRUST",null,"RHM","JAMES PAGET UNIVERSITY HOSPITALS NHS FOUNDATION TRUST","RDZ20","George Eliot Hospital - Acute Services - RLT01"]
[null,null,null,null,null,null,null,null,null,null,null,null,null,null,null,null,null,null,null,null,"Q72","RCF","AIREDALE NHS FOUNDATION TRUST","RCF22","Airedale General Hospital - RCF22",null,"RHQ","KETTERING GENERAL HOSPITAL NHS FOUNDATION TRUST",null,"RHQ","KETTERING GENERAL HOSPITAL NHS FOUNDATION TRUST","RE9GA","Gloucestershire Royal Hospital - RTE03"]
[null,null,null,null,null,null,null,null,null,null,null,null,null,null,null,null,null,null,null,null,"Q72","RFF","BARNSLEY HOSPITAL NHS FOUNDATION TRUST","RFFAA","Barnsley Hospital NHS Foundation Trust HQ - RFFAA",null,"RHU","KING'S COLLEGE HOSPITAL NHS FOUNDATION TRUST",null,"RHU","KING'S COLLEGE HOSPITAL NHS FOUNDATION TRUST","REF01","Good Hope Hospital - RR105"]
[null,null,null,null,null,null,null,null,null,null,null,null,null,null,null,null,null,null,null,null,"Q72","RAE","BRADFORD TEACHING HOSPITALS NHS FOUNDATION TRUST","RAE01","Bradford Royal Infirmary - RAE01",null,"RHW","KINGSTON HOSPITAL NHS FOUNDATION TRUST",null,"RHW","KINGSTON HOSPITAL NHS FOUNDATION TRUST","REF12","Grantham and District Hospital - RWDLP"]
[null,null,null,null,null,null,null,null,null,null,null,null,null,null,null,null,null,null,null,null,"Q72","RWY","CALDERDALE AND HUDDERSFIELD NHS FOUNDATION TRUST","RWY02","Calderdale Royal Hospital - RWY02",null,"RJ1","LANCASHIRE TEACHING HOSPITALS NHS FOUNDATION TRUST",null,"RJ1","LANCASHIRE TEACHING HOSPITALS NHS FOUNDATION TRUST","REM21","Halton Hospital - RWWHG"]
[null,null,null,null,null,null,null,null,null,null,null,null,null,null,null,null,null,null,null,null,"Q72","RWY","CALDERDALE AND HUDDERSFIELD NHS FOUNDATION TRUST","RWY01","Huddersfield Royal Infirmary - RWY01",null,"RJ2","LEEDS TEACHING HOSPITALS NHS TRUST",null,"RJ2","LEEDS TEACHING HOSPITALS NHS TRUST","REPXXX","Harrogate District Hospital - RCD01"]
[null,null,null,null,null,null,null,null,null,null,null,null,null,null,null,null,null,null,null,null,"Q72","RP5","DONCASTER AND BASSETLAW TEACHING HOSPITALS NHS FOUNDATION TRUST","RP5BA","Bassetlaw Hospital - RP5BA",null,"RJ6","LEWISHAM AND GREENWICH NHS TRUST",null,"RJ6","LEWISHAM AND GREENWICH NHS TRUST","RF4DG","Heartlands Hospital - RR101"]
[null,null,null,null,null,null,null,null,null,null,null,null,null,null,null,null,null,null,null,null,"Q72","RP5","DONCASTER AND BASSETLAW TEACHING HOSPITALS NHS FOUNDATION TRUST","RP5DR","Doncaster Royal Infirmary - RP5DR",null,"RJ7","LIVERPOOL WOMEN'S NHS FOUNDATION TRUST",null,"RJ7","LIVERPOOL WOMEN'S NHS FOUNDATION TRUST","RF4QH","Hemel Hempstead Hospital - RWG08"]
[null,null,null,null,null,null,null,null,null,null,null,null,null,null,null,null,null,null,null,null,"Q72","RP5","DONCASTER AND BASSETLAW TEACHING HOSPITALS NHS FOUNDATION TRUST","RP5XXX","WiC_MIU - RP5XXX",null,"RJC","LONDON NORTH WEST HEALTHCARE NHS TRUST",null,"RJC","LONDON NORTH WEST HEALTHCARE NHS TRUST","RFFAA","Hereford County Hospital - RLQ01"]
[null,null,null,null,null,null,null,null,null,null,null,null,null,null,null,null,null,null,null,null,"Q72","RCD","HARROGATE AND DISTRICT NHS FOUNDATION TRUST","RCD01","Harrogate District Hospital - RCD01",null,"RJE","LUTON AND DUNSTABLE UNIVERSITY HOSPITAL NHS FOUNDATION TRUST",null,"RJE","LUTON AND DUNSTABLE UNIVERSITY HOSPITAL NHS FOUNDATION TRUST","RFRPA","Hillingdon Hospital - RAS01"]
[null,null,null,null,null,null,null,null,null,null,null,null,null,null,null,null,null,null,null,null,"Q72","RCD","HARROGATE AND DISTRICT NHS FOUNDATION TRUST","RCDXXX","WiC_MIU - RCDXXX",null,"RJF","MAIDSTONE AND TUNBRIDGE WELLS NHS TRUST",null,"RJF","MAIDSTONE AND TUNBRIDGE WELLS NHS TRUST","RFSDA","Hinchingbrooke Hospital - RGN90"]
[null,null,null,null,null,null,null,null,null,null,null,null,null,null,null,null,null,null,null,null,"Q72","RWA","HULL AND EAST YORKSHIRE HOSPITALS NHS TRUST","RWA01","Hull Royal Infirmary - RWA01",null,"RJL","MEDWAY NHS FOUNDATION TRUST",null,"RJL","MEDWAY NHS FOUNDATION TRUST","RGN80","Homerton University Hospital - RQXM1"]
[null,null,null,null,null,null,null,null,null,null,null,null,null,null,null,null,null,null,null,null,"Q72","RR8","LEEDS TEACHING HOSPITALS NHS TRUST","RR801","Leeds General Infirmary - RR801",null,"RJN","MID CHESHIRE HOSPITALS NHS FOUNDATION TRUST",null,"RJN","MID CHESHIRE HOSPITALS NHS FOUNDATION TRUST","RGN90","Horton General Hospital - RTH05"]
[null,null,null,null,null,null,null,null,null,null,null,null,null,null,null,null,null,null,null,null,"Q72","RR8","LEEDS TEACHING HOSPITALS NHS TRUST","RR813","St James's University Hospital - RR813",null,"RJR","MID ESSEX HOSPITAL SERVICES NHS TRUST",null,"RJR","MID ESSEX HOSPITAL SERVICES NHS TRUST","RGNXXX","Huddersfield Royal Infirmary - RWY01"]
[null,null,null,null,null,null,null,null,null,null,null,null,null,null,null,null,null,null,null,null,"Q72","RXF","MID YORKSHIRE HOSPITALS NHS TRUST","RXF10","Dewsbury and District Hospital - RXF10",null,"RJZ","MID YORKSHIRE HOSPITALS NHS TRUST",null,"RJZ","MID YORKSHIRE HOSPITALS NHS TRUST","RGP75","Hull Royal Infirmary - RWA01"]
[null,null,null,null,null,null,null,null,null,null,null,null,null,null,null,null,null,null,null,null,"Q72","RXF","MID YORKSHIRE HOSPITALS NHS TRUST","RXF05","Pinderfields General Hospital - RXF05",null,"RK5","MILTON KEYNES UNIVERSITY HOSPITAL NHS FOUNDATION TRUST",null,"RK5","MILTON KEYNES UNIVERSITY HOSPITAL NHS FOUNDATION TRUST","RGQ02","James Paget University Hospital - RGP75"]
[null,null,null,null,null,null,null,null,null,null,null,null,null,null,null,null,null,null,null,null,"Q72","RXF","MID YORKSHIRE HOSPITALS NHS TRUST","RXF03","Pontefract General Infirmary - RXF03",null,"RK9","MOORFIELDS EYE HOSPITAL NHS FOUNDATION TRUST",null,"RK9","MOORFIELDS EYE HOSPITAL NHS FOUNDATION TRUST","RGR50","John Radcliffe Hospital - RTH08"]
[null,null,null,null,null,null,null,null,null,null,null,null,null,null,null,null,null,null,null,null,"Q72","RJL","NORTHERN LINCOLNSHIRE AND GOOLE NHS FOUNDATION TRUST","RJL30","Diana, Princess Of Wales Hospital - RJL30",null,"RKB","NORFOLK AND NORWICH UNIVERSITY HOSPITALS NHS FOUNDATION TRUST",null,"RKB","NORFOLK AND NORWICH UNIVERSITY HOSPITALS NHS FOUNDATION TRUST","RGT01","Kent and Canterbury Hospital - RVVKC"]
[null,null,null,null,null,null,null,null,null,null,null,null,null,null,null,null,null,null,null,null,"Q72","RJL","NORTHERN LINCOLNSHIRE AND GOOLE NHS FOUNDATION TRUST","RJL32","Scunthorpe General Hospital - RJL32",null,"RKE","NORTH BRISTOL NHS TRUST",null,"RKE","NORTH BRISTOL NHS TRUST","RH801","Kettering General Hospital - RNQ51"]
[null,null,null,null,null,null,null,null,null,null,null,null,null,null,null,null,null,null,null,null,"Q72","RJL","NORTHERN LINCOLNSHIRE AND GOOLE NHS FOUNDATION TRUST","RJLXXX","WiC_MIU - RJLXXX",null,"RL4","NORTH CUMBRIA UNIVERSITY HOSPITALS NHS TRUST",null,"RL4","NORTH CUMBRIA UNIVERSITY HOSPITALS NHS TRUST","RHM01","Kidderminster Hospital - RWP31"]
[null,null,null,null,null,null,null,null,null,null,null,null,null,null,null,null,null,null,null,null,"Q72","RCU","SHEFFIELD CHILDREN'S NHS FOUNDATION TRUST","RCUEF","Sheffield Children's Hospital - RCUEF",null,"RLN","NORTH MIDDLESEX UNIVERSITY HOSPITAL NHS TRUST",null,"RLN","NORTH MIDDLESEX UNIVERSITY HOSPITAL NHS TRUST","RHQHH","King Edward Vii Hospital - RHW03"]
[null,null,null,null,null,null,null,null,null,null,null,null,null,null,null,null,null,null,null,null,"Q72","RHQ","SHEFFIELD TEACHING HOSPITALS NHS FOUNDATION TRUST","RHQNG","Northern General Hospital - RHQNG",null,"RLQ","NORTH TEES AND HARTLEPOOL NHS FOUNDATION TRUST",null,"RLQ","NORTH TEES AND HARTLEPOOL NHS FOUNDATION TRUST","RHQNG","King George Hospital - RF4DG"]
[null,null,null,null,null,null,null,null,null,null,null,null,null,null,null,null,null,null,null,null,"Q72","RHQ","SHEFFIELD TEACHING HOSPITALS NHS FOUNDATION TRUST","RHQHH","Royal Hallamshire Hospital - RHQHH",null,"RLT","NORTH WEST ANGLIA NHS FOUNDATION TRUST",null,"RLT","NORTH WEST ANGLIA NHS FOUNDATION TRUST","RHQXXX","Kings College Dental Hospital - RJZ33"]
[null,null,null,null,null,null,null,null,null,null,null,null,null,null,null,null,null,null,null,null,"Q72","RHQ","SHEFFIELD TEACHING HOSPITALS NHS FOUNDATION TRUST","RHQXXX","WiC_MIU - RHQXXX",null,"RM1","NORTHAMPTON GENERAL HOSPITAL NHS TRUST",null,"RM1","NORTHAMPTON GENERAL HOSPITAL NHS TRUST","RHU03","King's College Hospital (Denmark Hill) - RJZ01"]
[null,null,null,null,null,null,null,null,null,null,null,null,null,null,null,null,null,null,null,null,"Q72","RFR","THE ROTHERHAM NHS FOUNDATION TRUST","RFRPA","Rotherham District General Hospital - RFRPA",null,"RM2","NORTHERN DEVON HEALTHCARE NHS TRUST",null,"RM2","NORTHERN DEVON HEALTHCARE NHS TRUST","RHUXXX","King's Mill Hospital - RK5BC"]
[null,null,null,null,null,null,null,null,null,null,null,null,null,null,null,null,null,null,null,null,"Q72","RCB","YORK TEACHING HOSPITAL NHS FOUNDATION TRUST","RCBCA","Scarborough General Hospital - RCBCA",null,"RM3","NORTHERN LINCOLNSHIRE AND GOOLE NHS FOUNDATION TRUST",null,"RM3","NORTHERN LINCOLNSHIRE AND GOOLE NHS FOUNDATION TRUST","RHW01","Kingston Hospital - RAX01"]
[null,null,null,null,null,null,null,null,null,null,null,null,null,null,null,null,null,null,null,null,"Q72","RCB","YORK TEACHING HOSPITAL NHS FOUNDATION TRUST","RCB55","York Hospital - RCB55",null,"RMC","NORTHUMBRIA HEALTHCARE NHS FOUNDATION TRUST",null,"RMC","NORTHUMBRIA HEALTHCARE NHS FOUNDATION TRUST","RHW03","Leeds General Infirmary - RR801"]
[null,null,null,null,null,null,null,null,null,null,null,null,null,null,null,null,null,null,null,null,"Q74","RLN","CITY HOSPITALS SUNDERLAND NHS FOUNDATION TRUST","RLNGM","Sunderland Eye Infirmary - RLNGM",null,"RMP","NOTTINGHAM UNIVERSITY HOSPITALS NHS TRUST",null,"RMP","NOTTINGHAM UNIVERSITY HOSPITALS NHS TRUST","RJ122","Leicester Royal Infirmary - RWEAA"]
[null,null,null,null,null,null,null,null,null,null,null,null,null,null,null,null,null,null,null,null,"Q74","RLN","CITY HOSPITALS SUNDERLAND NHS FOUNDATION TRUST","RLNGL","Sunderland Royal Hospital - RLNGL",null,"RN3","OXFORD UNIVERSITY HOSPITALS NHS FOUNDATION TRUST",null,"RN3","OXFORD UNIVERSITY HOSPITALS NHS FOUNDATION TRUST","RJ1XXX","Leighton Hospital - RBT20"]
[null,null,null,null,null,null,null,null,null,null,null,null,null,null,null,null,null,null,null,null,"Q74","RLN","CITY HOSPITALS SUNDERLAND NHS FOUNDATION TRUST","RLNXXX","WiC_MIU - RLNXXX",null,"RN5","PENNINE ACUTE HOSPITALS NHS TRUST",null,"RN5","PENNINE ACUTE HOSPITALS NHS TRUST","RJ224","Lincoln County Hospital - RWDDA"]
[null,null,null,null,null,null,null,null,null,null,null,null,null,null,null,null,null,null,null,null,"Q74","RXP","COUNTY DURHAM AND DARLINGTON NHS FOUNDATION TRUST","RXPDA","Darlington Memorial Hospital - RXPDA",null,"RN7","PLYMOUTH HOSPITALS NHS TRUST",null,"RN7","PLYMOUTH HOSPITALS NHS TRUST","RJ231","Lister Hospital - RWH01"]
[null,null,null,null,null,null,null,null,null,null,null,null,null,null,null,null,null,null,null,null,"Q74","RXP","COUNTY DURHAM AND DARLINGTON NHS FOUNDATION TRUST","RXPCP","University Hospital Of North Durham - RXPCP",null,"RNA","POOLE HOSPITAL NHS FOUNDATION TRUST",null,"RNA","POOLE HOSPITAL NHS FOUNDATION TRUST","RJ611","Luton and Dunstable Hospital - RC971"]
[null,null,null,null,null,null,null,null,null,null,null,null,null,null,null,null,null,null,null,null,"Q74","RXP","COUNTY DURHAM AND DARLINGTON NHS FOUNDATION TRUST","RXPXXX","WiC_MIU - RXPXXX",null,"RNL","PORTSMOUTH HOSPITALS NHS TRUST",null,"RNL","PORTSMOUTH HOSPITALS NHS TRUST","RJ6XXX","Macclesfield District General Hospital - RJN71"]
[null,null,null,null,null,null,null,null,null,null,null,null,null,null,null,null,null,null,null,null,"Q74","RR7","GATESHEAD HEALTH NHS FOUNDATION TRUST","RR7EN","Queen Elizabeth Hospital - RR7EN",null,"RNQ","ROYAL BERKSHIRE NHS FOUNDATION TRUST",null,"RNQ","ROYAL BERKSHIRE NHS FOUNDATION TRUST","RJ701","Maidstone District General Hospital - RWF03"]
[null,null,null,null,null,null,null,null,null,null,null,null,null,null,null,null,null,null,null,null,"Q74","RR7","GATESHEAD HEALTH NHS FOUNDATION TRUST","RR7XXX","WiC_MIU - RR7XXX",null,"RNS","ROYAL CORNWALL HOSPITALS NHS TRUST",null,"RNS","ROYAL CORNWALL HOSPITALS NHS TRUST","RJ7XXX","Manchester Royal Eye Hospital - RW3RE"]
[null,null,null,null,null,null,null,null,null,null,null,null,null,null,null,null,null,null,null,null,"Q74","RNL","NORTH CUMBRIA UNIVERSITY HOSPITALS NHS TRUST","RNLAY","Cumberland Infirmary - RNLAY",null,"RNZ","ROYAL DEVON AND EXETER NHS FOUNDATION TRUST",null,"RNZ","ROYAL DEVON AND EXETER NHS FOUNDATION TRUST","RJC02","Manchester Royal Infirmary - RW3MR"]
[null,null,null,null,null,null,null,null,null,null,null,null,null,null,null,null,null,null,null,null,"Q74","RNL","NORTH CUMBRIA UNIVERSITY HOSPITALS NHS TRUST","RNLBX","West Cumberland Hospital - RNLBX",null,"RP5","ROYAL FREE LONDON NHS FOUNDATION TRUST",null,"RP5","ROYAL FREE LONDON NHS FOUNDATION TRUST","RJCXXX","Manor Hospital - RBK02"]
[null,null,null,null,null,null,null,null,null,null,null,null,null,null,null,null,null,null,null,null,"Q74","RVW","NORTH TEES AND HARTLEPOOL NHS FOUNDATION TRUST","RVWAA","University Hospital Of Hartlepool - RVWAA",null,"RP6","ROYAL LIVERPOOL AND BROADGREEN UNIVERSITY HOSPITALS NHS TRUST",null,"RP6","ROYAL LIVERPOOL AND BROADGREEN UNIVERSITY HOSPITALS NHS TRUST","RJE01","Medway Maritime Hospital - RPA02"]
[null,null,null,null,null,null,null,null,null,null,null,null,null,null,null,null,null,null,null,null,"Q74","RVW","NORTH TEES AND HARTLEPOOL NHS FOUNDATION TRUST","RVWAE","University Hospital Of North Tees - RVWAE",null,"RPA","ROYAL SURREY COUNTY HOSPITAL NHS FOUNDATION TRUST",null,"RPA","ROYAL SURREY COUNTY HOSPITAL NHS FOUNDATION TRUST","RJE09","Milton Keynes Hospital - RD816"]
[null,null,null,null,null,null,null,null,null,null,null,null,null,null,null,null,null,null,null,null,"Q74","RTF","NORTHUMBRIA HEALTHCARE NHS FOUNDATION TRUST","RTF86","The Northumbria - RTF86",null,"RQ3","ROYAL UNITED HOSPITALS BATH NHS FOUNDATION TRUST",null,"RQ3","ROYAL UNITED HOSPITALS BATH NHS FOUNDATION TRUST","RJF02","Moorfields Eye Hospital (City Road) - RP601"]
[null,null,null,null,null,null,null,null,null,null,null,null,null,null,null,null,null,null,null,null,"Q74","RTF","NORTHUMBRIA HEALTHCARE NHS FOUNDATION TRUST","RTFXXX","WiC_MIU - RTFXXX",null,"RQ6","SALFORD ROYAL NHS FOUNDATION TRUST",null,"RQ6","SALFORD ROYAL NHS FOUNDATION TRUST","RJFXXX","Mount Vernon Hospital Site - RAS02"]
[null,null,null,null,null,null,null,null,null,null,null,null,null,null,null,null,null,null,null,null,"Q74","RTR","SOUTH TEES HOSPITALS NHS FOUNDATION TRUST","RTR45","Friarage Hospital Site - RTR45",null,"RQ8","SALISBURY NHS FOUNDATION TRUST",null,"RQ8","SALISBURY NHS FOUNDATION TRUST","RJL30","Musgrove Park Hospital - RBA11"]
[null,null,null,null,null,null,null,null,null,null,null,null,null,null,null,null,null,null,null,null,"Q74","RTR","SOUTH TEES HOSPITALS NHS FOUNDATION TRUST","RTRAT","The James Cook University Hospital - RTRAT",null,"RQM","SANDWELL AND WEST BIRMINGHAM HOSPITALS NHS TRUST",null,"RQM","SANDWELL AND WEST BIRMINGHAM HOSPITALS NHS TRUST","RJL32","New Cross Hospital - RL403"]
[null,null,null,null,null,null,null,null,null,null,null,null,null,null,null,null,null,null,null,null,"Q74","RTR","SOUTH TEES HOSPITALS NHS FOUNDATION TRUST","RTRXXX","WiC_MIU - RTRXXX",null,"RQW","SHEFFIELD CHILDREN'S NHS FOUNDATION TRUST",null,"RQW","SHEFFIELD CHILDREN'S NHS FOUNDATION TRUST","RJLXXX","Newham General Hospital - R1HNH"]
[null,null,null,null,null,null,null,null,null,null,null,null,null,null,null,null,null,null,null,null,"Q74","RE9","SOUTH TYNESIDE NHS FOUNDATION TRUST","RE9GA","South Tyneside District Hospital - RE9GA",null,"RQX","SHEFFIELD TEACHING HOSPITALS NHS FOUNDATION TRUST",null,"RQX","SHEFFIELD TEACHING HOSPITALS NHS FOUNDATION TRUST","RJN63","Norfolk and Norwich University Hospital - RM102"]
[null,null,null,null,null,null,null,null,null,null,null,null,null,null,null,null,null,null,null,null,"Q74","RTD","THE NEWCASTLE UPON TYNE HOSPITALS NHS FOUNDATION TRUST","RTD02","The Royal Victoria Infirmary - RTD02",null,"RR1","SHERWOOD FOREST HOSPITALS NHS FOUNDATION TRUST",null,"RR1","SHERWOOD FOREST HOSPITALS NHS FOUNDATION TRUST","RJN71","North Devon District Hospital - RBZ12"]
[null,null,null,null,null,null,null,null,null,null,null,null,null,null,null,null,null,null,null,null,"Q74","RTX","UNIVERSITY HOSPITALS OF MORECAMBE BAY NHS FOUNDATION TRUST","RTXBU","Furness General Hospital - RTXBU",null,"RR7","SHREWSBURY AND TELFORD HOSPITAL NHS TRUST",null,"RR7","SHREWSBURY AND TELFORD HOSPITAL NHS TRUST","RJR05","North Manchester General Hospital - RW602"]
[null,null,null,null,null,null,null,null,null,null,null,null,null,null,null,null,null,null,null,null,"Q74","RTX","UNIVERSITY HOSPITALS OF MORECAMBE BAY NHS FOUNDATION TRUST","RTX02","Royal Lancaster Infirmary - RTX02",null,"RR8","SOUTH TEES HOSPITALS NHS FOUNDATION TRUST",null,"RR8","SOUTH TEES HOSPITALS NHS FOUNDATION TRUST","RJZ01","North Middlesex Hospital - RAPNM"]
[null,null,null,null,null,null,null,null,null,null,null,null,null,null,null,null,null,null,null,null,"Q75","REM","AINTREE UNIVERSITY HOSPITAL NHS FOUNDATION TRUST","REM21","University Hospital Aintree - REM21",null,"RRF","SOUTH TYNESIDE NHS FOUNDATION TRUST",null,"RRF","SOUTH TYNESIDE NHS FOUNDATION TRUST","RJZ30","Northampton General Hospital (Acute) - RNS01"]
[null,null,null,null,null,null,null,null,null,null,null,null,null,null,null,null,null,null,null,null,"Q75","RBS","ALDER HEY CHILDREN'S NHS FOUNDATION TRUST","RBS25","Alder Hey Children's NHS - RBS25",null,"RRK","SOUTH WARWICKSHIRE NHS FOUNDATION TRUST",null,"RRK","SOUTH WARWICKSHIRE NHS FOUNDATION TRUST","RJZ33","Northern General Hospital - RHQNG"]
[null,null,null,null,null,null,null,null,null,null,null,null,null,null,null,null,null,null,null,null,"Q75","RJR","COUNTESS OF CHESTER HOSPITAL NHS FOUNDATION TRUST","RJR05","Countess Of Chester Hospital - RJR05",null,"RRV","SOUTHEND UNIVERSITY HOSPITAL NHS FOUNDATION TRUST",null,"RRV","SOUTHEND UNIVERSITY HOSPITAL NHS FOUNDATION TRUST","RK5BC","Northwick Park Hospital - R1K01"]
[null,null,null,null,null,null,null,null,null,null,null,null,null,null,null,null,null,null,null,null,"Q75","RJN","EAST CHESHIRE NHS TRUST","RJN63","Congleton War Memorial Hospital - RJN63",null,"RTD","SOUTHPORT AND ORMSKIRK HOSPITAL NHS TRUST",null,"RTD","SOUTHPORT AND ORMSKIRK HOSPITAL NHS TRUST","RK5XXX","Nottingham University Hospitals NHS Trust - Queen's Medical Centre Campus - RX1RA"]
[null,null,null,null,null,null,null,null,null,null,null,null,null,null,null,null,null,null,null,null,"Q75","RJN","EAST CHESHIRE NHS TRUST","RJN71","Macclesfield District General Hospital - RJN71",null,"RTE","ST GEORGE'S UNIVERSITY HOSPITALS NHS FOUNDATION TRUST",null,"RTE","ST GEORGE'S UNIVERSITY HOSPITALS NHS FOUNDATION TRUST","RK950","Ormskirk and District General Hospital - RVY02"]
[null,null,null,null,null,null,null,null,null,null,null,null,null,null,null,null,null,null,null,null,"Q75","REP","LIVERPOOL WOMEN'S NHS FOUNDATION TRUST","REPXXX","WiC_MIU - REPXXX",null,"RTF","ST HELENS AND KNOWSLEY HOSPITAL SERVICES NHS TRUST",null,"RTF","ST HELENS AND KNOWSLEY HOSPITAL SERVICES NHS TRUST","RKB01","Peterborough City Hospital - RGN80"]
[null,null,null,null,null,null,null,null,null,null,null,null,null,null,null,null,null,null,null,null,"Q75","RBT","MID CHESHIRE HOSPITALS NHS FOUNDATION TRUST","RBT20","Leighton Hospital - RBT20",null,"RTG","STOCKPORT NHS FOUNDATION TRUST",null,"RTG","STOCKPORT NHS FOUNDATION TRUST","RKBXXX","Pilgrim Hospital - RWDLA"]
[null,null,null,null,null,null,null,null,null,null,null,null,null,null,null,null,null,null,null,null,"Q75","RBT","MID CHESHIRE HOSPITALS NHS FOUNDATION TRUST","RBTXXX","WiC_MIU - RBTXXX",null,"RTH","SURREY AND SUSSEX HEALTHCARE NHS TRUST",null,"RTH","SURREY AND SUSSEX HEALTHCARE NHS TRUST","RKEQ4","Pinderfields General Hospital - RXF05"]
[null,null,null,null,null,null,null,null,null,null,null,null,null,null,null,null,null,null,null,null,"Q75","RQ6","ROYAL LIVERPOOL AND BROADGREEN UNIVERSITY HOSPITALS NHS TRUST","RQ617","The Royal Liverpool University Hospital - RQ617",null,"RTK","TAMESIDE AND GLOSSOP INTEGRATED CARE NHS FOUNDATION TRUST",null,"RTK","TAMESIDE AND GLOSSOP INTEGRATED CARE NHS FOUNDATION TRUST","RL402","Pontefract General Infirmary - RXF03"]
[null,null,null,null,null,null,null,null,null,null,null,null,null,null,null,null,null,null,null,null,"Q75","RVY","SOUTHPORT AND ORMSKIRK HOSPITAL NHS TRUST","RVY02","Ormskirk and District General Hospital - RVY02",null,"RTP","TAUNTON AND SOMERSET NHS FOUNDATION TRUST",null,"RTP","TAUNTON AND SOMERSET NHS FOUNDATION TRUST","RL403","Poole General Hospital NHS Trust HQ - RD304"]
[null,null,null,null,null,null,null,null,null,null,null,null,null,null,null,null,null,null,null,null,"Q75","RVY","SOUTHPORT AND ORMSKIRK HOSPITAL NHS TRUST","RVY01","Southport and Formby District General Hospital - RVY01",null,"RTR","THE DUDLEY GROUP NHS FOUNDATION TRUST",null,"RTR","THE DUDLEY GROUP NHS FOUNDATION TRUST","RL4XXX","Princess Alexandra Hospital - RQWG0"]
[null,null,null,null,null,null,null,null,null,null,null,null,null,null,null,null,null,null,null,null,"Q75","RBN","ST HELENS AND KNOWSLEY HOSPITAL SERVICES NHS TRUST","RBN01","Whiston Hospital - RBN01",null,"RTX","THE HILLINGDON HOSPITALS NHS FOUNDATION TRUST",null,"RTX","THE HILLINGDON HOSPITALS NHS FOUNDATION TRUST","RLNGL","Princess Royal Hospital - RXH09"]
[null,null,null,null,null,null,null,null,null,null,null,null,null,null,null,null,null,null,null,null,"Q75","RWW","WARRINGTON AND HALTON HOSPITALS NHS FOUNDATION TRUST","RWWHG","Halton Hospital - RWWHG",null,"RVJ","THE NEWCASTLE UPON TYNE HOSPITALS NHS FOUNDATION TRUST",null,"RVJ","THE NEWCASTLE UPON TYNE HOSPITALS NHS FOUNDATION TRUST","RLNGM","Princess Royal University Hospital - RJZ30"]
[null,null,null,null,null,null,null,null,null,null,null,null,null,null,null,null,null,null,null,null,"Q75","RWW","WARRINGTON AND HALTON HOSPITALS NHS FOUNDATION TRUST","RWWWH","Warrington Hospital - RWWWH",null,"RVR","THE PRINCESS ALEXANDRA HOSPITAL NHS TRUST",null,"RVR","THE PRINCESS ALEXANDRA HOSPITAL NHS TRUST","RLNXXX","Queen Alexandra Hospital - RHU03"]
[null,null,null,null,null,null,null,null,null,null,null,null,null,null,null,null,null,null,null,null,"Q75","RBL","WIRRAL UNIVERSITY TEACHING HOSPITAL NHS FOUNDATION TRUST","RBL14","Arrowe Park Hospital - RBL14",null,"RVV","THE QUEEN ELIZABETH HOSPITAL, KING'S LYNN, NHS FOUNDATION TRUST",null,"RVV","THE QUEEN ELIZABETH HOSPITAL, KING'S LYNN, NHS FOUNDATION TRUST","RLQ01","Queen Elizabeth Hospital - RJ231"]
[null,null,null,null,null,null,null,null,null,null,null,null,null,null,null,null,null,null,null,null,"Q76","RJF","BURTON HOSPITALS NHS FOUNDATION TRUST","RJF02","Queen's Hospital, Burton Upon Trent - RJF02",null,"RVW","THE ROTHERHAM NHS FOUNDATION TRUST",null,"RVW","THE ROTHERHAM NHS FOUNDATION TRUST","RLT01","Queen Elizabeth Hospital - RR7EN"]
[null,null,null,null,null,null,null,null,null,null,null,null,null,null,null,null,null,null,null,null,"Q76","RJF","BURTON HOSPITALS NHS FOUNDATION TRUST","RJFXXX","WiC_MIU - RJFXXX",null,"RVY","THE ROYAL BOURNEMOUTH AND CHRISTCHURCH HOSPITALS NHS FOUNDATION TRUST",null,"RVY","THE ROYAL BOURNEMOUTH AND CHRISTCHURCH HOSPITALS NHS FOUNDATION TRUST","RM102","Queen Elizabeth Hospital - RRK02"]
[null,null,null,null,null,null,null,null,null,null,null,null,null,null,null,null,null,null,null,null,"Q76","RFS","CHESTERFIELD ROYAL HOSPITAL NHS FOUNDATION TRUST","RFSDA","Chesterfield Royal Hospital - RFSDA",null,"RW3","THE ROYAL WOLVERHAMPTON NHS TRUST",null,"RW3","THE ROYAL WOLVERHAMPTON NHS TRUST","RM202","Queen Elizabeth I I Hospital - RWH20"]
[null,null,null,null,null,null,null,null,null,null,null,null,null,null,null,null,null,null,null,null,"Q76","RTG","DERBY TEACHING HOSPITALS NHS FOUNDATION TRUST","RTGFG","Royal Derby Hospital - RTGFG",null,"RW6","THE WHITTINGTON HOSPITAL NHS TRUST",null,"RW6","THE WHITTINGTON HOSPITAL NHS TRUST","RM301","Queen Elizabeth The Queen Mother Hospital - RVV09"]
[null,null,null,null,null,null,null,null,null,null,null,null,null,null,null,null,null,null,null,null,"Q76","RX1","NOTTINGHAM UNIVERSITY HOSPITALS NHS TRUST","RX1RA","Nottingham University Hospitals NHS Trust - Queen's Medical Centre Campus - RX1RA",null,"RWA","TORBAY AND SOUTH DEVON NHS FOUNDATION TRUST",null,"RWA","TORBAY AND SOUTH DEVON NHS FOUNDATION TRUST","RMC01","Queen's Hospital - RF4QH"]
[null,null,null,null,null,null,null,null,null,null,null,null,null,null,null,null,null,null,null,null,"Q76","RK5","SHERWOOD FOREST HOSPITALS NHS FOUNDATION TRUST","RK5BC","King's Mill Hospital - RK5BC",null,"RWD","UNITED LINCOLNSHIRE HOSPITALS NHS TRUST",null,"RWD","UNITED LINCOLNSHIRE HOSPITALS NHS TRUST","RMP01","Queen's Hospital, Burton Upon Trent - RJF02"]
[null,null,null,null,null,null,null,null,null,null,null,null,null,null,null,null,null,null,null,null,"Q76","RK5","SHERWOOD FOREST HOSPITALS NHS FOUNDATION TRUST","RK5XXX","WiC_MIU - RK5XXX",null,"RWE","UNIVERSITY COLLEGE LONDON HOSPITALS NHS FOUNDATION TRUST",null,"RWE","UNIVERSITY COLLEGE LONDON HOSPITALS NHS FOUNDATION TRUST","RN325","Rochdale Infirmary - RW604"]
[null,null,null,null,null,null,null,null,null,null,null,null,null,null,null,null,null,null,null,null,"Q76","RXW","SHREWSBURY AND TELFORD HOSPITAL NHS TRUST","RXWAS","Royal Shrewsbury Hospital - RXWAS",null,"RWF","UNIVERSITY HOSPITAL OF SOUTH MANCHESTER NHS FOUNDATION TRUST",null,"RWF","UNIVERSITY HOSPITAL OF SOUTH MANCHESTER NHS FOUNDATION TRUST","RN506","Rotherham District General Hospital - RFRPA"]
[null,null,null,null,null,null,null,null,null,null,null,null,null,null,null,null,null,null,null,null,"Q76","RXW","SHREWSBURY AND TELFORD HOSPITAL NHS TRUST","RXWAT","The Princess Royal Hospital - RXWAT",null,"RWG","UNIVERSITY HOSPITAL SOUTHAMPTON NHS FOUNDATION TRUST",null,"RWG","UNIVERSITY HOSPITAL SOUTHAMPTON NHS FOUNDATION TRUST","RN541","Royal Albert Edward Infirmary - RRF02"]
[null,null,null,null,null,null,null,null,null,null,null,null,null,null,null,null,null,null,null,null,"Q76","RJE","UNIVERSITY HOSPITALS OF NORTH MIDLANDS NHS TRUST","RJE09","County Hospital - RJE09",null,"RWH","UNIVERSITY HOSPITALS BIRMINGHAM NHS FOUNDATION TRUST",null,"RWH","UNIVERSITY HOSPITALS BIRMINGHAM NHS FOUNDATION TRUST","RN542","Royal Berkshire Hospital - RHW01"]
[null,null,null,null,null,null,null,null,null,null,null,null,null,null,null,null,null,null,null,null,"Q76","RJE","UNIVERSITY HOSPITALS OF NORTH MIDLANDS NHS TRUST","RJE01","Royal Stoke University Hospital - RJE01",null,"RWJ","UNIVERSITY HOSPITALS BRISTOL NHS FOUNDATION TRUST",null,"RWJ","UNIVERSITY HOSPITALS BRISTOL NHS FOUNDATION TRUST","RN707","Royal Blackburn Hospital - RXR20"]
[null,null,null,null,null,null,null,null,null,null,null,null,null,null,null,null,null,null,null,null,"Q77","RQ3","BIRMINGHAM WOMEN'S AND CHILDREN'S NHS FOUNDATION TRUST","RQ301","Birmingham Children's Hospital - RQ301",null,"RWP","UNIVERSITY HOSPITALS COVENTRY AND WARWICKSHIRE NHS TRUST",null,"RWP","UNIVERSITY HOSPITALS COVENTRY AND WARWICKSHIRE NHS TRUST","RNA01","Royal Bolton Hospital - RMC01"]
[null,null,null,null,null,null,null,null,null,null,null,null,null,null,null,null,null,null,null,null,"Q77","RLT","GEORGE ELIOT HOSPITAL NHS TRUST","RLT01","George Eliot Hospital - Acute Services - RLT01",null,"RWW","UNIVERSITY HOSPITALS OF LEICESTER NHS TRUST",null,"RWW","UNIVERSITY HOSPITALS OF LEICESTER NHS TRUST","RNLAY","Royal Bournemouth General Hospital - RDZ20"]
[null,null,null,null,null,null,null,null,null,null,null,null,null,null,null,null,null,null,null,null,"Q77","RR1","HEART OF ENGLAND NHS FOUNDATION TRUST","RR105","Good Hope Hospital - RR105",null,"RWY","UNIVERSITY HOSPITALS OF MORECAMBE BAY NHS FOUNDATION TRUST",null,"RWY","UNIVERSITY HOSPITALS OF MORECAMBE BAY NHS FOUNDATION TRUST","RNLBX","Royal Cornwall Hospital (Treliske) - REF12"]
[null,null,null,null,null,null,null,null,null,null,null,null,null,null,null,null,null,null,null,null,"Q77","RR1","HEART OF ENGLAND NHS FOUNDATION TRUST","RR101","Heartlands Hospital - RR101",null,"RX1","UNIVERSITY HOSPITALS OF NORTH MIDLANDS NHS TRUST",null,"RX1","UNIVERSITY HOSPITALS OF NORTH MIDLANDS NHS TRUST","RNQ51","Royal Derby Hospital - RTGFG"]
[null,null,null,null,null,null,null,null,null,null,null,null,null,null,null,null,null,null,null,null,"Q77","RR1","HEART OF ENGLAND NHS FOUNDATION TRUST","RR109","Solihull Hospital - RR109",null,"RXC","WALSALL HEALTHCARE NHS TRUST",null,"RXC","WALSALL HEALTHCARE NHS TRUST","RNS01","Royal Devon and Exeter Hospital (Wonford) - RH801"]
[null,null,null,null,null,null,null,null,null,null,null,null,null,null,null,null,null,null,null,null,"Q77","RXK","SANDWELL AND WEST BIRMINGHAM HOSPITALS NHS TRUST","RXK03","Birmingham Midland Eye Centre (Bmec) - RXK03",null,"RXF","WARRINGTON AND HALTON HOSPITALS NHS FOUNDATION TRUST",null,"RXF","WARRINGTON AND HALTON HOSPITALS NHS FOUNDATION TRUST","RNZ02","Royal Free Hospital - RAL01"]
[null,null,null,null,null,null,null,null,null,null,null,null,null,null,null,null,null,null,null,null,"Q77","RXK","SANDWELL AND WEST BIRMINGHAM HOSPITALS NHS TRUST","RXK02","City Hospital - RXK02",null,"RXH","WEST HERTFORDSHIRE HOSPITALS NHS TRUST",null,"RXH","WEST HERTFORDSHIRE HOSPITALS NHS TRUST","RP5BA","Royal Hallamshire Hospital - RHQHH"]
[null,null,null,null,null,null,null,null,null,null,null,null,null,null,null,null,null,null,null,null,"Q77","RXK","SANDWELL AND WEST BIRMINGHAM HOSPITALS NHS TRUST","RXK01","Sandwell General Hospital - RXK01",null,"RXK","WEST SUFFOLK NHS FOUNDATION TRUST",null,"RXK","WEST SUFFOLK NHS FOUNDATION TRUST","RP5DR","Royal Hampshire County Hospital - RN541"]
[null,null,null,null,null,null,null,null,null,null,null,null,null,null,null,null,null,null,null,null,"Q77","RXK","SANDWELL AND WEST BIRMINGHAM HOSPITALS NHS TRUST","RXKXXX","WiC_MIU - RXKXXX",null,"RXL","WESTERN SUSSEX HOSPITALS NHS FOUNDATION TRUST",null,"RXL","WESTERN SUSSEX HOSPITALS NHS FOUNDATION TRUST","RP5XXX","Royal Lancaster Infirmary - RTX02"]
[null,null,null,null,null,null,null,null,null,null,null,null,null,null,null,null,null,null,null,null,"Q77","RJC","SOUTH WARWICKSHIRE NHS FOUNDATION TRUST","RJC02","Warwick Hospital - RJC02",null,"RXN","WESTON AREA HEALTH NHS TRUST",null,"RXN","WESTON AREA HEALTH NHS TRUST","RP601","Royal Manchester Children's Hospital - RW3RC"]
[null,null,null,null,null,null,null,null,null,null,null,null,null,null,null,null,null,null,null,null,"Q77","RJC","SOUTH WARWICKSHIRE NHS FOUNDATION TRUST","RJCXXX","WiC_MIU - RJCXXX",null,"RXP","WIRRAL UNIVERSITY TEACHING HOSPITAL NHS FOUNDATION TRUST",null,"RXP","WIRRAL UNIVERSITY TEACHING HOSPITAL NHS FOUNDATION TRUST","RPA02","Royal Oldham Hospital - RW603"]
[null,null,null,null,null,null,null,null,null,null,null,null,null,null,null,null,null,null,null,null,"Q77","RNA","THE DUDLEY GROUP NHS FOUNDATION TRUST","RNA01","Russells Hall Hospital - RNA01",null,"RXQ","WORCESTERSHIRE ACUTE HOSPITALS NHS TRUST",null,"RXQ","WORCESTERSHIRE ACUTE HOSPITALS NHS TRUST","RQ301","Royal Preston Hospital - RXN02"]
[null,null,null,null,null,null,null,null,null,null,null,null,null,null,null,null,null,null,null,null,"Q77","RL4","THE ROYAL WOLVERHAMPTON NHS TRUST","RL403","New Cross Hospital - RL403",null,"RXR","WRIGHTINGTON, WIGAN AND LEIGH NHS FOUNDATION TRUST",null,"RXR","WRIGHTINGTON, WIGAN AND LEIGH NHS FOUNDATION TRUST","RQ617","Royal Shrewsbury Hospital - RXWAS"]
[null,null,null,null,null,null,null,null,null,null,null,null,null,null,null,null,null,null,null,null,"Q77","RL4","THE ROYAL WOLVERHAMPTON NHS TRUST","RL402","The Phoenix Health Centre - RL402",null,"RXW","WYE VALLEY NHS TRUST",null,"RXW","WYE VALLEY NHS TRUST","RQ8L0","Royal Stoke University Hospital - RJE01"]
[null,null,null,null,null,null,null,null,null,null,null,null,null,null,null,null,null,null,null,null,"Q77","RL4","THE ROYAL WOLVERHAMPTON NHS TRUST","RL4XXX","WiC_MIU - RL4XXX",null,"RYJ","YEOVIL DISTRICT HOSPITAL NHS FOUNDATION TRUST",null,"RYJ","YEOVIL DISTRICT HOSPITAL NHS FOUNDATION TRUST","RQM01","Royal Surrey County Hospital - RA201"]
[null,null,null,null,null,null,null,null,null,null,null,null,null,null,null,null,null,null,null,null,"Q77","RRK","UNIVERSITY HOSPITALS BIRMINGHAM NHS FOUNDATION TRUST","RRK02","Queen Elizabeth Hospital - RRK02",null,"RYR","YORK TEACHING HOSPITAL NHS FOUNDATION TRUST",null,"RYR","YORK TEACHING HOSPITAL NHS FOUNDATION TRUST","RQM91","Royal Sussex County Hospital - RXH01"]
[null,null,null,null,null,null,null,null,null,null,null,null,null,null,null,null,null,null,null,null,"Q77","RKB","UNIVERSITY HOSPITALS COVENTRY AND WARWICKSHIRE NHS TRUST","RKB01","University Hospital (Coventry) - RKB01",null,null,null,null,null,null,"RQMXXX","Royal United Hospital - RD130"]
[null,null,null,null,null,null,null,null,null,null,null,null,null,null,null,null,null,null,null,null,"Q77","RKB","UNIVERSITY HOSPITALS COVENTRY AND WARWICKSHIRE NHS TRUST","RKBXXX","WiC_MIU - RKBXXX",null,null,null,null,null,null,"RQWG0","Russells Hall Hospital - RNA01"]
[null,null,null,null,null,null,null,null,null,null,null,null,null,null,null,null,null,null,null,null,"Q77","RBK","WALSALL HEALTHCARE NHS TRUST","RBK02","Manor Hospital - RBK02",null,null,null,null,null,null,"RQXM1","Salford Royal - RM301"]
[null,null,null,null,null,null,null,null,null,null,null,null,null,null,null,null,null,null,null,null,"Q77","RWP","WORCESTERSHIRE ACUTE HOSPITALS NHS TRUST","RWP01","Alexandra Hospital - RWP01",null,null,null,null,null,null,"RR101","Salisbury District Hospital - RNZ02"]
[null,null,null,null,null,null,null,null,null,null,null,null,null,null,null,null,null,null,null,null,"Q77","RWP","WORCESTERSHIRE ACUTE HOSPITALS NHS TRUST","RWP31","Kidderminster Hospital - RWP31",null,null,null,null,null,null,"RR105","Sandwell General Hospital - RXK01"]
[null,null,null,null,null,null,null,null,null,null,null,null,null,null,null,null,null,null,null,null,"Q77","RWP","WORCESTERSHIRE ACUTE HOSPITALS NHS TRUST","RWP50","Worcestershire Royal Hospital - RWP50",null,null,null,null,null,null,"RR109","Scarborough General Hospital - RCBCA"]
[null,null,null,null,null,null,null,null,null,null,null,null,null,null,null,null,null,null,null,null,"Q77","RLQ","WYE VALLEY NHS TRUST","RLQ01","Hereford County Hospital - RLQ01",null,null,null,null,null,null,"RR7EN","Scunthorpe General Hospital - RJL32"]
[null,null,null,null,null,null,null,null,null,null,null,null,null,null,null,null,null,null,null,null,"Q78","RC1","BEDFORD HOSPITAL NHS TRUST","RC110","Bedford Hospital South Wing - RC110",null,null,null,null,null,null,"RR7XXX","Sheffield Children's Hospital - RCUEF"]
[null,null,null,null,null,null,null,null,null,null,null,null,null,null,null,null,null,null,null,null,"Q78","RWH","EAST AND NORTH HERTFORDSHIRE NHS TRUST","RWH01","Lister Hospital - RWH01",null,null,null,null,null,null,"RR801","Solihull Hospital - RR109"]
[null,null,null,null,null,null,null,null,null,null,null,null,null,null,null,null,null,null,null,null,"Q78","RWH","EAST AND NORTH HERTFORDSHIRE NHS TRUST","RWH20","Queen Elizabeth I I Hospital - RWH20",null,null,null,null,null,null,"RR813","South Tyneside District Hospital - RE9GA"]
[null,null,null,null,null,null,null,null,null,null,null,null,null,null,null,null,null,null,null,null,"Q78","RNQ","KETTERING GENERAL HOSPITAL NHS FOUNDATION TRUST","RNQ51","Kettering General Hospital - RNQ51",null,null,null,null,null,null,"RRF02","Southampton General Hospital - RHM01"]
[null,null,null,null,null,null,null,null,null,null,null,null,null,null,null,null,null,null,null,null,"Q78","RC9","LUTON AND DUNSTABLE UNIVERSITY HOSPITAL NHS FOUNDATION TRUST","RC971","Luton and Dunstable Hospital - RC971",null,null,null,null,null,null,"RRK02","Southend Hospital - RAJ01"]
[null,null,null,null,null,null,null,null,null,null,null,null,null,null,null,null,null,null,null,null,"Q78","RD8","MILTON KEYNES UNIVERSITY HOSPITAL NHS FOUNDATION TRUST","RD816","Milton Keynes Hospital - RD816",null,null,null,null,null,null,"RRV03","Southmead Hospital - RVJ01"]
[null,null,null,null,null,null,null,null,null,null,null,null,null,null,null,null,null,null,null,null,"Q78","RNS","NORTHAMPTON GENERAL HOSPITAL NHS TRUST","RNS01","Northampton General Hospital (Acute) - RNS01",null,null,null,null,null,null,"RTD02","Southport and Formby District General Hospital - RVY01"]
[null,null,null,null,null,null,null,null,null,null,null,null,null,null,null,null,null,null,null,null,"Q78","RWD","UNITED LINCOLNSHIRE HOSPITALS NHS TRUST","RWDLP","Grantham and District Hospital - RWDLP",null,null,null,null,null,null,"RTE01","St Albans City Hospital - RWG03"]
[null,null,null,null,null,null,null,null,null,null,null,null,null,null,null,null,null,null,null,null,"Q78","RWD","UNITED LINCOLNSHIRE HOSPITALS NHS TRUST","RWDDA","Lincoln County Hospital - RWDDA",null,null,null,null,null,null,"RTE03","St Bartholomew's Hospital - R1HM0"]
[null,null,null,null,null,null,null,null,null,null,null,null,null,null,null,null,null,null,null,null,"Q78","RWD","UNITED LINCOLNSHIRE HOSPITALS NHS TRUST","RWDLA","Pilgrim Hospital - RWDLA",null,null,null,null,null,null,"RTF86","St George's Hospital (Tooting) - RJ701"]
[null,null,null,null,null,null,null,null,null,null,null,null,null,null,null,null,null,null,null,null,"Q78","RWE","UNIVERSITY HOSPITALS OF LEICESTER NHS TRUST","RWEAA","Leicester Royal Infirmary - RWEAA",null,null,null,null,null,null,"RTFXXX","St Helier Hospital - RVR05"]
[null,null,null,null,null,null,null,null,null,null,null,null,null,null,null,null,null,null,null,null,"Q78","RWG","WEST HERTFORDSHIRE HOSPITALS NHS TRUST","RWG08","Hemel Hempstead Hospital - RWG08",null,null,null,null,null,null,"RTGFG","St James's University Hospital - RR813"]
[null,null,null,null,null,null,null,null,null,null,null,null,null,null,null,null,null,null,null,null,"Q78","RWG","WEST HERTFORDSHIRE HOSPITALS NHS TRUST","RWG03","St Albans City Hospital - RWG03",null,null,null,null,null,null,"RTH05","St Mary's Hospital - R1F01"]
[null,null,null,null,null,null,null,null,null,null,null,null,null,null,null,null,null,null,null,null,"Q78","RWG","WEST HERTFORDSHIRE HOSPITALS NHS TRUST","RWG02","Watford General Hospital - RWG02",null,null,null,null,null,null,"RTH08","St Mary's Hospital - RW3SM"]
[null,null,null,null,null,null,null,null,null,null,null,null,null,null,null,null,null,null,null,null,"Q79","RDD","BASILDON AND THURROCK UNIVERSITY HOSPITALS NHS FOUNDATION TRUST","RDDH0","Basildon University Hospital - RDDH0",null,null,null,null,null,null,"RTK01","St Mary's Hospital (HQ) - RYJ01"]
[null,null,null,null,null,null,null,null,null,null,null,null,null,null,null,null,null,null,null,null,"Q79","RGT","CAMBRIDGE UNIVERSITY HOSPITALS NHS FOUNDATION TRUST","RGT01","Addenbrooke's Hospital - RGT01",null,null,null,null,null,null,"RTP04","St Peter's Hospital - RTK01"]
[null,null,null,null,null,null,null,null,null,null,null,null,null,null,null,null,null,null,null,null,"Q79","RDE","COLCHESTER HOSPITAL UNIVERSITY NHS FOUNDATION TRUST","RDEE4","Colchester General Hospital - RDEE4",null,null,null,null,null,null,"RTR45","St Richard's Hospital - RYR16"]
[null,null,null,null,null,null,null,null,null,null,null,null,null,null,null,null,null,null,null,null,"Q79","RGQ","IPSWICH HOSPITAL NHS TRUST","RGQ02","The Ipswich Hospital NHS Trust - RGQ02",null,null,null,null,null,null,"RTRAT","St Thomas' Hospital - RJ122"]
[null,null,null,null,null,null,null,null,null,null,null,null,null,null,null,null,null,null,null,null,"Q79","RGP","JAMES PAGET UNIVERSITY HOSPITALS NHS FOUNDATION TRUST","RGP75","James Paget University Hospital - RGP75",null,null,null,null,null,null,"RTRXXX","Stepping Hill Hospital - RWJ09"]
[null,null,null,null,null,null,null,null,null,null,null,null,null,null,null,null,null,null,null,null,"Q79","RQ8","MID ESSEX HOSPITAL SERVICES NHS TRUST","RQ8L0","Broomfield Hospital - RQ8L0",null,null,null,null,null,null,"RTX02","Stoke Mandeville Hospital - RXQ02"]
[null,null,null,null,null,null,null,null,null,null,null,null,null,null,null,null,null,null,null,null,"Q79","RM1","NORFOLK AND NORWICH UNIVERSITY HOSPITALS NHS FOUNDATION TRUST","RM102","Norfolk and Norwich University Hospital - RM102",null,null,null,null,null,null,"RTXBU","Sunderland Eye Infirmary - RLNGM"]
[null,null,null,null,null,null,null,null,null,null,null,null,null,null,null,null,null,null,null,null,"Q79","RGN","NORTH WEST ANGLIA NHS FOUNDATION TRUST","RGN90","Hinchingbrooke Hospital - RGN90",null,null,null,null,null,null,"RVJ01","Sunderland Royal Hospital - RLNGL"]
[null,null,null,null,null,null,null,null,null,null,null,null,null,null,null,null,null,null,null,null,"Q79","RGN","NORTH WEST ANGLIA NHS FOUNDATION TRUST","RGN80","Peterborough City Hospital - RGN80",null,null,null,null,null,null,"RVR05","Sussex Eye Hospital - RXH07"]
[null,null,null,null,null,null,null,null,null,null,null,null,null,null,null,null,null,null,null,null,"Q79","RGN","NORTH WEST ANGLIA NHS FOUNDATION TRUST","RGNXXX","WiC_MIU - RGNXXX",null,null,null,null,null,null,"RVR50","Tameside General Hospital - RMP01"]
[null,null,null,null,null,null,null,null,null,null,null,null,null,null,null,null,null,null,null,null,"Q79","RAJ","SOUTHEND UNIVERSITY HOSPITAL NHS FOUNDATION TRUST","RAJ01","Southend Hospital - RAJ01",null,null,null,null,null,null,"RVV01","The Great Western Hospital - RN325"]
[null,null,null,null,null,null,null,null,null,null,null,null,null,null,null,null,null,null,null,null,"Q79","RQW","THE PRINCESS ALEXANDRA HOSPITAL NHS TRUST","RQWG0","Princess Alexandra Hospital - RQWG0",null,null,null,null,null,null,"RVV02","The Ipswich Hospital NHS Trust - RGQ02"]
[null,null,null,null,null,null,null,null,null,null,null,null,null,null,null,null,null,null,null,null,"Q79","RCX","THE QUEEN ELIZABETH HOSPITAL, KING'S LYNN, NHS FOUNDATION TRUST","RCX70","The Queen Elizabeth Hospital - RCX70",null,null,null,null,null,null,"RVV09","The James Cook University Hospital - RTRAT"]
[null,null,null,null,null,null,null,null,null,null,null,null,null,null,null,null,null,null,null,null,"Q79","RGR","WEST SUFFOLK NHS FOUNDATION TRUST","RGR50","West Suffolk Hospital - RGR50",null,null,null,null,null,null,"RVVKC","The Northumbria - RTF86"]
[null,null,null,null,null,null,null,null,null,null,null,null,null,null,null,null,null,null,null,null,"Q80","RVJ","NORTH BRISTOL NHS TRUST","RVJ01","Southmead Hospital - RVJ01",null,null,null,null,null,null,"RVWAA","The Phoenix Health Centre - RL402"]
[null,null,null,null,null,null,null,null,null,null,null,null,null,null,null,null,null,null,null,null,"Q80","RBZ","NORTHERN DEVON HEALTHCARE NHS TRUST","RBZ12","North Devon District Hospital - RBZ12",null,null,null,null,null,null,"RVWAE","The Princess Royal Hospital - RXWAT"]
[null,null,null,null,null,null,null,null,null,null,null,null,null,null,null,null,null,null,null,null,"Q80","RK9","PLYMOUTH HOSPITALS NHS TRUST","RK950","Derriford Hospital - RK950",null,null,null,null,null,null,"RVY01","The Queen Elizabeth Hospital - RCX70"]
[null,null,null,null,null,null,null,null,null,null,null,null,null,null,null,null,null,null,null,null,"Q80","REF","ROYAL CORNWALL HOSPITALS NHS TRUST","REF12","Royal Cornwall Hospital (Treliske) - REF12",null,null,null,null,null,null,"RVY02","The Royal Alexandra Children's Hospital - RXH06"]
[null,null,null,null,null,null,null,null,null,null,null,null,null,null,null,null,null,null,null,null,"Q80","REF","ROYAL CORNWALL HOSPITALS NHS TRUST","REF01","West Cornwall Hospital (Penzance) - REF01",null,null,null,null,null,null,"RW3DH","The Royal Liverpool University Hospital - RQ617"]
[null,null,null,null,null,null,null,null,null,null,null,null,null,null,null,null,null,null,null,null,"Q80","RH8","ROYAL DEVON AND EXETER NHS FOUNDATION TRUST","RH801","Royal Devon and Exeter Hospital (Wonford) - RH801",null,null,null,null,null,null,"RW3MR","The Royal London Hospital - R1H12"]
[null,null,null,null,null,null,null,null,null,null,null,null,null,null,null,null,null,null,null,null,"Q80","RBA","TAUNTON AND SOMERSET NHS FOUNDATION TRUST","RBA11","Musgrove Park Hospital - RBA11",null,null,null,null,null,null,"RW3RC","The Royal Victoria Infirmary - RTD02"]
[null,null,null,null,null,null,null,null,null,null,null,null,null,null,null,null,null,null,null,null,"Q80","RA9","TORBAY AND SOUTH DEVON NHS FOUNDATION TRUST","RA901","Torbay Hospital - RA901",null,null,null,null,null,null,"RW3RE","The Tunbridge Wells Hospital - RWFTW"]
[null,null,null,null,null,null,null,null,null,null,null,null,null,null,null,null,null,null,null,null,"Q80","RA7","UNIVERSITY HOSPITALS BRISTOL NHS FOUNDATION TRUST","RA708","Bristol Eye Hospital - RA708",null,null,null,null,null,null,"RW3SM","The Whittington Hospital - RKEQ4"]
[null,null,null,null,null,null,null,null,null,null,null,null,null,null,null,null,null,null,null,null,"Q80","RA7","UNIVERSITY HOSPITALS BRISTOL NHS FOUNDATION TRUST","RA723","Bristol Royal Hospital For Children - RA723",null,null,null,null,null,null,"RW3TR","Torbay Hospital - RA901"]
[null,null,null,null,null,null,null,null,null,null,null,null,null,null,null,null,null,null,null,null,"Q80","RA7","UNIVERSITY HOSPITALS BRISTOL NHS FOUNDATION TRUST","RA701","Bristol Royal Infirmary - RA701",null,null,null,null,null,null,"RW601","Trafford General Hospital - RW3TR"]
[null,null,null,null,null,null,null,null,null,null,null,null,null,null,null,null,null,null,null,null,"Q80","RA3","WESTON AREA HEALTH NHS TRUST","RA301","Weston General Hospital - RA301",null,null,null,null,null,null,"RW602","University College Hospital - RRV03"]
[null,null,null,null,null,null,null,null,null,null,null,null,null,null,null,null,null,null,null,null,"Q80","RA4","YEOVIL DISTRICT HOSPITAL NHS FOUNDATION TRUST","RA430","Yeovil District Hospital - RA430",null,null,null,null,null,null,"RW603","University Dental Hospital - RW3DH"]
[null,null,null,null,null,null,null,null,null,null,null,null,null,null,null,null,null,null,null,null,"Q81","RTK","ASHFORD AND ST PETER'S HOSPITALS NHS FOUNDATION TRUST","RTK01","St Peter's Hospital - RTK01",null,null,null,null,null,null,"RW604","University Hospital (Coventry) - RKB01"]
[null,null,null,null,null,null,null,null,null,null,null,null,null,null,null,null,null,null,null,null,"Q81","RXH","BRIGHTON AND SUSSEX UNIVERSITY HOSPITALS NHS TRUST","RXH09","Princess Royal Hospital - RXH09",null,null,null,null,null,null,"RWA01","University Hospital Aintree - REM21"]
[null,null,null,null,null,null,null,null,null,null,null,null,null,null,null,null,null,null,null,null,"Q81","RXH","BRIGHTON AND SUSSEX UNIVERSITY HOSPITALS NHS TRUST","RXH01","Royal Sussex County Hospital - RXH01",null,null,null,null,null,null,"RWDDA","University Hospital Lewisham - RJ224"]
[null,null,null,null,null,null,null,null,null,null,null,null,null,null,null,null,null,null,null,null,"Q81","RXH","BRIGHTON AND SUSSEX UNIVERSITY HOSPITALS NHS TRUST","RXH07","Sussex Eye Hospital - RXH07",null,null,null,null,null,null,"RWDLA","University Hospital Of Hartlepool - RVWAA"]
[null,null,null,null,null,null,null,null,null,null,null,null,null,null,null,null,null,null,null,null,"Q81","RXH","BRIGHTON AND SUSSEX UNIVERSITY HOSPITALS NHS TRUST","RXH06","The Royal Alexandra Children's Hospital - RXH06",null,null,null,null,null,null,"RWDLP","University Hospital Of North Durham - RXPCP"]
[null,null,null,null,null,null,null,null,null,null,null,null,null,null,null,null,null,null,null,null,"Q81","RN7","DARTFORD AND GRAVESHAM NHS TRUST","RN707","Darent Valley Hospital - RN707",null,null,null,null,null,null,"RWEAA","University Hospital Of North Tees - RVWAE"]
[null,null,null,null,null,null,null,null,null,null,null,null,null,null,null,null,null,null,null,null,"Q81","RVV","EAST KENT HOSPITALS UNIVERSITY NHS FOUNDATION TRUST","RVV02","Buckland Hospital - RVV02",null,null,null,null,null,null,"RWF03","Warrington Hospital - RWWWH"]
[null,null,null,null,null,null,null,null,null,null,null,null,null,null,null,null,null,null,null,null,"Q81","RVV","EAST KENT HOSPITALS UNIVERSITY NHS FOUNDATION TRUST","RVVKC","Kent and Canterbury Hospital - RVVKC",null,null,null,null,null,null,"RWFTW","Warwick Hospital - RJC02"]
[null,null,null,null,null,null,null,null,null,null,null,null,null,null,null,null,null,null,null,null,"Q81","RVV","EAST KENT HOSPITALS UNIVERSITY NHS FOUNDATION TRUST","RVV09","Queen Elizabeth The Queen Mother Hospital - RVV09",null,null,null,null,null,null,"RWG02","Watford General Hospital - RWG02"]
[null,null,null,null,null,null,null,null,null,null,null,null,null,null,null,null,null,null,null,null,"Q81","RVV","EAST KENT HOSPITALS UNIVERSITY NHS FOUNDATION TRUST","RVV01","William Harvey Hospital (Ashford) - RVV01",null,null,null,null,null,null,"RWG03","West Cornwall Hospital (Penzance) - REF01"]
[null,null,null,null,null,null,null,null,null,null,null,null,null,null,null,null,null,null,null,null,"Q81","RXC","EAST SUSSEX HEALTHCARE NHS TRUST","RXC01","Conquest Hospital - RXC01",null,null,null,null,null,null,"RWG08","West Cumberland Hospital - RNLBX"]
[null,null,null,null,null,null,null,null,null,null,null,null,null,null,null,null,null,null,null,null,"Q81","RXC","EAST SUSSEX HEALTHCARE NHS TRUST","RXC02","Eastbourne District General Hospital - RXC02",null,null,null,null,null,null,"RWH01","West Middlesex University Hospital - RQM91"]
[null,null,null,null,null,null,null,null,null,null,null,null,null,null,null,null,null,null,null,null,"Q81","RDU","FRIMLEY HEALTH NHS FOUNDATION TRUST","RDU01","Frimley Park Hospital - RDU01",null,null,null,null,null,null,"RWH20","West Suffolk Hospital - RGR50"]
[null,null,null,null,null,null,null,null,null,null,null,null,null,null,null,null,null,null,null,null,"Q81","RDU","FRIMLEY HEALTH NHS FOUNDATION TRUST","RDU50","Wexham Park Hospital - RDU50",null,null,null,null,null,null,"RWJ09","Western Eye Hospital - RYJ07"]
[null,null,null,null,null,null,null,null,null,null,null,null,null,null,null,null,null,null,null,null,"Q81","RWF","MAIDSTONE AND TUNBRIDGE WELLS NHS TRUST","RWF03","Maidstone District General Hospital - RWF03",null,null,null,null,null,null,"RWP01","Weston General Hospital - RA301"]
[null,null,null,null,null,null,null,null,null,null,null,null,null,null,null,null,null,null,null,null,"Q81","RWF","MAIDSTONE AND TUNBRIDGE WELLS NHS TRUST","RWFTW","The Tunbridge Wells Hospital - RWFTW",null,null,null,null,null,null,"RWP31","Wexham Park Hospital - RDU50"]
[null,null,null,null,null,null,null,null,null,null,null,null,null,null,null,null,null,null,null,null,"Q81","RPA","MEDWAY NHS FOUNDATION TRUST","RPA02","Medway Maritime Hospital - RPA02",null,null,null,null,null,null,"RWP50","Whipps Cross University Hospital - R1HKH"]
[null,null,null,null,null,null,null,null,null,null,null,null,null,null,null,null,null,null,null,null,"Q81","RA2","ROYAL SURREY COUNTY HOSPITAL NHS FOUNDATION TRUST","RA201","Royal Surrey County Hospital - RA201",null,null,null,null,null,null,"RWWHG","Whiston Hospital - RBN01"]
[null,null,null,null,null,null,null,null,null,null,null,null,null,null,null,null,null,null,null,null,"Q81","RTP","SURREY AND SUSSEX HEALTHCARE NHS TRUST","RTP04","East Surrey Hospital - RTP04",null,null,null,null,null,null,"RWWWH","WiC_MIU - R1FXXX"]
[null,null,null,null,null,null,null,null,null,null,null,null,null,null,null,null,null,null,null,null,"Q81","RYR","WESTERN SUSSEX HOSPITALS NHS FOUNDATION TRUST","RYR16","St Richard's Hospital - RYR16",null,null,null,null,null,null,"RWY01","WiC_MIU - R1HXXX"]
[null,null,null,null,null,null,null,null,null,null,null,null,null,null,null,null,null,null,null,null,"Q81","RYR","WESTERN SUSSEX HOSPITALS NHS FOUNDATION TRUST","RYR18","Worthing Hospital - RYR18",null,null,null,null,null,null,"RWY02","WiC_MIU - R1KXXX"]
[null,null,null,null,null,null,null,null,null,null,null,null,null,null,null,null,null,null,null,null,"Q82","RXQ","BUCKINGHAMSHIRE HEALTHCARE NHS TRUST","RXQ02","Stoke Mandeville Hospital - RXQ02",null,null,null,null,null,null,"RX1RA","WiC_MIU - RBTXXX"]
[null,null,null,null,null,null,null,null,null,null,null,null,null,null,null,null,null,null,null,null,"Q82","RTE","GLOUCESTERSHIRE HOSPITALS NHS FOUNDATION TRUST","RTE01","Cheltenham General Hospital - RTE01",null,null,null,null,null,null,"RXC01","WiC_MIU - RCDXXX"]
[null,null,null,null,null,null,null,null,null,null,null,null,null,null,null,null,null,null,null,null,"Q82","RTE","GLOUCESTERSHIRE HOSPITALS NHS FOUNDATION TRUST","RTE03","Gloucestershire Royal Hospital - RTE03",null,null,null,null,null,null,"RXC02","WiC_MIU - REPXXX"]
[null,null,null,null,null,null,null,null,null,null,null,null,null,null,null,null,null,null,null,null,"Q82","RN3","GREAT WESTERN HOSPITALS NHS FOUNDATION TRUST","RN325","The Great Western Hospital - RN325",null,null,null,null,null,null,"RXF03","WiC_MIU - RGNXXX"]
[null,null,null,null,null,null,null,null,null,null,null,null,null,null,null,null,null,null,null,null,"Q82","RTH","OXFORD UNIVERSITY HOSPITALS NHS FOUNDATION TRUST","RTH05","Horton General Hospital - RTH05",null,null,null,null,null,null,"RXF05","WiC_MIU - RHQXXX"]
[null,null,null,null,null,null,null,null,null,null,null,null,null,null,null,null,null,null,null,null,"Q82","RTH","OXFORD UNIVERSITY HOSPITALS NHS FOUNDATION TRUST","RTH08","John Radcliffe Hospital - RTH08",null,null,null,null,null,null,"RXF10","WiC_MIU - RHUXXX"]
[null,null,null,null,null,null,null,null,null,null,null,null,null,null,null,null,null,null,null,null,"Q82","RHW","ROYAL BERKSHIRE NHS FOUNDATION TRUST","RHW03","King Edward Vii Hospital - RHW03",null,null,null,null,null,null,"RXH01","WiC_MIU - RJ1XXX"]
[null,null,null,null,null,null,null,null,null,null,null,null,null,null,null,null,null,null,null,null,"Q82","RHW","ROYAL BERKSHIRE NHS FOUNDATION TRUST","RHW01","Royal Berkshire Hospital - RHW01",null,null,null,null,null,null,"RXH06","WiC_MIU - RJ6XXX"]
[null,null,null,null,null,null,null,null,null,null,null,null,null,null,null,null,null,null,null,null,"Q82","RD1","ROYAL UNITED HOSPITALS BATH NHS FOUNDATION TRUST","RD130","Royal United Hospital - RD130",null,null,null,null,null,null,"RXH07","WiC_MIU - RJ7XXX"]
[null,null,null,null,null,null,null,null,null,null,null,null,null,null,null,null,null,null,null,null,"Q82","RNZ","SALISBURY NHS FOUNDATION TRUST","RNZ02","Salisbury District Hospital - RNZ02",null,null,null,null,null,null,"RXH09","WiC_MIU - RJCXXX"]
[null,null,null,null,null,null,null,null,null,null,null,null,null,null,null,null,null,null,null,null,"Q83","RMC","BOLTON NHS FOUNDATION TRUST","RMC01","Royal Bolton Hospital - RMC01",null,null,null,null,null,null,"RXK01","WiC_MIU - RJFXXX"]
[null,null,null,null,null,null,null,null,null,null,null,null,null,null,null,null,null,null,null,null,"Q83","RW3","CENTRAL MANCHESTER UNIVERSITY HOSPITALS NHS FOUNDATION TRUST","RW3RE","Manchester Royal Eye Hospital - RW3RE",null,null,null,null,null,null,"RXK02","WiC_MIU - RJLXXX"]
[null,null,null,null,null,null,null,null,null,null,null,null,null,null,null,null,null,null,null,null,"Q83","RW3","CENTRAL MANCHESTER UNIVERSITY HOSPITALS NHS FOUNDATION TRUST","RW3MR","Manchester Royal Infirmary - RW3MR",null,null,null,null,null,null,"RXK03","WiC_MIU - RK5XXX"]
[null,null,null,null,null,null,null,null,null,null,null,null,null,null,null,null,null,null,null,null,"Q83","RW3","CENTRAL MANCHESTER UNIVERSITY HOSPITALS NHS FOUNDATION TRUST","RW3RC","Royal Manchester Children's Hospital - RW3RC",null,null,null,null,null,null,"RXKXXX","WiC_MIU - RKBXXX"]
[null,null,null,null,null,null,null,null,null,null,null,null,null,null,null,null,null,null,null,null,"Q83","RW3","CENTRAL MANCHESTER UNIVERSITY HOSPITALS NHS FOUNDATION TRUST","RW3SM","St Mary's Hospital - RW3SM",null,null,null,null,null,null,"RXL01","WiC_MIU - RL4XXX"]
[null,null,null,null,null,null,null,null,null,null,null,null,null,null,null,null,null,null,null,null,"Q83","RW3","CENTRAL MANCHESTER UNIVERSITY HOSPITALS NHS FOUNDATION TRUST","RW3TR","Trafford General Hospital - RW3TR",null,null,null,null,null,null,"RXN01","WiC_MIU - RLNXXX"]
[null,null,null,null,null,null,null,null,null,null,null,null,null,null,null,null,null,null,null,null,"Q83","RW3","CENTRAL MANCHESTER UNIVERSITY HOSPITALS NHS FOUNDATION TRUST","RW3DH","University Dental Hospital - RW3DH",null,null,null,null,null,null,"RXN02","WiC_MIU - RP5XXX"]
[null,null,null,null,null,null,null,null,null,null,null,null,null,null,null,null,null,null,null,null,"Q83","RW6","PENNINE ACUTE HOSPITALS NHS TRUST","RW601","Fairfield General Hospital - RW601",null,null,null,null,null,null,"RXPCP","WiC_MIU - RQMXXX"]
[null,null,null,null,null,null,null,null,null,null,null,null,null,null,null,null,null,null,null,null,"Q83","RW6","PENNINE ACUTE HOSPITALS NHS TRUST","RW602","North Manchester General Hospital - RW602",null,null,null,null,null,null,"RXPDA","WiC_MIU - RR7XXX"]
[null,null,null,null,null,null,null,null,null,null,null,null,null,null,null,null,null,null,null,null,"Q83","RW6","PENNINE ACUTE HOSPITALS NHS TRUST","RW604","Rochdale Infirmary - RW604",null,null,null,null,null,null,"RXPXXX","WiC_MIU - RTFXXX"]
[null,null,null,null,null,null,null,null,null,null,null,null,null,null,null,null,null,null,null,null,"Q83","RW6","PENNINE ACUTE HOSPITALS NHS TRUST","RW603","Royal Oldham Hospital - RW603",null,null,null,null,null,null,"RXQ02","WiC_MIU - RTRXXX"]
[null,null,null,null,null,null,null,null,null,null,null,null,null,null,null,null,null,null,null,null,"Q83","RM3","SALFORD ROYAL NHS FOUNDATION TRUST","RM301","Salford Royal - RM301",null,null,null,null,null,null,"RXR20","WiC_MIU - RXKXXX"]
[null,null,null,null,null,null,null,null,null,null,null,null,null,null,null,null,null,null,null,null,"Q83","RWJ","STOCKPORT NHS FOUNDATION TRUST","RWJ09","Stepping Hill Hospital - RWJ09",null,null,null,null,null,null,"RXWAS","WiC_MIU - RXPXXX"]
[null,null,null,null,null,null,null,null,null,null,null,null,null,null,null,null,null,null,null,null,"Q83","RMP","TAMESIDE AND GLOSSOP INTEGRATED CARE NHS FOUNDATION TRUST","RMP01","Tameside General Hospital - RMP01",null,null,null,null,null,null,"RXWAT","WiC_MIU - RYJXXX"]
[null,null,null,null,null,null,null,null,null,null,null,null,null,null,null,null,null,null,null,null,"Q83","RM2","UNIVERSITY HOSPITAL OF SOUTH MANCHESTER NHS FOUNDATION TRUST","RM202","Wythenshawe Hospital - RM202",null,null,null,null,null,null,"RYJ01","William Harvey Hospital (Ashford) - RVV01"]
[null,null,null,null,null,null,null,null,null,null,null,null,null,null,null,null,null,null,null,null,"Q83","RRF","WRIGHTINGTON, WIGAN AND LEIGH NHS FOUNDATION TRUST","RRF02","Royal Albert Edward Infirmary - RRF02",null,null,null,null,null,null,"RYJ02","Worcestershire Royal Hospital - RWP50"]
[null,null,null,null,null,null,null,null,null,null,null,null,null,null,null,null,null,null,null,null,"Q84","RXL","BLACKPOOL TEACHING HOSPITALS NHS FOUNDATION TRUST","RXL01","Blackpool Victoria Hospital - RXL01",null,null,null,null,null,null,"RYJ07","Worthing Hospital - RYR18"]
[null,null,null,null,null,null,null,null,null,null,null,null,null,null,null,null,null,null,null,null,"Q84","RXR","EAST LANCASHIRE HOSPITALS NHS TRUST","RXR20","Royal Blackburn Hospital - RXR20",null,null,null,null,null,null,"RYJXXX","Wythenshawe Hospital - RM202"]
[null,null,null,null,null,null,null,null,null,null,null,null,null,null,null,null,null,null,null,null,"Q84","RXN","LANCASHIRE TEACHING HOSPITALS NHS FOUNDATION TRUST","RXN01","Chorley and South Ribble Hospital - RXN01",null,null,null,null,null,null,"RYR16","Yeovil District Hospital - RA430"]
[null,null,null,null,null,null,null,null,null,null,null,null,null,null,null,null,null,null,null,null,"Q84","RXN","LANCASHIRE TEACHING HOSPITALS NHS FOUNDATION TRUST","RXN02","Royal Preston Hospital - RXN02",null,null,null,null,null,null,"RYR18","York Hospital - RCB55"]